{"text_format":"3","workbook":"xlsx","n_sheets":12,"sheets":["ม.ค.","ก.พ.","มี.ค.","เม.ย.","พ.ค.","มิ.ย.","ก.ค.","ส.ค.","ก.ย.","ต.ค.","พ.ย.","ธ.ค."],"not_rendered":{"defined_names":40},"read":"whole","date_system":"1900"}

{"sheet":"ม.ค.","index":0,"n_rows":20,"n_cols":9,"rows_kept":20,"merged":[[16,2,17,2],[16,3,17,3],[17,4,19,8]]}
[null,"ม.ค.","อา.",{"$f":"UPPER(TEXT(D3,\"aaa\"))","v":"จ."},"อ.","พ.","พฤ.","ศ.","ส."]
[null,{"$f":"YEAR(TODAY())","v":2018}]
[null,null,{"$f":"วันและสัปดาห์+DATE(ปีปฏิทิน,1,1)-WEEKDAY(DATE(ปีปฏิทิน,1,1),(เริ่มต้นสัปดาห์=\"จ.\")+1)+1","v":"2017-12-31"},"2018-01-01","2018-01-02","2018-01-03","2018-01-04","2018-01-05","2018-01-06"]
[null,null,{"$f":"IF(DAY(วันปฏิทิน)=1,CONCATENATE(\"สัปดาห์ที่ \",WEEKNUM(วันปฏิทิน),\"/วันที่ \",วันปฏิทิน-DATE(YEAR(วันปฏิทิน),1,0)),CONCATENATE(\"วันที่ \",วันปฏิทิน-DATE(YEAR(วันปฏิทิน),1,0)))","v":"วันที่ 365"},{"$f":"IF(DAY(วันปฏิทิน)=1,CONCATENATE(\"สัปดาห์ที่ \",WEEKNUM(วันปฏิทิน),\"/วันที่ \",วันปฏิทิน-DATE(YEAR(วันปฏิทิน),1,0)),CONCATENATE(\"วันที่ \",วันปฏิทิน-DATE(YEAR(วันปฏิทิน),1,0)))","v":"สัปดาห์ที่ 1/วันที่ 1"},{"$f":"IF(DAY(วันปฏิทิน)=1,CONCATENATE(\"สัปดาห์ที่ \",WEEKNUM(วันปฏิทิน),\"/วันที่ \",วันปฏิทิน-DATE(YEAR(วันปฏิทิน),1,0)),CONCATENATE(\"วันที่ \",วันปฏิทิน-DATE(YEAR(วันปฏิทิน),1,0)))","v":"วันที่ 2"},{"$f":"IF(DAY(วันปฏิทิน)=1,CONCATENATE(\"สัปดาห์ที่ \",WEEKNUM(วันปฏิทิน),\"/วันที่ \",วันปฏิทิน-DATE(YEAR(วันปฏิทิน),1,0)),CONCATENATE(\"วันที่ \",วันปฏิทิน-DATE(YEAR(วันปฏิทิน),1,0)))","v":"วันที่ 3"},{"$f":"IF(DAY(วันปฏิทิน)=1,CONCATENATE(\"สัปดาห์ที่ \",WEEKNUM(วันปฏิทิน),\"/วันที่ \",วันปฏิทิน-DATE(YEAR(วันปฏิทิน),1,0)),CONCATENATE(\"วันที่ \",วันปฏิทิน-DATE(YEAR(วันปฏิทิน),1,0)))","v":"วันที่ 4"},{"$f":"IF(DAY(วันปฏิทิน)=1,CONCATENATE(\"สัปดาห์ที่ \",WEEKNUM(วันปฏิทิน),\"/วันที่ \",วันปฏิทิน-DATE(YEAR(วันปฏิทิน),1,0)),CONCATENATE(\"วันที่ \",วันปฏิทิน-DATE(YEAR(วันปฏิทิน),1,0)))","v":"วันที่ 5"},{"$f":"IF(DAY(วันปฏิทิน)=1,CONCATENATE(\"สัปดาห์ที่ \",WEEKNUM(วันปฏิทิน),\"/วันที่ \",วันปฏิทิน-DATE(YEAR(วันปฏิทิน),1,0)),CONCATENATE(\"วันที่ \",วันปฏิทิน-DATE(YEAR(วันปฏิทิน),1,0)))","v":"วันที่ 6"}]
[]
[null,null,{"$f":"วันและสัปดาห์+DATE(ปีปฏิทิน,1,1)-WEEKDAY(DATE(ปีปฏิทิน,1,1),(เริ่มต้นสัปดาห์=\"จ.\")+1)+8","v":"2018-01-07"},"2018-01-08","2018-01-09","2018-01-10","2018-01-11","2018-01-12","2018-01-13"]
[null,null,{"$f":"IF(WEEKDAY(วันปฏิทิน)=WeekStartValue,CONCATENATE(\"สัปดาห์ที่ \",WEEKNUM(วันปฏิทิน),\"/วันที่ \",วันปฏิทิน-DATE(YEAR(วันปฏิทิน),1,0)),CONCATENATE(\"วันที่ \",วันปฏิทิน-DATE(YEAR(วันปฏิทิน),1,0)))","v":"สัปดาห์ที่ 2/วันที่ 7"},{"$f":"IF(WEEKDAY(วันปฏิทิน)=WeekStartValue,CONCATENATE(\"สัปดาห์ที่ \",WEEKNUM(วันปฏิทิน),\"/วันที่ \",วันปฏิทิน-DATE(YEAR(วันปฏิทิน),1,0)),CONCATENATE(\"วันที่ \",วันปฏิทิน-DATE(YEAR(วันปฏิทิน),1,0)))","v":"วันที่ 8"},{"$f":"IF(WEEKDAY(วันปฏิทิน)=WeekStartValue,CONCATENATE(\"สัปดาห์ที่ \",WEEKNUM(วันปฏิทิน),\"/วันที่ \",วันปฏิทิน-DATE(YEAR(วันปฏิทิน),1,0)),CONCATENATE(\"วันที่ \",วันปฏิทิน-DATE(YEAR(วันปฏิทิน),1,0)))","v":"วันที่ 9"},{"$f":"IF(WEEKDAY(วันปฏิทิน)=WeekStartValue,CONCATENATE(\"สัปดาห์ที่ \",WEEKNUM(วันปฏิทิน),\"/วันที่ \",วันปฏิทิน-DATE(YEAR(วันปฏิทิน),1,0)),CONCATENATE(\"วันที่ \",วันปฏิทิน-DATE(YEAR(วันปฏิทิน),1,0)))","v":"วันที่ 10"},{"$f":"IF(WEEKDAY(วันปฏิทิน)=WeekStartValue,CONCATENATE(\"สัปดาห์ที่ \",WEEKNUM(วันปฏิทิน),\"/วันที่ \",วันปฏิทิน-DATE(YEAR(วันปฏิทิน),1,0)),CONCATENATE(\"วันที่ \",วันปฏิทิน-DATE(YEAR(วันปฏิทิน),1,0)))","v":"วันที่ 11"},{"$f":"IF(WEEKDAY(วันปฏิทิน)=WeekStartValue,CONCATENATE(\"สัปดาห์ที่ \",WEEKNUM(วันปฏิทิน),\"/วันที่ \",วันปฏิทิน-DATE(YEAR(วันปฏิทิน),1,0)),CONCATENATE(\"วันที่ \",วันปฏิทิน-DATE(YEAR(วันปฏิทิน),1,0)))","v":"วันที่ 12"},{"$f":"IF(WEEKDAY(วันปฏิทิน)=WeekStartValue,CONCATENATE(\"สัปดาห์ที่ \",WEEKNUM(วันปฏิทิน),\"/วันที่ \",วันปฏิทิน-DATE(YEAR(วันปฏิทิน),1,0)),CONCATENATE(\"วันที่ \",วันปฏิทิน-DATE(YEAR(วันปฏิทิน),1,0)))","v":"วันที่ 13"}]
[]
[null,null,{"$f":"วันและสัปดาห์+DATE(ปีปฏิทิน,1,1)-WEEKDAY(DATE(ปีปฏิทิน,1,1),(เริ่มต้นสัปดาห์=\"จ.\")+1)+15","v":"2018-01-14"},"2018-01-15","2018-01-16","2018-01-17","2018-01-18","2018-01-19","2018-01-20"]
[null,null,{"$f":"IF(WEEKDAY(วันปฏิทิน)=WeekStartValue,CONCATENATE(\"สัปดาห์ที่ \",WEEKNUM(วันปฏิทิน),\"/วันที่ \",วันปฏิทิน-DATE(YEAR(วันปฏิทิน),1,0)),CONCATENATE(\"วันที่ \",วันปฏิทิน-DATE(YEAR(วันปฏิทิน),1,0)))","v":"สัปดาห์ที่ 3/วันที่ 14"},{"$f":"IF(WEEKDAY(วันปฏิทิน)=WeekStartValue,CONCATENATE(\"สัปดาห์ที่ \",WEEKNUM(วันปฏิทิน),\"/วันที่ \",วันปฏิทิน-DATE(YEAR(วันปฏิทิน),1,0)),CONCATENATE(\"วันที่ \",วันปฏิทิน-DATE(YEAR(วันปฏิทิน),1,0)))","v":"วันที่ 15"},{"$f":"IF(WEEKDAY(วันปฏิทิน)=WeekStartValue,CONCATENATE(\"สัปดาห์ที่ \",WEEKNUM(วันปฏิทิน),\"/วันที่ \",วันปฏิทิน-DATE(YEAR(วันปฏิทิน),1,0)),CONCATENATE(\"วันที่ \",วันปฏิทิน-DATE(YEAR(วันปฏิทิน),1,0)))","v":"วันที่ 16"},{"$f":"IF(WEEKDAY(วันปฏิทิน)=WeekStartValue,CONCATENATE(\"สัปดาห์ที่ \",WEEKNUM(วันปฏิทิน),\"/วันที่ \",วันปฏิทิน-DATE(YEAR(วันปฏิทิน),1,0)),CONCATENATE(\"วันที่ \",วันปฏิทิน-DATE(YEAR(วันปฏิทิน),1,0)))","v":"วันที่ 17"},{"$f":"IF(WEEKDAY(วันปฏิทิน)=WeekStartValue,CONCATENATE(\"สัปดาห์ที่ \",WEEKNUM(วันปฏิทิน),\"/วันที่ \",วันปฏิทิน-DATE(YEAR(วันปฏิทิน),1,0)),CONCATENATE(\"วันที่ \",วันปฏิทิน-DATE(YEAR(วันปฏิทิน),1,0)))","v":"วันที่ 18"},{"$f":"IF(WEEKDAY(วันปฏิทิน)=WeekStartValue,CONCATENATE(\"สัปดาห์ที่ \",WEEKNUM(วันปฏิทิน),\"/วันที่ \",วันปฏิทิน-DATE(YEAR(วันปฏิทิน),1,0)),CONCATENATE(\"วันที่ \",วันปฏิทิน-DATE(YEAR(วันปฏิทิน),1,0)))","v":"วันที่ 19"},{"$f":"IF(WEEKDAY(วันปฏิทิน)=WeekStartValue,CONCATENATE(\"สัปดาห์ที่ \",WEEKNUM(วันปฏิทิน),\"/วันที่ \",วันปฏิทิน-DATE(YEAR(วันปฏิทิน),1,0)),CONCATENATE(\"วันที่ \",วันปฏิทิน-DATE(YEAR(วันปฏิทิน),1,0)))","v":"วันที่ 20"}]
[]
[null,null,{"$f":"วันและสัปดาห์+DATE(ปีปฏิทิน,1,1)-WEEKDAY(DATE(ปีปฏิทิน,1,1),(เริ่มต้นสัปดาห์=\"จ.\")+1)+22","v":"2018-01-21"},"2018-01-22","2018-01-23","2018-01-24","2018-01-25","2018-01-26","2018-01-27"]
[null,null,{"$f":"IF(WEEKDAY(วันปฏิทิน)=WeekStartValue,CONCATENATE(\"สัปดาห์ที่ \",WEEKNUM(วันปฏิทิน),\"/วันที่ \",วันปฏิทิน-DATE(YEAR(วันปฏิทิน),1,0)),CONCATENATE(\"วันที่ \",วันปฏิทิน-DATE(YEAR(วันปฏิทิน),1,0)))","v":"สัปดาห์ที่ 4/วันที่ 21"},{"$f":"IF(WEEKDAY(วันปฏิทิน)=WeekStartValue,CONCATENATE(\"สัปดาห์ที่ \",WEEKNUM(วันปฏิทิน),\"/วันที่ \",วันปฏิทิน-DATE(YEAR(วันปฏิทิน),1,0)),CONCATENATE(\"วันที่ \",วันปฏิทิน-DATE(YEAR(วันปฏิทิน),1,0)))","v":"วันที่ 22"},{"$f":"IF(WEEKDAY(วันปฏิทิน)=WeekStartValue,CONCATENATE(\"สัปดาห์ที่ \",WEEKNUM(วันปฏิทิน),\"/วันที่ \",วันปฏิทิน-DATE(YEAR(วันปฏิทิน),1,0)),CONCATENATE(\"วันที่ \",วันปฏิทิน-DATE(YEAR(วันปฏิทิน),1,0)))","v":"วันที่ 23"},{"$f":"IF(WEEKDAY(วันปฏิทิน)=WeekStartValue,CONCATENATE(\"สัปดาห์ที่ \",WEEKNUM(วันปฏิทิน),\"/วันที่ \",วันปฏิทิน-DATE(YEAR(วันปฏิทิน),1,0)),CONCATENATE(\"วันที่ \",วันปฏิทิน-DATE(YEAR(วันปฏิทิน),1,0)))","v":"วันที่ 24"},{"$f":"IF(WEEKDAY(วันปฏิทิน)=WeekStartValue,CONCATENATE(\"สัปดาห์ที่ \",WEEKNUM(วันปฏิทิน),\"/วันที่ \",วันปฏิทิน-DATE(YEAR(วันปฏิทิน),1,0)),CONCATENATE(\"วันที่ \",วันปฏิทิน-DATE(YEAR(วันปฏิทิน),1,0)))","v":"วันที่ 25"},{"$f":"IF(WEEKDAY(วันปฏิทิน)=WeekStartValue,CONCATENATE(\"สัปดาห์ที่ \",WEEKNUM(วันปฏิทิน),\"/วันที่ \",วันปฏิทิน-DATE(YEAR(วันปฏิทิน),1,0)),CONCATENATE(\"วันที่ \",วันปฏิทิน-DATE(YEAR(วันปฏิทิน),1,0)))","v":"วันที่ 26"},{"$f":"IF(WEEKDAY(วันปฏิทิน)=WeekStartValue,CONCATENATE(\"สัปดาห์ที่ \",WEEKNUM(วันปฏิทิน),\"/วันที่ \",วันปฏิทิน-DATE(YEAR(วันปฏิทิน),1,0)),CONCATENATE(\"วันที่ \",วันปฏิทิน-DATE(YEAR(วันปฏิทิน),1,0)))","v":"วันที่ 27"}]
[]
[null,null,{"$f":"วันและสัปดาห์+DATE(ปีปฏิทิน,1,1)-WEEKDAY(DATE(ปีปฏิทิน,1,1),(เริ่มต้นสัปดาห์=\"จ.\")+1)+29","v":"2018-01-28"},"2018-01-29","2018-01-30","2018-01-31","2018-02-01","2018-02-02","2018-02-03"]
[null,null,{"$f":"IF(WEEKDAY(วันปฏิทิน)=WeekStartValue,CONCATENATE(\"สัปดาห์ที่ \",WEEKNUM(วันปฏิทิน),\"/วันที่ \",วันปฏิทิน-DATE(YEAR(วันปฏิทิน),1,0)),CONCATENATE(\"วันที่ \",วันปฏิทิน-DATE(YEAR(วันปฏิทิน),1,0)))","v":"สัปดาห์ที่ 5/วันที่ 28"},{"$f":"IF(WEEKDAY(วันปฏิทิน)=WeekStartValue,CONCATENATE(\"สัปดาห์ที่ \",WEEKNUM(วันปฏิทิน),\"/วันที่ \",วันปฏิทิน-DATE(YEAR(วันปฏิทิน),1,0)),CONCATENATE(\"วันที่ \",วันปฏิทิน-DATE(YEAR(วันปฏิทิน),1,0)))","v":"วันที่ 29"},{"$f":"IF(WEEKDAY(วันปฏิทิน)=WeekStartValue,CONCATENATE(\"สัปดาห์ที่ \",WEEKNUM(วันปฏิทิน),\"/วันที่ \",วันปฏิทิน-DATE(YEAR(วันปฏิทิน),1,0)),CONCATENATE(\"วันที่ \",วันปฏิทิน-DATE(YEAR(วันปฏิทิน),1,0)))","v":"วันที่ 30"},{"$f":"IF(WEEKDAY(วันปฏิทิน)=WeekStartValue,CONCATENATE(\"สัปดาห์ที่ \",WEEKNUM(วันปฏิทิน),\"/วันที่ \",วันปฏิทิน-DATE(YEAR(วันปฏิทิน),1,0)),CONCATENATE(\"วันที่ \",วันปฏิทิน-DATE(YEAR(วันปฏิทิน),1,0)))","v":"วันที่ 31"},{"$f":"IF(WEEKDAY(วันปฏิทิน)=WeekStartValue,CONCATENATE(\"สัปดาห์ที่ \",WEEKNUM(วันปฏิทิน),\"/วันที่ \",วันปฏิทิน-DATE(YEAR(วันปฏิทิน),1,0)),CONCATENATE(\"วันที่ \",วันปฏิทิน-DATE(YEAR(วันปฏิทิน),1,0)))","v":"วันที่ 32"},{"$f":"IF(WEEKDAY(วันปฏิทิน)=WeekStartValue,CONCATENATE(\"สัปดาห์ที่ \",WEEKNUM(วันปฏิทิน),\"/วันที่ \",วันปฏิทิน-DATE(YEAR(วันปฏิทิน),1,0)),CONCATENATE(\"วันที่ \",วันปฏิทิน-DATE(YEAR(วันปฏิทิน),1,0)))","v":"วันที่ 33"},{"$f":"IF(WEEKDAY(วันปฏิทิน)=WeekStartValue,CONCATENATE(\"สัปดาห์ที่ \",WEEKNUM(วันปฏิทิน),\"/วันที่ \",วันปฏิทิน-DATE(YEAR(วันปฏิทิน),1,0)),CONCATENATE(\"วันที่ \",วันปฏิทิน-DATE(YEAR(วันปฏิทิน),1,0)))","v":"วันที่ 34"}]
[{"$nulls":4},"หมายเหตุ"]
[]
[null,null,{"$f":"วันและสัปดาห์+DATE(ปีปฏิทิน,1,1)-WEEKDAY(DATE(ปีปฏิทิน,1,1),(เริ่มต้นสัปดาห์=\"จ.\")+1)+36","v":"2018-02-04"},"2018-02-05"]
[null,null,{"$f":"IF(WEEKDAY(วันปฏิทิน)=WeekStartValue,CONCATENATE(\"สัปดาห์ที่ \",WEEKNUM(วันปฏิทิน),\"/วันที่ \",วันปฏิทิน-DATE(YEAR(วันปฏิทิน),1,0)),CONCATENATE(\"วันที่ \",วันปฏิทิน-DATE(YEAR(วันปฏิทิน),1,0)))","v":"สัปดาห์ที่ 6/วันที่ 35"},{"$f":"IF(WEEKDAY(วันปฏิทิน)=WeekStartValue,CONCATENATE(\"สัปดาห์ที่ \",WEEKNUM(วันปฏิทิน),\"/วันที่ \",วันปฏิทิน-DATE(YEAR(วันปฏิทิน),1,0)),CONCATENATE(\"วันที่ \",วันปฏิทิน-DATE(YEAR(วันปฏิทิน),1,0)))","v":"วันที่ 36"}]

{"sheet":"ก.พ.","index":1,"n_rows":20,"n_cols":9,"rows_kept":20,"merged":[[16,2,17,2],[17,4,19,8]]}
[null,"ก.พ.",{"$f":"UPPER(TEXT(เริ่มต้นสัปดาห์,\"ddd\"))","v":"อา."},{"$f":"UPPER(TEXT(D3,\"aaa\"))","v":"จ."},"อ.","พ.","พฤ.","ศ.","ส."]
[null,{"$f":"ปีปฏิทิน","v":2018}]
[null,null,{"$f":"วันและสัปดาห์+DATE(ปีปฏิทิน,2,1)-WEEKDAY(DATE(ปีปฏิทิน,2,1),(เริ่มต้นสัปดาห์=\"จ.\")+1)+1","v":"2018-01-28"},"2018-01-29","2018-01-30","2018-01-31","2018-02-01","2018-02-02","2018-02-03"]
[null,null,{"$f":"IF(DAY(วันปฏิทิน)=1,CONCATENATE(\"สัปดาห์ที่ \",WEEKNUM(วันปฏิทิน),\"/วันที่ \",วันปฏิทิน-DATE(YEAR(วันปฏิทิน),1,0)),CONCATENATE(\"วันที่ \",วันปฏิทิน-DATE(YEAR(วันปฏิทิน),1,0)))","v":"วันที่ 28"},{"$f":"IF(DAY(วันปฏิทิน)=1,CONCATENATE(\"สัปดาห์ที่ \",WEEKNUM(วันปฏิทิน),\"/วันที่ \",วันปฏิทิน-DATE(YEAR(วันปฏิทิน),1,0)),CONCATENATE(\"วันที่ \",วันปฏิทิน-DATE(YEAR(วันปฏิทิน),1,0)))","v":"วันที่ 29"},{"$f":"IF(DAY(วันปฏิทิน)=1,CONCATENATE(\"สัปดาห์ที่ \",WEEKNUM(วันปฏิทิน),\"/วันที่ \",วันปฏิทิน-DATE(YEAR(วันปฏิทิน),1,0)),CONCATENATE(\"วันที่ \",วันปฏิทิน-DATE(YEAR(วันปฏิทิน),1,0)))","v":"วันที่ 30"},{"$f":"IF(DAY(วันปฏิทิน)=1,CONCATENATE(\"สัปดาห์ที่ \",WEEKNUM(วันปฏิทิน),\"/วันที่ \",วันปฏิทิน-DATE(YEAR(วันปฏิทิน),1,0)),CONCATENATE(\"วันที่ \",วันปฏิทิน-DATE(YEAR(วันปฏิทิน),1,0)))","v":"วันที่ 31"},{"$f":"IF(DAY(วันปฏิทิน)=1,CONCATENATE(\"สัปดาห์ที่ \",WEEKNUM(วันปฏิทิน),\"/วันที่ \",วันปฏิทิน-DATE(YEAR(วันปฏิทิน),1,0)),CONCATENATE(\"วันที่ \",วันปฏิทิน-DATE(YEAR(วันปฏิทิน),1,0)))","v":"สัปดาห์ที่ 5/วันที่ 32"},{"$f":"IF(DAY(วันปฏิทิน)=1,CONCATENATE(\"สัปดาห์ที่ \",WEEKNUM(วันปฏิทิน),\"/วันที่ \",วันปฏิทิน-DATE(YEAR(วันปฏิทิน),1,0)),CONCATENATE(\"วันที่ \",วันปฏิทิน-DATE(YEAR(วันปฏิทิน),1,0)))","v":"วันที่ 33"},{"$f":"IF(DAY(วันปฏิทิน)=1,CONCATENATE(\"สัปดาห์ที่ \",WEEKNUM(วันปฏิทิน),\"/วันที่ \",วันปฏิทิน-DATE(YEAR(วันปฏิทิน),1,0)),CONCATENATE(\"วันที่ \",วันปฏิทิน-DATE(YEAR(วันปฏิทิน),1,0)))","v":"วันที่ 34"}]
[]
[null,null,{"$f":"วันและสัปดาห์+DATE(ปีปฏิทิน,2,1)-WEEKDAY(DATE(ปีปฏิทิน,2,1),(เริ่มต้นสัปดาห์=\"จ.\")+1)+8","v":"2018-02-04"},"2018-02-05","2018-02-06","2018-02-07","2018-02-08","2018-02-09","2018-02-10"]
[null,null,{"$f":"IF(WEEKDAY(วันปฏิทิน)=WeekStartValue,CONCATENATE(\"สัปดาห์ที่ \",WEEKNUM(วันปฏิทิน),\"/วันที่ \",วันปฏิทิน-DATE(YEAR(วันปฏิทิน),1,0)),CONCATENATE(\"วันที่ \",วันปฏิทิน-DATE(YEAR(วันปฏิทิน),1,0)))","v":"สัปดาห์ที่ 6/วันที่ 35"},{"$f":"IF(WEEKDAY(วันปฏิทิน)=WeekStartValue,CONCATENATE(\"สัปดาห์ที่ \",WEEKNUM(วันปฏิทิน),\"/วันที่ \",วันปฏิทิน-DATE(YEAR(วันปฏิทิน),1,0)),CONCATENATE(\"วันที่ \",วันปฏิทิน-DATE(YEAR(วันปฏิทิน),1,0)))","v":"วันที่ 36"},{"$f":"IF(WEEKDAY(วันปฏิทิน)=WeekStartValue,CONCATENATE(\"สัปดาห์ที่ \",WEEKNUM(วันปฏิทิน),\"/วันที่ \",วันปฏิทิน-DATE(YEAR(วันปฏิทิน),1,0)),CONCATENATE(\"วันที่ \",วันปฏิทิน-DATE(YEAR(วันปฏิทิน),1,0)))","v":"วันที่ 37"},{"$f":"IF(WEEKDAY(วันปฏิทิน)=WeekStartValue,CONCATENATE(\"สัปดาห์ที่ \",WEEKNUM(วันปฏิทิน),\"/วันที่ \",วันปฏิทิน-DATE(YEAR(วันปฏิทิน),1,0)),CONCATENATE(\"วันที่ \",วันปฏิทิน-DATE(YEAR(วันปฏิทิน),1,0)))","v":"วันที่ 38"},{"$f":"IF(WEEKDAY(วันปฏิทิน)=WeekStartValue,CONCATENATE(\"สัปดาห์ที่ \",WEEKNUM(วันปฏิทิน),\"/วันที่ \",วันปฏิทิน-DATE(YEAR(วันปฏิทิน),1,0)),CONCATENATE(\"วันที่ \",วันปฏิทิน-DATE(YEAR(วันปฏิทิน),1,0)))","v":"วันที่ 39"},{"$f":"IF(WEEKDAY(วันปฏิทิน)=WeekStartValue,CONCATENATE(\"สัปดาห์ที่ \",WEEKNUM(วันปฏิทิน),\"/วันที่ \",วันปฏิทิน-DATE(YEAR(วันปฏิทิน),1,0)),CONCATENATE(\"วันที่ \",วันปฏิทิน-DATE(YEAR(วันปฏิทิน),1,0)))","v":"วันที่ 40"},{"$f":"IF(WEEKDAY(วันปฏิทิน)=WeekStartValue,CONCATENATE(\"สัปดาห์ที่ \",WEEKNUM(วันปฏิทิน),\"/วันที่ \",วันปฏิทิน-DATE(YEAR(วันปฏิทิน),1,0)),CONCATENATE(\"วันที่ \",วันปฏิทิน-DATE(YEAR(วันปฏิทิน),1,0)))","v":"วันที่ 41"}]
[]
[null,null,{"$f":"วันและสัปดาห์+DATE(ปีปฏิทิน,2,1)-WEEKDAY(DATE(ปีปฏิทิน,2,1),(เริ่มต้นสัปดาห์=\"จ.\")+1)+15","v":"2018-02-11"},"2018-02-12","2018-02-13","2018-02-14","2018-02-15","2018-02-16","2018-02-17"]
[null,null,{"$f":"IF(WEEKDAY(วันปฏิทิน)=WeekStartValue,CONCATENATE(\"สัปดาห์ที่ \",WEEKNUM(วันปฏิทิน),\"/วันที่ \",วันปฏิทิน-DATE(YEAR(วันปฏิทิน),1,0)),CONCATENATE(\"วันที่ \",วันปฏิทิน-DATE(YEAR(วันปฏิทิน),1,0)))","v":"สัปดาห์ที่ 7/วันที่ 42"},{"$f":"IF(WEEKDAY(วันปฏิทิน)=WeekStartValue,CONCATENATE(\"สัปดาห์ที่ \",WEEKNUM(วันปฏิทิน),\"/วันที่ \",วันปฏิทิน-DATE(YEAR(วันปฏิทิน),1,0)),CONCATENATE(\"วันที่ \",วันปฏิทิน-DATE(YEAR(วันปฏิทิน),1,0)))","v":"วันที่ 43"},{"$f":"IF(WEEKDAY(วันปฏิทิน)=WeekStartValue,CONCATENATE(\"สัปดาห์ที่ \",WEEKNUM(วันปฏิทิน),\"/วันที่ \",วันปฏิทิน-DATE(YEAR(วันปฏิทิน),1,0)),CONCATENATE(\"วันที่ \",วันปฏิทิน-DATE(YEAR(วันปฏิทิน),1,0)))","v":"วันที่ 44"},{"$f":"IF(WEEKDAY(วันปฏิทิน)=WeekStartValue,CONCATENATE(\"สัปดาห์ที่ \",WEEKNUM(วันปฏิทิน),\"/วันที่ \",วันปฏิทิน-DATE(YEAR(วันปฏิทิน),1,0)),CONCATENATE(\"วันที่ \",วันปฏิทิน-DATE(YEAR(วันปฏิทิน),1,0)))","v":"วันที่ 45"},{"$f":"IF(WEEKDAY(วันปฏิทิน)=WeekStartValue,CONCATENATE(\"สัปดาห์ที่ \",WEEKNUM(วันปฏิทิน),\"/วันที่ \",วันปฏิทิน-DATE(YEAR(วันปฏิทิน),1,0)),CONCATENATE(\"วันที่ \",วันปฏิทิน-DATE(YEAR(วันปฏิทิน),1,0)))","v":"วันที่ 46"},{"$f":"IF(WEEKDAY(วันปฏิทิน)=WeekStartValue,CONCATENATE(\"สัปดาห์ที่ \",WEEKNUM(วันปฏิทิน),\"/วันที่ \",วันปฏิทิน-DATE(YEAR(วันปฏิทิน),1,0)),CONCATENATE(\"วันที่ \",วันปฏิทิน-DATE(YEAR(วันปฏิทิน),1,0)))","v":"วันที่ 47"},{"$f":"IF(WEEKDAY(วันปฏิทิน)=WeekStartValue,CONCATENATE(\"สัปดาห์ที่ \",WEEKNUM(วันปฏิทิน),\"/วันที่ \",วันปฏิทิน-DATE(YEAR(วันปฏิทิน),1,0)),CONCATENATE(\"วันที่ \",วันปฏิทิน-DATE(YEAR(วันปฏิทิน),1,0)))","v":"วันที่ 48"}]
[]
[null,null,{"$f":"วันและสัปดาห์+DATE(ปีปฏิทิน,2,1)-WEEKDAY(DATE(ปีปฏิทิน,2,1),(เริ่มต้นสัปดาห์=\"จ.\")+1)+22","v":"2018-02-18"},"2018-02-19","2018-02-20","2018-02-21","2018-02-22","2018-02-23","2018-02-24"]
[null,null,{"$f":"IF(WEEKDAY(วันปฏิทิน)=WeekStartValue,CONCATENATE(\"สัปดาห์ที่ \",WEEKNUM(วันปฏิทิน),\"/วันที่ \",วันปฏิทิน-DATE(YEAR(วันปฏิทิน),1,0)),CONCATENATE(\"วันที่ \",วันปฏิทิน-DATE(YEAR(วันปฏิทิน),1,0)))","v":"สัปดาห์ที่ 8/วันที่ 49"},{"$f":"IF(WEEKDAY(วันปฏิทิน)=WeekStartValue,CONCATENATE(\"สัปดาห์ที่ \",WEEKNUM(วันปฏิทิน),\"/วันที่ \",วันปฏิทิน-DATE(YEAR(วันปฏิทิน),1,0)),CONCATENATE(\"วันที่ \",วันปฏิทิน-DATE(YEAR(วันปฏิทิน),1,0)))","v":"วันที่ 50"},{"$f":"IF(WEEKDAY(วันปฏิทิน)=WeekStartValue,CONCATENATE(\"สัปดาห์ที่ \",WEEKNUM(วันปฏิทิน),\"/วันที่ \",วันปฏิทิน-DATE(YEAR(วันปฏิทิน),1,0)),CONCATENATE(\"วันที่ \",วันปฏิทิน-DATE(YEAR(วันปฏิทิน),1,0)))","v":"วันที่ 51"},{"$f":"IF(WEEKDAY(วันปฏิทิน)=WeekStartValue,CONCATENATE(\"สัปดาห์ที่ \",WEEKNUM(วันปฏิทิน),\"/วันที่ \",วันปฏิทิน-DATE(YEAR(วันปฏิทิน),1,0)),CONCATENATE(\"วันที่ \",วันปฏิทิน-DATE(YEAR(วันปฏิทิน),1,0)))","v":"วันที่ 52"},{"$f":"IF(WEEKDAY(วันปฏิทิน)=WeekStartValue,CONCATENATE(\"สัปดาห์ที่ \",WEEKNUM(วันปฏิทิน),\"/วันที่ \",วันปฏิทิน-DATE(YEAR(วันปฏิทิน),1,0)),CONCATENATE(\"วันที่ \",วันปฏิทิน-DATE(YEAR(วันปฏิทิน),1,0)))","v":"วันที่ 53"},{"$f":"IF(WEEKDAY(วันปฏิทิน)=WeekStartValue,CONCATENATE(\"สัปดาห์ที่ \",WEEKNUM(วันปฏิทิน),\"/วันที่ \",วันปฏิทิน-DATE(YEAR(วันปฏิทิน),1,0)),CONCATENATE(\"วันที่ \",วันปฏิทิน-DATE(YEAR(วันปฏิทิน),1,0)))","v":"วันที่ 54"},{"$f":"IF(WEEKDAY(วันปฏิทิน)=WeekStartValue,CONCATENATE(\"สัปดาห์ที่ \",WEEKNUM(วันปฏิทิน),\"/วันที่ \",วันปฏิทิน-DATE(YEAR(วันปฏิทิน),1,0)),CONCATENATE(\"วันที่ \",วันปฏิทิน-DATE(YEAR(วันปฏิทิน),1,0)))","v":"วันที่ 55"}]
[]
[null,null,{"$f":"วันและสัปดาห์+DATE(ปีปฏิทิน,2,1)-WEEKDAY(DATE(ปีปฏิทิน,2,1),(เริ่มต้นสัปดาห์=\"จ.\")+1)+29","v":"2018-02-25"},"2018-02-26","2018-02-27","2018-02-28","2018-03-01","2018-03-02","2018-03-03"]
[null,null,{"$f":"IF(WEEKDAY(วันปฏิทิน)=WeekStartValue,CONCATENATE(\"สัปดาห์ที่ \",WEEKNUM(วันปฏิทิน),\"/วันที่ \",วันปฏิทิน-DATE(YEAR(วันปฏิทิน),1,0)),CONCATENATE(\"วันที่ \",วันปฏิทิน-DATE(YEAR(วันปฏิทิน),1,0)))","v":"สัปดาห์ที่ 9/วันที่ 56"},{"$f":"IF(WEEKDAY(วันปฏิทิน)=WeekStartValue,CONCATENATE(\"สัปดาห์ที่ \",WEEKNUM(วันปฏิทิน),\"/วันที่ \",วันปฏิทิน-DATE(YEAR(วันปฏิทิน),1,0)),CONCATENATE(\"วันที่ \",วันปฏิทิน-DATE(YEAR(วันปฏิทิน),1,0)))","v":"วันที่ 57"},{"$f":"IF(WEEKDAY(วันปฏิทิน)=WeekStartValue,CONCATENATE(\"สัปดาห์ที่ \",WEEKNUM(วันปฏิทิน),\"/วันที่ \",วันปฏิทิน-DATE(YEAR(วันปฏิทิน),1,0)),CONCATENATE(\"วันที่ \",วันปฏิทิน-DATE(YEAR(วันปฏิทิน),1,0)))","v":"วันที่ 58"},{"$f":"IF(WEEKDAY(วันปฏิทิน)=WeekStartValue,CONCATENATE(\"สัปดาห์ที่ \",WEEKNUM(วันปฏิทิน),\"/วันที่ \",วันปฏิทิน-DATE(YEAR(วันปฏิทิน),1,0)),CONCATENATE(\"วันที่ \",วันปฏิทิน-DATE(YEAR(วันปฏิทิน),1,0)))","v":"วันที่ 59"},{"$f":"IF(WEEKDAY(วันปฏิทิน)=WeekStartValue,CONCATENATE(\"สัปดาห์ที่ \",WEEKNUM(วันปฏิทิน),\"/วันที่ \",วันปฏิทิน-DATE(YEAR(วันปฏิทิน),1,0)),CONCATENATE(\"วันที่ \",วันปฏิทิน-DATE(YEAR(วันปฏิทิน),1,0)))","v":"วันที่ 60"},{"$f":"IF(WEEKDAY(วันปฏิทิน)=WeekStartValue,CONCATENATE(\"สัปดาห์ที่ \",WEEKNUM(วันปฏิทิน),\"/วันที่ \",วันปฏิทิน-DATE(YEAR(วันปฏิทิน),1,0)),CONCATENATE(\"วันที่ \",วันปฏิทิน-DATE(YEAR(วันปฏิทิน),1,0)))","v":"วันที่ 61"},{"$f":"IF(WEEKDAY(วันปฏิทิน)=WeekStartValue,CONCATENATE(\"สัปดาห์ที่ \",WEEKNUM(วันปฏิทิน),\"/วันที่ \",วันปฏิทิน-DATE(YEAR(วันปฏิทิน),1,0)),CONCATENATE(\"วันที่ \",วันปฏิทิน-DATE(YEAR(วันปฏิทิน),1,0)))","v":"วันที่ 62"}]
[{"$nulls":4},"หมายเหตุ"]
[]
[null,null,{"$f":"วันและสัปดาห์+DATE(ปีปฏิทิน,2,1)-WEEKDAY(DATE(ปีปฏิทิน,2,1),(เริ่มต้นสัปดาห์=\"จ.\")+1)+36","v":"2018-03-04"},"2018-03-05"]
[null,null,{"$f":"IF(WEEKDAY(วันปฏิทิน)=WeekStartValue,CONCATENATE(\"สัปดาห์ที่ \",WEEKNUM(วันปฏิทิน),\"/วันที่ \",วันปฏิทิน-DATE(YEAR(วันปฏิทิน),1,0)),CONCATENATE(\"วันที่ \",วันปฏิทิน-DATE(YEAR(วันปฏิทิน),1,0)))","v":"สัปดาห์ที่ 10/วันที่ 63"},{"$f":"IF(WEEKDAY(วันปฏิทิน)=WeekStartValue,CONCATENATE(\"สัปดาห์ที่ \",WEEKNUM(วันปฏิทิน),\"/วันที่ \",วันปฏิทิน-DATE(YEAR(วันปฏิทิน),1,0)),CONCATENATE(\"วันที่ \",วันปฏิทิน-DATE(YEAR(วันปฏิทิน),1,0)))","v":"วันที่ 64"}]

{"sheet":"มี.ค.","index":2,"n_rows":20,"n_cols":9,"rows_kept":20,"merged":[[16,2,17,2],[17,4,19,8]]}
[null,"มี.ค.",{"$f":"UPPER(TEXT(เริ่มต้นสัปดาห์,\"ddd\"))","v":"อา."},{"$f":"UPPER(TEXT(D3,\"aaa\"))","v":"จ."},"อ.","พ.","พฤ.","ศ.","ส."]
[null,{"$f":"ปีปฏิทิน","v":2018}]
[null,null,{"$f":"วันและสัปดาห์+DATE(ปีปฏิทิน,3,1)-WEEKDAY(DATE(ปีปฏิทิน,3,1),(เริ่มต้นสัปดาห์=\"จ.\")+1)+1","v":"2018-02-25"},"2018-02-26","2018-02-27","2018-02-28","2018-03-01","2018-03-02","2018-03-03"]
[null,null,{"$f":"IF(DAY(วันปฏิทิน)=1,CONCATENATE(\"สัปดาห์ที่ \",WEEKNUM(วันปฏิทิน),\"/วันที่ \",วันปฏิทิน-DATE(YEAR(วันปฏิทิน),1,0)),CONCATENATE(\"วันที่ \",วันปฏิทิน-DATE(YEAR(วันปฏิทิน),1,0)))","v":"วันที่ 56"},{"$f":"IF(DAY(วันปฏิทิน)=1,CONCATENATE(\"สัปดาห์ที่ \",WEEKNUM(วันปฏิทิน),\"/วันที่ \",วันปฏิทิน-DATE(YEAR(วันปฏิทิน),1,0)),CONCATENATE(\"วันที่ \",วันปฏิทิน-DATE(YEAR(วันปฏิทิน),1,0)))","v":"วันที่ 57"},{"$f":"IF(DAY(วันปฏิทิน)=1,CONCATENATE(\"สัปดาห์ที่ \",WEEKNUM(วันปฏิทิน),\"/วันที่ \",วันปฏิทิน-DATE(YEAR(วันปฏิทิน),1,0)),CONCATENATE(\"วันที่ \",วันปฏิทิน-DATE(YEAR(วันปฏิทิน),1,0)))","v":"วันที่ 58"},{"$f":"IF(DAY(วันปฏิทิน)=1,CONCATENATE(\"สัปดาห์ที่ \",WEEKNUM(วันปฏิทิน),\"/วันที่ \",วันปฏิทิน-DATE(YEAR(วันปฏิทิน),1,0)),CONCATENATE(\"วันที่ \",วันปฏิทิน-DATE(YEAR(วันปฏิทิน),1,0)))","v":"วันที่ 59"},{"$f":"IF(DAY(วันปฏิทิน)=1,CONCATENATE(\"สัปดาห์ที่ \",WEEKNUM(วันปฏิทิน),\"/วันที่ \",วันปฏิทิน-DATE(YEAR(วันปฏิทิน),1,0)),CONCATENATE(\"วันที่ \",วันปฏิทิน-DATE(YEAR(วันปฏิทิน),1,0)))","v":"สัปดาห์ที่ 9/วันที่ 60"},{"$f":"IF(DAY(วันปฏิทิน)=1,CONCATENATE(\"สัปดาห์ที่ \",WEEKNUM(วันปฏิทิน),\"/วันที่ \",วันปฏิทิน-DATE(YEAR(วันปฏิทิน),1,0)),CONCATENATE(\"วันที่ \",วันปฏิทิน-DATE(YEAR(วันปฏิทิน),1,0)))","v":"วันที่ 61"},{"$f":"IF(DAY(วันปฏิทิน)=1,CONCATENATE(\"สัปดาห์ที่ \",WEEKNUM(วันปฏิทิน),\"/วันที่ \",วันปฏิทิน-DATE(YEAR(วันปฏิทิน),1,0)),CONCATENATE(\"วันที่ \",วันปฏิทิน-DATE(YEAR(วันปฏิทิน),1,0)))","v":"วันที่ 62"}]
[]
[null,null,{"$f":"วันและสัปดาห์+DATE(ปีปฏิทิน,3,1)-WEEKDAY(DATE(ปีปฏิทิน,3,1),(เริ่มต้นสัปดาห์=\"จ.\")+1)+8","v":"2018-03-04"},"2018-03-05","2018-03-06","2018-03-07","2018-03-08","2018-03-09","2018-03-10"]
[null,null,{"$f":"IF(WEEKDAY(วันปฏิทิน)=WeekStartValue,CONCATENATE(\"สัปดาห์ที่ \",WEEKNUM(วันปฏิทิน),\"/วันที่ \",วันปฏิทิน-DATE(YEAR(วันปฏิทิน),1,0)),CONCATENATE(\"วันที่ \",วันปฏิทิน-DATE(YEAR(วันปฏิทิน),1,0)))","v":"สัปดาห์ที่ 10/วันที่ 63"},{"$f":"IF(WEEKDAY(วันปฏิทิน)=WeekStartValue,CONCATENATE(\"สัปดาห์ที่ \",WEEKNUM(วันปฏิทิน),\"/วันที่ \",วันปฏิทิน-DATE(YEAR(วันปฏิทิน),1,0)),CONCATENATE(\"วันที่ \",วันปฏิทิน-DATE(YEAR(วันปฏิทิน),1,0)))","v":"วันที่ 64"},{"$f":"IF(WEEKDAY(วันปฏิทิน)=WeekStartValue,CONCATENATE(\"สัปดาห์ที่ \",WEEKNUM(วันปฏิทิน),\"/วันที่ \",วันปฏิทิน-DATE(YEAR(วันปฏิทิน),1,0)),CONCATENATE(\"วันที่ \",วันปฏิทิน-DATE(YEAR(วันปฏิทิน),1,0)))","v":"วันที่ 65"},{"$f":"IF(WEEKDAY(วันปฏิทิน)=WeekStartValue,CONCATENATE(\"สัปดาห์ที่ \",WEEKNUM(วันปฏิทิน),\"/วันที่ \",วันปฏิทิน-DATE(YEAR(วันปฏิทิน),1,0)),CONCATENATE(\"วันที่ \",วันปฏิทิน-DATE(YEAR(วันปฏิทิน),1,0)))","v":"วันที่ 66"},{"$f":"IF(WEEKDAY(วันปฏิทิน)=WeekStartValue,CONCATENATE(\"สัปดาห์ที่ \",WEEKNUM(วันปฏิทิน),\"/วันที่ \",วันปฏิทิน-DATE(YEAR(วันปฏิทิน),1,0)),CONCATENATE(\"วันที่ \",วันปฏิทิน-DATE(YEAR(วันปฏิทิน),1,0)))","v":"วันที่ 67"},{"$f":"IF(WEEKDAY(วันปฏิทิน)=WeekStartValue,CONCATENATE(\"สัปดาห์ที่ \",WEEKNUM(วันปฏิทิน),\"/วันที่ \",วันปฏิทิน-DATE(YEAR(วันปฏิทิน),1,0)),CONCATENATE(\"วันที่ \",วันปฏิทิน-DATE(YEAR(วันปฏิทิน),1,0)))","v":"วันที่ 68"},{"$f":"IF(WEEKDAY(วันปฏิทิน)=WeekStartValue,CONCATENATE(\"สัปดาห์ที่ \",WEEKNUM(วันปฏิทิน),\"/วันที่ \",วันปฏิทิน-DATE(YEAR(วันปฏิทิน),1,0)),CONCATENATE(\"วันที่ \",วันปฏิทิน-DATE(YEAR(วันปฏิทิน),1,0)))","v":"วันที่ 69"}]
[]
[null,null,{"$f":"วันและสัปดาห์+DATE(ปีปฏิทิน,3,1)-WEEKDAY(DATE(ปีปฏิทิน,3,1),(เริ่มต้นสัปดาห์=\"จ.\")+1)+15","v":"2018-03-11"},"2018-03-12","2018-03-13","2018-03-14","2018-03-15","2018-03-16","2018-03-17"]
[null,null,{"$f":"IF(WEEKDAY(วันปฏิทิน)=WeekStartValue,CONCATENATE(\"สัปดาห์ที่ \",WEEKNUM(วันปฏิทิน),\"/วันที่ \",วันปฏิทิน-DATE(YEAR(วันปฏิทิน),1,0)),CONCATENATE(\"วันที่ \",วันปฏิทิน-DATE(YEAR(วันปฏิทิน),1,0)))","v":"สัปดาห์ที่ 11/วันที่ 70"},{"$f":"IF(WEEKDAY(วันปฏิทิน)=WeekStartValue,CONCATENATE(\"สัปดาห์ที่ \",WEEKNUM(วันปฏิทิน),\"/วันที่ \",วันปฏิทิน-DATE(YEAR(วันปฏิทิน),1,0)),CONCATENATE(\"วันที่ \",วันปฏิทิน-DATE(YEAR(วันปฏิทิน),1,0)))","v":"วันที่ 71"},{"$f":"IF(WEEKDAY(วันปฏิทิน)=WeekStartValue,CONCATENATE(\"สัปดาห์ที่ \",WEEKNUM(วันปฏิทิน),\"/วันที่ \",วันปฏิทิน-DATE(YEAR(วันปฏิทิน),1,0)),CONCATENATE(\"วันที่ \",วันปฏิทิน-DATE(YEAR(วันปฏิทิน),1,0)))","v":"วันที่ 72"},{"$f":"IF(WEEKDAY(วันปฏิทิน)=WeekStartValue,CONCATENATE(\"สัปดาห์ที่ \",WEEKNUM(วันปฏิทิน),\"/วันที่ \",วันปฏิทิน-DATE(YEAR(วันปฏิทิน),1,0)),CONCATENATE(\"วันที่ \",วันปฏิทิน-DATE(YEAR(วันปฏิทิน),1,0)))","v":"วันที่ 73"},{"$f":"IF(WEEKDAY(วันปฏิทิน)=WeekStartValue,CONCATENATE(\"สัปดาห์ที่ \",WEEKNUM(วันปฏิทิน),\"/วันที่ \",วันปฏิทิน-DATE(YEAR(วันปฏิทิน),1,0)),CONCATENATE(\"วันที่ \",วันปฏิทิน-DATE(YEAR(วันปฏิทิน),1,0)))","v":"วันที่ 74"},{"$f":"IF(WEEKDAY(วันปฏิทิน)=WeekStartValue,CONCATENATE(\"สัปดาห์ที่ \",WEEKNUM(วันปฏิทิน),\"/วันที่ \",วันปฏิทิน-DATE(YEAR(วันปฏิทิน),1,0)),CONCATENATE(\"วันที่ \",วันปฏิทิน-DATE(YEAR(วันปฏิทิน),1,0)))","v":"วันที่ 75"},{"$f":"IF(WEEKDAY(วันปฏิทิน)=WeekStartValue,CONCATENATE(\"สัปดาห์ที่ \",WEEKNUM(วันปฏิทิน),\"/วันที่ \",วันปฏิทิน-DATE(YEAR(วันปฏิทิน),1,0)),CONCATENATE(\"วันที่ \",วันปฏิทิน-DATE(YEAR(วันปฏิทิน),1,0)))","v":"วันที่ 76"}]
[]
[null,null,{"$f":"วันและสัปดาห์+DATE(ปีปฏิทิน,3,1)-WEEKDAY(DATE(ปีปฏิทิน,3,1),(เริ่มต้นสัปดาห์=\"จ.\")+1)+22","v":"2018-03-18"},"2018-03-19","2018-03-20","2018-03-21","2018-03-22","2018-03-23","2018-03-24"]
[null,null,{"$f":"IF(WEEKDAY(วันปฏิทิน)=WeekStartValue,CONCATENATE(\"สัปดาห์ที่ \",WEEKNUM(วันปฏิทิน),\"/วันที่ \",วันปฏิทิน-DATE(YEAR(วันปฏิทิน),1,0)),CONCATENATE(\"วันที่ \",วันปฏิทิน-DATE(YEAR(วันปฏิทิน),1,0)))","v":"สัปดาห์ที่ 12/วันที่ 77"},{"$f":"IF(WEEKDAY(วันปฏิทิน)=WeekStartValue,CONCATENATE(\"สัปดาห์ที่ \",WEEKNUM(วันปฏิทิน),\"/วันที่ \",วันปฏิทิน-DATE(YEAR(วันปฏิทิน),1,0)),CONCATENATE(\"วันที่ \",วันปฏิทิน-DATE(YEAR(วันปฏิทิน),1,0)))","v":"วันที่ 78"},{"$f":"IF(WEEKDAY(วันปฏิทิน)=WeekStartValue,CONCATENATE(\"สัปดาห์ที่ \",WEEKNUM(วันปฏิทิน),\"/วันที่ \",วันปฏิทิน-DATE(YEAR(วันปฏิทิน),1,0)),CONCATENATE(\"วันที่ \",วันปฏิทิน-DATE(YEAR(วันปฏิทิน),1,0)))","v":"วันที่ 79"},{"$f":"IF(WEEKDAY(วันปฏิทิน)=WeekStartValue,CONCATENATE(\"สัปดาห์ที่ \",WEEKNUM(วันปฏิทิน),\"/วันที่ \",วันปฏิทิน-DATE(YEAR(วันปฏิทิน),1,0)),CONCATENATE(\"วันที่ \",วันปฏิทิน-DATE(YEAR(วันปฏิทิน),1,0)))","v":"วันที่ 80"},{"$f":"IF(WEEKDAY(วันปฏิทิน)=WeekStartValue,CONCATENATE(\"สัปดาห์ที่ \",WEEKNUM(วันปฏิทิน),\"/วันที่ \",วันปฏิทิน-DATE(YEAR(วันปฏิทิน),1,0)),CONCATENATE(\"วันที่ \",วันปฏิทิน-DATE(YEAR(วันปฏิทิน),1,0)))","v":"วันที่ 81"},{"$f":"IF(WEEKDAY(วันปฏิทิน)=WeekStartValue,CONCATENATE(\"สัปดาห์ที่ \",WEEKNUM(วันปฏิทิน),\"/วันที่ \",วันปฏิทิน-DATE(YEAR(วันปฏิทิน),1,0)),CONCATENATE(\"วันที่ \",วันปฏิทิน-DATE(YEAR(วันปฏิทิน),1,0)))","v":"วันที่ 82"},{"$f":"IF(WEEKDAY(วันปฏิทิน)=WeekStartValue,CONCATENATE(\"สัปดาห์ที่ \",WEEKNUM(วันปฏิทิน),\"/วันที่ \",วันปฏิทิน-DATE(YEAR(วันปฏิทิน),1,0)),CONCATENATE(\"วันที่ \",วันปฏิทิน-DATE(YEAR(วันปฏิทิน),1,0)))","v":"วันที่ 83"}]
[]
[null,null,{"$f":"วันและสัปดาห์+DATE(ปีปฏิทิน,3,1)-WEEKDAY(DATE(ปีปฏิทิน,3,1),(เริ่มต้นสัปดาห์=\"จ.\")+1)+29","v":"2018-03-25"},"2018-03-26","2018-03-27","2018-03-28","2018-03-29","2018-03-30","2018-03-31"]
[null,null,{"$f":"IF(WEEKDAY(วันปฏิทิน)=WeekStartValue,CONCATENATE(\"สัปดาห์ที่ \",WEEKNUM(วันปฏิทิน),\"/วันที่ \",วันปฏิทิน-DATE(YEAR(วันปฏิทิน),1,0)),CONCATENATE(\"วันที่ \",วันปฏิทิน-DATE(YEAR(วันปฏิทิน),1,0)))","v":"สัปดาห์ที่ 13/วันที่ 84"},{"$f":"IF(WEEKDAY(วันปฏิทิน)=WeekStartValue,CONCATENATE(\"สัปดาห์ที่ \",WEEKNUM(วันปฏิทิน),\"/วันที่ \",วันปฏิทิน-DATE(YEAR(วันปฏิทิน),1,0)),CONCATENATE(\"วันที่ \",วันปฏิทิน-DATE(YEAR(วันปฏิทิน),1,0)))","v":"วันที่ 85"},{"$f":"IF(WEEKDAY(วันปฏิทิน)=WeekStartValue,CONCATENATE(\"สัปดาห์ที่ \",WEEKNUM(วันปฏิทิน),\"/วันที่ \",วันปฏิทิน-DATE(YEAR(วันปฏิทิน),1,0)),CONCATENATE(\"วันที่ \",วันปฏิทิน-DATE(YEAR(วันปฏิทิน),1,0)))","v":"วันที่ 86"},{"$f":"IF(WEEKDAY(วันปฏิทิน)=WeekStartValue,CONCATENATE(\"สัปดาห์ที่ \",WEEKNUM(วันปฏิทิน),\"/วันที่ \",วันปฏิทิน-DATE(YEAR(วันปฏิทิน),1,0)),CONCATENATE(\"วันที่ \",วันปฏิทิน-DATE(YEAR(วันปฏิทิน),1,0)))","v":"วันที่ 87"},{"$f":"IF(WEEKDAY(วันปฏิทิน)=WeekStartValue,CONCATENATE(\"สัปดาห์ที่ \",WEEKNUM(วันปฏิทิน),\"/วันที่ \",วันปฏิทิน-DATE(YEAR(วันปฏิทิน),1,0)),CONCATENATE(\"วันที่ \",วันปฏิทิน-DATE(YEAR(วันปฏิทิน),1,0)))","v":"วันที่ 88"},{"$f":"IF(WEEKDAY(วันปฏิทิน)=WeekStartValue,CONCATENATE(\"สัปดาห์ที่ \",WEEKNUM(วันปฏิทิน),\"/วันที่ \",วันปฏิทิน-DATE(YEAR(วันปฏิทิน),1,0)),CONCATENATE(\"วันที่ \",วันปฏิทิน-DATE(YEAR(วันปฏิทิน),1,0)))","v":"วันที่ 89"},{"$f":"IF(WEEKDAY(วันปฏิทิน)=WeekStartValue,CONCATENATE(\"สัปดาห์ที่ \",WEEKNUM(วันปฏิทิน),\"/วันที่ \",วันปฏิทิน-DATE(YEAR(วันปฏิทิน),1,0)),CONCATENATE(\"วันที่ \",วันปฏิทิน-DATE(YEAR(วันปฏิทิน),1,0)))","v":"วันที่ 90"}]
[{"$nulls":4},"หมายเหตุ"]
[]
[null,null,{"$f":"วันและสัปดาห์+DATE(ปีปฏิทิน,3,1)-WEEKDAY(DATE(ปีปฏิทิน,3,1),(เริ่มต้นสัปดาห์=\"จ.\")+1)+36","v":"2018-04-01"},"2018-04-02"]
[null,null,{"$f":"IF(WEEKDAY(วันปฏิทิน)=WeekStartValue,CONCATENATE(\"สัปดาห์ที่ \",WEEKNUM(วันปฏิทิน),\"/วันที่ \",วันปฏิทิน-DATE(YEAR(วันปฏิทิน),1,0)),CONCATENATE(\"วันที่ \",วันปฏิทิน-DATE(YEAR(วันปฏิทิน),1,0)))","v":"สัปดาห์ที่ 14/วันที่ 91"},{"$f":"IF(WEEKDAY(วันปฏิทิน)=WeekStartValue,CONCATENATE(\"สัปดาห์ที่ \",WEEKNUM(วันปฏิทิน),\"/วันที่ \",วันปฏิทิน-DATE(YEAR(วันปฏิทิน),1,0)),CONCATENATE(\"วันที่ \",วันปฏิทิน-DATE(YEAR(วันปฏิทิน),1,0)))","v":"วันที่ 92"}]

{"sheet":"เม.ย.","index":3,"n_rows":20,"n_cols":9,"rows_kept":20,"merged":[[16,2,17,2],[17,4,19,8]]}
[null,"เม.ย.",{"$f":"UPPER(TEXT(เริ่มต้นสัปดาห์,\"ddd\"))","v":"อา."},{"$f":"UPPER(TEXT(D3,\"aaa\"))","v":"จ."},"อ.","พ.","พฤ.","ศ.","ส."]
[null,{"$f":"ปีปฏิทิน","v":2018}]
[null,null,{"$f":"วันและสัปดาห์+DATE(ปีปฏิทิน,4,1)-WEEKDAY(DATE(ปีปฏิทิน,4,1),(เริ่มต้นสัปดาห์=\"จ.\")+1)+1","v":"2018-04-01"},"2018-04-02","2018-04-03","2018-04-04","2018-04-05","2018-04-06","2018-04-07"]
[null,null,{"$f":"IF(DAY(วันปฏิทิน)=1,CONCATENATE(\"สัปดาห์ที่ \",WEEKNUM(วันปฏิทิน),\"/วันที่ \",วันปฏิทิน-DATE(YEAR(วันปฏิทิน),1,0)),CONCATENATE(\"วันที่ \",วันปฏิทิน-DATE(YEAR(วันปฏิทิน),1,0)))","v":"สัปดาห์ที่ 14/วันที่ 91"},{"$f":"IF(DAY(วันปฏิทิน)=1,CONCATENATE(\"สัปดาห์ที่ \",WEEKNUM(วันปฏิทิน),\"/วันที่ \",วันปฏิทิน-DATE(YEAR(วันปฏิทิน),1,0)),CONCATENATE(\"วันที่ \",วันปฏิทิน-DATE(YEAR(วันปฏิทิน),1,0)))","v":"วันที่ 92"},{"$f":"IF(DAY(วันปฏิทิน)=1,CONCATENATE(\"สัปดาห์ที่ \",WEEKNUM(วันปฏิทิน),\"/วันที่ \",วันปฏิทิน-DATE(YEAR(วันปฏิทิน),1,0)),CONCATENATE(\"วันที่ \",วันปฏิทิน-DATE(YEAR(วันปฏิทิน),1,0)))","v":"วันที่ 93"},{"$f":"IF(DAY(วันปฏิทิน)=1,CONCATENATE(\"สัปดาห์ที่ \",WEEKNUM(วันปฏิทิน),\"/วันที่ \",วันปฏิทิน-DATE(YEAR(วันปฏิทิน),1,0)),CONCATENATE(\"วันที่ \",วันปฏิทิน-DATE(YEAR(วันปฏิทิน),1,0)))","v":"วันที่ 94"},{"$f":"IF(DAY(วันปฏิทิน)=1,CONCATENATE(\"สัปดาห์ที่ \",WEEKNUM(วันปฏิทิน),\"/วันที่ \",วันปฏิทิน-DATE(YEAR(วันปฏิทิน),1,0)),CONCATENATE(\"วันที่ \",วันปฏิทิน-DATE(YEAR(วันปฏิทิน),1,0)))","v":"วันที่ 95"},{"$f":"IF(DAY(วันปฏิทิน)=1,CONCATENATE(\"สัปดาห์ที่ \",WEEKNUM(วันปฏิทิน),\"/วันที่ \",วันปฏิทิน-DATE(YEAR(วันปฏิทิน),1,0)),CONCATENATE(\"วันที่ \",วันปฏิทิน-DATE(YEAR(วันปฏิทิน),1,0)))","v":"วันที่ 96"},{"$f":"IF(DAY(วันปฏิทิน)=1,CONCATENATE(\"สัปดาห์ที่ \",WEEKNUM(วันปฏิทิน),\"/วันที่ \",วันปฏิทิน-DATE(YEAR(วันปฏิทิน),1,0)),CONCATENATE(\"วันที่ \",วันปฏิทิน-DATE(YEAR(วันปฏิทิน),1,0)))","v":"วันที่ 97"}]
[]
[null,null,{"$f":"วันและสัปดาห์+DATE(ปีปฏิทิน,4,1)-WEEKDAY(DATE(ปีปฏิทิน,4,1),(เริ่มต้นสัปดาห์=\"จ.\")+1)+8","v":"2018-04-08"},"2018-04-09","2018-04-10","2018-04-11","2018-04-12","2018-04-13","2018-04-14"]
[null,null,{"$f":"IF(WEEKDAY(วันปฏิทิน)=WeekStartValue,CONCATENATE(\"สัปดาห์ที่ \",WEEKNUM(วันปฏิทิน),\"/วันที่ \",วันปฏิทิน-DATE(YEAR(วันปฏิทิน),1,0)),CONCATENATE(\"วันที่ \",วันปฏิทิน-DATE(YEAR(วันปฏิทิน),1,0)))","v":"สัปดาห์ที่ 15/วันที่ 98"},{"$f":"IF(WEEKDAY(วันปฏิทิน)=WeekStartValue,CONCATENATE(\"สัปดาห์ที่ \",WEEKNUM(วันปฏิทิน),\"/วันที่ \",วันปฏิทิน-DATE(YEAR(วันปฏิทิน),1,0)),CONCATENATE(\"วันที่ \",วันปฏิทิน-DATE(YEAR(วันปฏิทิน),1,0)))","v":"วันที่ 99"},{"$f":"IF(WEEKDAY(วันปฏิทิน)=WeekStartValue,CONCATENATE(\"สัปดาห์ที่ \",WEEKNUM(วันปฏิทิน),\"/วันที่ \",วันปฏิทิน-DATE(YEAR(วันปฏิทิน),1,0)),CONCATENATE(\"วันที่ \",วันปฏิทิน-DATE(YEAR(วันปฏิทิน),1,0)))","v":"วันที่ 100"},{"$f":"IF(WEEKDAY(วันปฏิทิน)=WeekStartValue,CONCATENATE(\"สัปดาห์ที่ \",WEEKNUM(วันปฏิทิน),\"/วันที่ \",วันปฏิทิน-DATE(YEAR(วันปฏิทิน),1,0)),CONCATENATE(\"วันที่ \",วันปฏิทิน-DATE(YEAR(วันปฏิทิน),1,0)))","v":"วันที่ 101"},{"$f":"IF(WEEKDAY(วันปฏิทิน)=WeekStartValue,CONCATENATE(\"สัปดาห์ที่ \",WEEKNUM(วันปฏิทิน),\"/วันที่ \",วันปฏิทิน-DATE(YEAR(วันปฏิทิน),1,0)),CONCATENATE(\"วันที่ \",วันปฏิทิน-DATE(YEAR(วันปฏิทิน),1,0)))","v":"วันที่ 102"},{"$f":"IF(WEEKDAY(วันปฏิทิน)=WeekStartValue,CONCATENATE(\"สัปดาห์ที่ \",WEEKNUM(วันปฏิทิน),\"/วันที่ \",วันปฏิทิน-DATE(YEAR(วันปฏิทิน),1,0)),CONCATENATE(\"วันที่ \",วันปฏิทิน-DATE(YEAR(วันปฏิทิน),1,0)))","v":"วันที่ 103"},{"$f":"IF(WEEKDAY(วันปฏิทิน)=WeekStartValue,CONCATENATE(\"สัปดาห์ที่ \",WEEKNUM(วันปฏิทิน),\"/วันที่ \",วันปฏิทิน-DATE(YEAR(วันปฏิทิน),1,0)),CONCATENATE(\"วันที่ \",วันปฏิทิน-DATE(YEAR(วันปฏิทิน),1,0)))","v":"วันที่ 104"}]
[]
[null,null,{"$f":"วันและสัปดาห์+DATE(ปีปฏิทิน,4,1)-WEEKDAY(DATE(ปีปฏิทิน,4,1),(เริ่มต้นสัปดาห์=\"จ.\")+1)+15","v":"2018-04-15"},"2018-04-16","2018-04-17","2018-04-18","2018-04-19","2018-04-20","2018-04-21"]
[null,null,{"$f":"IF(WEEKDAY(วันปฏิทิน)=WeekStartValue,CONCATENATE(\"สัปดาห์ที่ \",WEEKNUM(วันปฏิทิน),\"/วันที่ \",วันปฏิทิน-DATE(YEAR(วันปฏิทิน),1,0)),CONCATENATE(\"วันที่ \",วันปฏิทิน-DATE(YEAR(วันปฏิทิน),1,0)))","v":"สัปดาห์ที่ 16/วันที่ 105"},{"$f":"IF(WEEKDAY(วันปฏิทิน)=WeekStartValue,CONCATENATE(\"สัปดาห์ที่ \",WEEKNUM(วันปฏิทิน),\"/วันที่ \",วันปฏิทิน-DATE(YEAR(วันปฏิทิน),1,0)),CONCATENATE(\"วันที่ \",วันปฏิทิน-DATE(YEAR(วันปฏิทิน),1,0)))","v":"วันที่ 106"},{"$f":"IF(WEEKDAY(วันปฏิทิน)=WeekStartValue,CONCATENATE(\"สัปดาห์ที่ \",WEEKNUM(วันปฏิทิน),\"/วันที่ \",วันปฏิทิน-DATE(YEAR(วันปฏิทิน),1,0)),CONCATENATE(\"วันที่ \",วันปฏิทิน-DATE(YEAR(วันปฏิทิน),1,0)))","v":"วันที่ 107"},{"$f":"IF(WEEKDAY(วันปฏิทิน)=WeekStartValue,CONCATENATE(\"สัปดาห์ที่ \",WEEKNUM(วันปฏิทิน),\"/วันที่ \",วันปฏิทิน-DATE(YEAR(วันปฏิทิน),1,0)),CONCATENATE(\"วันที่ \",วันปฏิทิน-DATE(YEAR(วันปฏิทิน),1,0)))","v":"วันที่ 108"},{"$f":"IF(WEEKDAY(วันปฏิทิน)=WeekStartValue,CONCATENATE(\"สัปดาห์ที่ \",WEEKNUM(วันปฏิทิน),\"/วันที่ \",วันปฏิทิน-DATE(YEAR(วันปฏิทิน),1,0)),CONCATENATE(\"วันที่ \",วันปฏิทิน-DATE(YEAR(วันปฏิทิน),1,0)))","v":"วันที่ 109"},{"$f":"IF(WEEKDAY(วันปฏิทิน)=WeekStartValue,CONCATENATE(\"สัปดาห์ที่ \",WEEKNUM(วันปฏิทิน),\"/วันที่ \",วันปฏิทิน-DATE(YEAR(วันปฏิทิน),1,0)),CONCATENATE(\"วันที่ \",วันปฏิทิน-DATE(YEAR(วันปฏิทิน),1,0)))","v":"วันที่ 110"},{"$f":"IF(WEEKDAY(วันปฏิทิน)=WeekStartValue,CONCATENATE(\"สัปดาห์ที่ \",WEEKNUM(วันปฏิทิน),\"/วันที่ \",วันปฏิทิน-DATE(YEAR(วันปฏิทิน),1,0)),CONCATENATE(\"วันที่ \",วันปฏิทิน-DATE(YEAR(วันปฏิทิน),1,0)))","v":"วันที่ 111"}]
[]
[null,null,{"$f":"วันและสัปดาห์+DATE(ปีปฏิทิน,4,1)-WEEKDAY(DATE(ปีปฏิทิน,4,1),(เริ่มต้นสัปดาห์=\"จ.\")+1)+22","v":"2018-04-22"},"2018-04-23","2018-04-24","2018-04-25","2018-04-26","2018-04-27","2018-04-28"]
[null,null,{"$f":"IF(WEEKDAY(วันปฏิทิน)=WeekStartValue,CONCATENATE(\"สัปดาห์ที่ \",WEEKNUM(วันปฏิทิน),\"/วันที่ \",วันปฏิทิน-DATE(YEAR(วันปฏิทิน),1,0)),CONCATENATE(\"วันที่ \",วันปฏิทิน-DATE(YEAR(วันปฏิทิน),1,0)))","v":"สัปดาห์ที่ 17/วันที่ 112"},{"$f":"IF(WEEKDAY(วันปฏิทิน)=WeekStartValue,CONCATENATE(\"สัปดาห์ที่ \",WEEKNUM(วันปฏิทิน),\"/วันที่ \",วันปฏิทิน-DATE(YEAR(วันปฏิทิน),1,0)),CONCATENATE(\"วันที่ \",วันปฏิทิน-DATE(YEAR(วันปฏิทิน),1,0)))","v":"วันที่ 113"},{"$f":"IF(WEEKDAY(วันปฏิทิน)=WeekStartValue,CONCATENATE(\"สัปดาห์ที่ \",WEEKNUM(วันปฏิทิน),\"/วันที่ \",วันปฏิทิน-DATE(YEAR(วันปฏิทิน),1,0)),CONCATENATE(\"วันที่ \",วันปฏิทิน-DATE(YEAR(วันปฏิทิน),1,0)))","v":"วันที่ 114"},{"$f":"IF(WEEKDAY(วันปฏิทิน)=WeekStartValue,CONCATENATE(\"สัปดาห์ที่ \",WEEKNUM(วันปฏิทิน),\"/วันที่ \",วันปฏิทิน-DATE(YEAR(วันปฏิทิน),1,0)),CONCATENATE(\"วันที่ \",วันปฏิทิน-DATE(YEAR(วันปฏิทิน),1,0)))","v":"วันที่ 115"},{"$f":"IF(WEEKDAY(วันปฏิทิน)=WeekStartValue,CONCATENATE(\"สัปดาห์ที่ \",WEEKNUM(วันปฏิทิน),\"/วันที่ \",วันปฏิทิน-DATE(YEAR(วันปฏิทิน),1,0)),CONCATENATE(\"วันที่ \",วันปฏิทิน-DATE(YEAR(วันปฏิทิน),1,0)))","v":"วันที่ 116"},{"$f":"IF(WEEKDAY(วันปฏิทิน)=WeekStartValue,CONCATENATE(\"สัปดาห์ที่ \",WEEKNUM(วันปฏิทิน),\"/วันที่ \",วันปฏิทิน-DATE(YEAR(วันปฏิทิน),1,0)),CONCATENATE(\"วันที่ \",วันปฏิทิน-DATE(YEAR(วันปฏิทิน),1,0)))","v":"วันที่ 117"},{"$f":"IF(WEEKDAY(วันปฏิทิน)=WeekStartValue,CONCATENATE(\"สัปดาห์ที่ \",WEEKNUM(วันปฏิทิน),\"/วันที่ \",วันปฏิทิน-DATE(YEAR(วันปฏิทิน),1,0)),CONCATENATE(\"วันที่ \",วันปฏิทิน-DATE(YEAR(วันปฏิทิน),1,0)))","v":"วันที่ 118"}]
[]
[null,null,{"$f":"วันและสัปดาห์+DATE(ปีปฏิทิน,4,1)-WEEKDAY(DATE(ปีปฏิทิน,4,1),(เริ่มต้นสัปดาห์=\"จ.\")+1)+29","v":"2018-04-29"},"2018-04-30","2018-05-01","2018-05-02","2018-05-03","2018-05-04","2018-05-05"]
[null,null,{"$f":"IF(WEEKDAY(วันปฏิทิน)=WeekStartValue,CONCATENATE(\"สัปดาห์ที่ \",WEEKNUM(วันปฏิทิน),\"/วันที่ \",วันปฏิทิน-DATE(YEAR(วันปฏิทิน),1,0)),CONCATENATE(\"วันที่ \",วันปฏิทิน-DATE(YEAR(วันปฏิทิน),1,0)))","v":"สัปดาห์ที่ 18/วันที่ 119"},{"$f":"IF(WEEKDAY(วันปฏิทิน)=WeekStartValue,CONCATENATE(\"สัปดาห์ที่ \",WEEKNUM(วันปฏิทิน),\"/วันที่ \",วันปฏิทิน-DATE(YEAR(วันปฏิทิน),1,0)),CONCATENATE(\"วันที่ \",วันปฏิทิน-DATE(YEAR(วันปฏิทิน),1,0)))","v":"วันที่ 120"},{"$f":"IF(WEEKDAY(วันปฏิทิน)=WeekStartValue,CONCATENATE(\"สัปดาห์ที่ \",WEEKNUM(วันปฏิทิน),\"/วันที่ \",วันปฏิทิน-DATE(YEAR(วันปฏิทิน),1,0)),CONCATENATE(\"วันที่ \",วันปฏิทิน-DATE(YEAR(วันปฏิทิน),1,0)))","v":"วันที่ 121"},{"$f":"IF(WEEKDAY(วันปฏิทิน)=WeekStartValue,CONCATENATE(\"สัปดาห์ที่ \",WEEKNUM(วันปฏิทิน),\"/วันที่ \",วันปฏิทิน-DATE(YEAR(วันปฏิทิน),1,0)),CONCATENATE(\"วันที่ \",วันปฏิทิน-DATE(YEAR(วันปฏิทิน),1,0)))","v":"วันที่ 122"},{"$f":"IF(WEEKDAY(วันปฏิทิน)=WeekStartValue,CONCATENATE(\"สัปดาห์ที่ \",WEEKNUM(วันปฏิทิน),\"/วันที่ \",วันปฏิทิน-DATE(YEAR(วันปฏิทิน),1,0)),CONCATENATE(\"วันที่ \",วันปฏิทิน-DATE(YEAR(วันปฏิทิน),1,0)))","v":"วันที่ 123"},{"$f":"IF(WEEKDAY(วันปฏิทิน)=WeekStartValue,CONCATENATE(\"สัปดาห์ที่ \",WEEKNUM(วันปฏิทิน),\"/วันที่ \",วันปฏิทิน-DATE(YEAR(วันปฏิทิน),1,0)),CONCATENATE(\"วันที่ \",วันปฏิทิน-DATE(YEAR(วันปฏิทิน),1,0)))","v":"วันที่ 124"},{"$f":"IF(WEEKDAY(วันปฏิทิน)=WeekStartValue,CONCATENATE(\"สัปดาห์ที่ \",WEEKNUM(วันปฏิทิน),\"/วันที่ \",วันปฏิทิน-DATE(YEAR(วันปฏิทิน),1,0)),CONCATENATE(\"วันที่ \",วันปฏิทิน-DATE(YEAR(วันปฏิทิน),1,0)))","v":"วันที่ 125"}]
[{"$nulls":4},"หมายเหตุ"]
[]
[null,null,{"$f":"วันและสัปดาห์+DATE(ปีปฏิทิน,4,1)-WEEKDAY(DATE(ปีปฏิทิน,4,1),(เริ่มต้นสัปดาห์=\"จ.\")+1)+36","v":"2018-05-06"},"2018-05-07"]
[null,null,{"$f":"IF(WEEKDAY(วันปฏิทิน)=WeekStartValue,CONCATENATE(\"สัปดาห์ที่ \",WEEKNUM(วันปฏิทิน),\"/วันที่ \",วันปฏิทิน-DATE(YEAR(วันปฏิทิน),1,0)),CONCATENATE(\"วันที่ \",วันปฏิทิน-DATE(YEAR(วันปฏิทิน),1,0)))","v":"สัปดาห์ที่ 19/วันที่ 126"},{"$f":"IF(WEEKDAY(วันปฏิทิน)=WeekStartValue,CONCATENATE(\"สัปดาห์ที่ \",WEEKNUM(วันปฏิทิน),\"/วันที่ \",วันปฏิทิน-DATE(YEAR(วันปฏิทิน),1,0)),CONCATENATE(\"วันที่ \",วันปฏิทิน-DATE(YEAR(วันปฏิทิน),1,0)))","v":"วันที่ 127"}]

{"sheet":"พ.ค.","index":4,"n_rows":20,"n_cols":9,"rows_kept":20,"merged":[[16,2,17,2],[17,4,19,8]]}
[null,"พ.ค.",{"$f":"UPPER(TEXT(เริ่มต้นสัปดาห์,\"ddd\"))","v":"อา."},{"$f":"UPPER(TEXT(D3,\"aaa\"))","v":"จ."},"อ.","พ.","พฤ.","ศ.","ส."]
[null,{"$f":"ปีปฏิทิน","v":2018}]
[null,null,{"$f":"วันและสัปดาห์+DATE(ปีปฏิทิน,5,1)-WEEKDAY(DATE(ปีปฏิทิน,5,1),(เริ่มต้นสัปดาห์=\"จ.\")+1)+1","v":"2018-04-29"},"2018-04-30","2018-05-01","2018-05-02","2018-05-03","2018-05-04","2018-05-05"]
[null,null,{"$f":"IF(DAY(วันปฏิทิน)=1,CONCATENATE(\"สัปดาห์ที่ \",WEEKNUM(วันปฏิทิน),\"/วันที่ \",วันปฏิทิน-DATE(YEAR(วันปฏิทิน),1,0)),CONCATENATE(\"วันที่ \",วันปฏิทิน-DATE(YEAR(วันปฏิทิน),1,0)))","v":"วันที่ 119"},{"$f":"IF(DAY(วันปฏิทิน)=1,CONCATENATE(\"สัปดาห์ที่ \",WEEKNUM(วันปฏิทิน),\"/วันที่ \",วันปฏิทิน-DATE(YEAR(วันปฏิทิน),1,0)),CONCATENATE(\"วันที่ \",วันปฏิทิน-DATE(YEAR(วันปฏิทิน),1,0)))","v":"วันที่ 120"},{"$f":"IF(DAY(วันปฏิทิน)=1,CONCATENATE(\"สัปดาห์ที่ \",WEEKNUM(วันปฏิทิน),\"/วันที่ \",วันปฏิทิน-DATE(YEAR(วันปฏิทิน),1,0)),CONCATENATE(\"วันที่ \",วันปฏิทิน-DATE(YEAR(วันปฏิทิน),1,0)))","v":"สัปดาห์ที่ 18/วันที่ 121"},{"$f":"IF(DAY(วันปฏิทิน)=1,CONCATENATE(\"สัปดาห์ที่ \",WEEKNUM(วันปฏิทิน),\"/วันที่ \",วันปฏิทิน-DATE(YEAR(วันปฏิทิน),1,0)),CONCATENATE(\"วันที่ \",วันปฏิทิน-DATE(YEAR(วันปฏิทิน),1,0)))","v":"วันที่ 122"},{"$f":"IF(DAY(วันปฏิทิน)=1,CONCATENATE(\"สัปดาห์ที่ \",WEEKNUM(วันปฏิทิน),\"/วันที่ \",วันปฏิทิน-DATE(YEAR(วันปฏิทิน),1,0)),CONCATENATE(\"วันที่ \",วันปฏิทิน-DATE(YEAR(วันปฏิทิน),1,0)))","v":"วันที่ 123"},{"$f":"IF(DAY(วันปฏิทิน)=1,CONCATENATE(\"สัปดาห์ที่ \",WEEKNUM(วันปฏิทิน),\"/วันที่ \",วันปฏิทิน-DATE(YEAR(วันปฏิทิน),1,0)),CONCATENATE(\"วันที่ \",วันปฏิทิน-DATE(YEAR(วันปฏิทิน),1,0)))","v":"วันที่ 124"},{"$f":"IF(DAY(วันปฏิทิน)=1,CONCATENATE(\"สัปดาห์ที่ \",WEEKNUM(วันปฏิทิน),\"/วันที่ \",วันปฏิทิน-DATE(YEAR(วันปฏิทิน),1,0)),CONCATENATE(\"วันที่ \",วันปฏิทิน-DATE(YEAR(วันปฏิทิน),1,0)))","v":"วันที่ 125"}]
[]
[null,null,{"$f":"วันและสัปดาห์+DATE(ปีปฏิทิน,5,1)-WEEKDAY(DATE(ปีปฏิทิน,5,1),(เริ่มต้นสัปดาห์=\"จ.\")+1)+8","v":"2018-05-06"},"2018-05-07","2018-05-08","2018-05-09","2018-05-10","2018-05-11","2018-05-12"]
[null,null,{"$f":"IF(WEEKDAY(วันปฏิทิน)=WeekStartValue,CONCATENATE(\"สัปดาห์ที่ \",WEEKNUM(วันปฏิทิน),\"/วันที่ \",วันปฏิทิน-DATE(YEAR(วันปฏิทิน),1,0)),CONCATENATE(\"วันที่ \",วันปฏิทิน-DATE(YEAR(วันปฏิทิน),1,0)))","v":"สัปดาห์ที่ 19/วันที่ 126"},{"$f":"IF(WEEKDAY(วันปฏิทิน)=WeekStartValue,CONCATENATE(\"สัปดาห์ที่ \",WEEKNUM(วันปฏิทิน),\"/วันที่ \",วันปฏิทิน-DATE(YEAR(วันปฏิทิน),1,0)),CONCATENATE(\"วันที่ \",วันปฏิทิน-DATE(YEAR(วันปฏิทิน),1,0)))","v":"วันที่ 127"},{"$f":"IF(WEEKDAY(วันปฏิทิน)=WeekStartValue,CONCATENATE(\"สัปดาห์ที่ \",WEEKNUM(วันปฏิทิน),\"/วันที่ \",วันปฏิทิน-DATE(YEAR(วันปฏิทิน),1,0)),CONCATENATE(\"วันที่ \",วันปฏิทิน-DATE(YEAR(วันปฏิทิน),1,0)))","v":"วันที่ 128"},{"$f":"IF(WEEKDAY(วันปฏิทิน)=WeekStartValue,CONCATENATE(\"สัปดาห์ที่ \",WEEKNUM(วันปฏิทิน),\"/วันที่ \",วันปฏิทิน-DATE(YEAR(วันปฏิทิน),1,0)),CONCATENATE(\"วันที่ \",วันปฏิทิน-DATE(YEAR(วันปฏิทิน),1,0)))","v":"วันที่ 129"},{"$f":"IF(WEEKDAY(วันปฏิทิน)=WeekStartValue,CONCATENATE(\"สัปดาห์ที่ \",WEEKNUM(วันปฏิทิน),\"/วันที่ \",วันปฏิทิน-DATE(YEAR(วันปฏิทิน),1,0)),CONCATENATE(\"วันที่ \",วันปฏิทิน-DATE(YEAR(วันปฏิทิน),1,0)))","v":"วันที่ 130"},{"$f":"IF(WEEKDAY(วันปฏิทิน)=WeekStartValue,CONCATENATE(\"สัปดาห์ที่ \",WEEKNUM(วันปฏิทิน),\"/วันที่ \",วันปฏิทิน-DATE(YEAR(วันปฏิทิน),1,0)),CONCATENATE(\"วันที่ \",วันปฏิทิน-DATE(YEAR(วันปฏิทิน),1,0)))","v":"วันที่ 131"},{"$f":"IF(WEEKDAY(วันปฏิทิน)=WeekStartValue,CONCATENATE(\"สัปดาห์ที่ \",WEEKNUM(วันปฏิทิน),\"/วันที่ \",วันปฏิทิน-DATE(YEAR(วันปฏิทิน),1,0)),CONCATENATE(\"วันที่ \",วันปฏิทิน-DATE(YEAR(วันปฏิทิน),1,0)))","v":"วันที่ 132"}]
[]
[null,null,{"$f":"วันและสัปดาห์+DATE(ปีปฏิทิน,5,1)-WEEKDAY(DATE(ปีปฏิทิน,5,1),(เริ่มต้นสัปดาห์=\"จ.\")+1)+15","v":"2018-05-13"},"2018-05-14","2018-05-15","2018-05-16","2018-05-17","2018-05-18","2018-05-19"]
[null,null,{"$f":"IF(WEEKDAY(วันปฏิทิน)=WeekStartValue,CONCATENATE(\"สัปดาห์ที่ \",WEEKNUM(วันปฏิทิน),\"/วันที่ \",วันปฏิทิน-DATE(YEAR(วันปฏิทิน),1,0)),CONCATENATE(\"วันที่ \",วันปฏิทิน-DATE(YEAR(วันปฏิทิน),1,0)))","v":"สัปดาห์ที่ 20/วันที่ 133"},{"$f":"IF(WEEKDAY(วันปฏิทิน)=WeekStartValue,CONCATENATE(\"สัปดาห์ที่ \",WEEKNUM(วันปฏิทิน),\"/วันที่ \",วันปฏิทิน-DATE(YEAR(วันปฏิทิน),1,0)),CONCATENATE(\"วันที่ \",วันปฏิทิน-DATE(YEAR(วันปฏิทิน),1,0)))","v":"วันที่ 134"},{"$f":"IF(WEEKDAY(วันปฏิทิน)=WeekStartValue,CONCATENATE(\"สัปดาห์ที่ \",WEEKNUM(วันปฏิทิน),\"/วันที่ \",วันปฏิทิน-DATE(YEAR(วันปฏิทิน),1,0)),CONCATENATE(\"วันที่ \",วันปฏิทิน-DATE(YEAR(วันปฏิทิน),1,0)))","v":"วันที่ 135"},{"$f":"IF(WEEKDAY(วันปฏิทิน)=WeekStartValue,CONCATENATE(\"สัปดาห์ที่ \",WEEKNUM(วันปฏิทิน),\"/วันที่ \",วันปฏิทิน-DATE(YEAR(วันปฏิทิน),1,0)),CONCATENATE(\"วันที่ \",วันปฏิทิน-DATE(YEAR(วันปฏิทิน),1,0)))","v":"วันที่ 136"},{"$f":"IF(WEEKDAY(วันปฏิทิน)=WeekStartValue,CONCATENATE(\"สัปดาห์ที่ \",WEEKNUM(วันปฏิทิน),\"/วันที่ \",วันปฏิทิน-DATE(YEAR(วันปฏิทิน),1,0)),CONCATENATE(\"วันที่ \",วันปฏิทิน-DATE(YEAR(วันปฏิทิน),1,0)))","v":"วันที่ 137"},{"$f":"IF(WEEKDAY(วันปฏิทิน)=WeekStartValue,CONCATENATE(\"สัปดาห์ที่ \",WEEKNUM(วันปฏิทิน),\"/วันที่ \",วันปฏิทิน-DATE(YEAR(วันปฏิทิน),1,0)),CONCATENATE(\"วันที่ \",วันปฏิทิน-DATE(YEAR(วันปฏิทิน),1,0)))","v":"วันที่ 138"},{"$f":"IF(WEEKDAY(วันปฏิทิน)=WeekStartValue,CONCATENATE(\"สัปดาห์ที่ \",WEEKNUM(วันปฏิทิน),\"/วันที่ \",วันปฏิทิน-DATE(YEAR(วันปฏิทิน),1,0)),CONCATENATE(\"วันที่ \",วันปฏิทิน-DATE(YEAR(วันปฏิทิน),1,0)))","v":"วันที่ 139"}]
[]
[null,null,{"$f":"วันและสัปดาห์+DATE(ปีปฏิทิน,5,1)-WEEKDAY(DATE(ปีปฏิทิน,5,1),(เริ่มต้นสัปดาห์=\"จ.\")+1)+22","v":"2018-05-20"},"2018-05-21","2018-05-22","2018-05-23","2018-05-24","2018-05-25","2018-05-26"]
[null,null,{"$f":"IF(WEEKDAY(วันปฏิทิน)=WeekStartValue,CONCATENATE(\"สัปดาห์ที่ \",WEEKNUM(วันปฏิทิน),\"/วันที่ \",วันปฏิทิน-DATE(YEAR(วันปฏิทิน),1,0)),CONCATENATE(\"วันที่ \",วันปฏิทิน-DATE(YEAR(วันปฏิทิน),1,0)))","v":"สัปดาห์ที่ 21/วันที่ 140"},{"$f":"IF(WEEKDAY(วันปฏิทิน)=WeekStartValue,CONCATENATE(\"สัปดาห์ที่ \",WEEKNUM(วันปฏิทิน),\"/วันที่ \",วันปฏิทิน-DATE(YEAR(วันปฏิทิน),1,0)),CONCATENATE(\"วันที่ \",วันปฏิทิน-DATE(YEAR(วันปฏิทิน),1,0)))","v":"วันที่ 141"},{"$f":"IF(WEEKDAY(วันปฏิทิน)=WeekStartValue,CONCATENATE(\"สัปดาห์ที่ \",WEEKNUM(วันปฏิทิน),\"/วันที่ \",วันปฏิทิน-DATE(YEAR(วันปฏิทิน),1,0)),CONCATENATE(\"วันที่ \",วันปฏิทิน-DATE(YEAR(วันปฏิทิน),1,0)))","v":"วันที่ 142"},{"$f":"IF(WEEKDAY(วันปฏิทิน)=WeekStartValue,CONCATENATE(\"สัปดาห์ที่ \",WEEKNUM(วันปฏิทิน),\"/วันที่ \",วันปฏิทิน-DATE(YEAR(วันปฏิทิน),1,0)),CONCATENATE(\"วันที่ \",วันปฏิทิน-DATE(YEAR(วันปฏิทิน),1,0)))","v":"วันที่ 143"},{"$f":"IF(WEEKDAY(วันปฏิทิน)=WeekStartValue,CONCATENATE(\"สัปดาห์ที่ \",WEEKNUM(วันปฏิทิน),\"/วันที่ \",วันปฏิทิน-DATE(YEAR(วันปฏิทิน),1,0)),CONCATENATE(\"วันที่ \",วันปฏิทิน-DATE(YEAR(วันปฏิทิน),1,0)))","v":"วันที่ 144"},{"$f":"IF(WEEKDAY(วันปฏิทิน)=WeekStartValue,CONCATENATE(\"สัปดาห์ที่ \",WEEKNUM(วันปฏิทิน),\"/วันที่ \",วันปฏิทิน-DATE(YEAR(วันปฏิทิน),1,0)),CONCATENATE(\"วันที่ \",วันปฏิทิน-DATE(YEAR(วันปฏิทิน),1,0)))","v":"วันที่ 145"},{"$f":"IF(WEEKDAY(วันปฏิทิน)=WeekStartValue,CONCATENATE(\"สัปดาห์ที่ \",WEEKNUM(วันปฏิทิน),\"/วันที่ \",วันปฏิทิน-DATE(YEAR(วันปฏิทิน),1,0)),CONCATENATE(\"วันที่ \",วันปฏิทิน-DATE(YEAR(วันปฏิทิน),1,0)))","v":"วันที่ 146"}]
[]
[null,null,{"$f":"วันและสัปดาห์+DATE(ปีปฏิทิน,5,1)-WEEKDAY(DATE(ปีปฏิทิน,5,1),(เริ่มต้นสัปดาห์=\"จ.\")+1)+29","v":"2018-05-27"},"2018-05-28","2018-05-29","2018-05-30","2018-05-31","2018-06-01","2018-06-02"]
[null,null,{"$f":"IF(WEEKDAY(วันปฏิทิน)=WeekStartValue,CONCATENATE(\"สัปดาห์ที่ \",WEEKNUM(วันปฏิทิน),\"/วันที่ \",วันปฏิทิน-DATE(YEAR(วันปฏิทิน),1,0)),CONCATENATE(\"วันที่ \",วันปฏิทิน-DATE(YEAR(วันปฏิทิน),1,0)))","v":"สัปดาห์ที่ 22/วันที่ 147"},{"$f":"IF(WEEKDAY(วันปฏิทิน)=WeekStartValue,CONCATENATE(\"สัปดาห์ที่ \",WEEKNUM(วันปฏิทิน),\"/วันที่ \",วันปฏิทิน-DATE(YEAR(วันปฏิทิน),1,0)),CONCATENATE(\"วันที่ \",วันปฏิทิน-DATE(YEAR(วันปฏิทิน),1,0)))","v":"วันที่ 148"},{"$f":"IF(WEEKDAY(วันปฏิทิน)=WeekStartValue,CONCATENATE(\"สัปดาห์ที่ \",WEEKNUM(วันปฏิทิน),\"/วันที่ \",วันปฏิทิน-DATE(YEAR(วันปฏิทิน),1,0)),CONCATENATE(\"วันที่ \",วันปฏิทิน-DATE(YEAR(วันปฏิทิน),1,0)))","v":"วันที่ 149"},{"$f":"IF(WEEKDAY(วันปฏิทิน)=WeekStartValue,CONCATENATE(\"สัปดาห์ที่ \",WEEKNUM(วันปฏิทิน),\"/วันที่ \",วันปฏิทิน-DATE(YEAR(วันปฏิทิน),1,0)),CONCATENATE(\"วันที่ \",วันปฏิทิน-DATE(YEAR(วันปฏิทิน),1,0)))","v":"วันที่ 150"},{"$f":"IF(WEEKDAY(วันปฏิทิน)=WeekStartValue,CONCATENATE(\"สัปดาห์ที่ \",WEEKNUM(วันปฏิทิน),\"/วันที่ \",วันปฏิทิน-DATE(YEAR(วันปฏิทิน),1,0)),CONCATENATE(\"วันที่ \",วันปฏิทิน-DATE(YEAR(วันปฏิทิน),1,0)))","v":"วันที่ 151"},{"$f":"IF(WEEKDAY(วันปฏิทิน)=WeekStartValue,CONCATENATE(\"สัปดาห์ที่ \",WEEKNUM(วันปฏิทิน),\"/วันที่ \",วันปฏิทิน-DATE(YEAR(วันปฏิทิน),1,0)),CONCATENATE(\"วันที่ \",วันปฏิทิน-DATE(YEAR(วันปฏิทิน),1,0)))","v":"วันที่ 152"},{"$f":"IF(WEEKDAY(วันปฏิทิน)=WeekStartValue,CONCATENATE(\"สัปดาห์ที่ \",WEEKNUM(วันปฏิทิน),\"/วันที่ \",วันปฏิทิน-DATE(YEAR(วันปฏิทิน),1,0)),CONCATENATE(\"วันที่ \",วันปฏิทิน-DATE(YEAR(วันปฏิทิน),1,0)))","v":"วันที่ 153"}]
[{"$nulls":4},"หมายเหตุ"]
[]
[null,null,{"$f":"วันและสัปดาห์+DATE(ปีปฏิทิน,5,1)-WEEKDAY(DATE(ปีปฏิทิน,5,1),(เริ่มต้นสัปดาห์=\"จ.\")+1)+36","v":"2018-06-03"},"2018-06-04"]
[null,null,{"$f":"IF(WEEKDAY(วันปฏิทิน)=WeekStartValue,CONCATENATE(\"สัปดาห์ที่ \",WEEKNUM(วันปฏิทิน),\"/วันที่ \",วันปฏิทิน-DATE(YEAR(วันปฏิทิน),1,0)),CONCATENATE(\"วันที่ \",วันปฏิทิน-DATE(YEAR(วันปฏิทิน),1,0)))","v":"สัปดาห์ที่ 23/วันที่ 154"},{"$f":"IF(WEEKDAY(วันปฏิทิน)=WeekStartValue,CONCATENATE(\"สัปดาห์ที่ \",WEEKNUM(วันปฏิทิน),\"/วันที่ \",วันปฏิทิน-DATE(YEAR(วันปฏิทิน),1,0)),CONCATENATE(\"วันที่ \",วันปฏิทิน-DATE(YEAR(วันปฏิทิน),1,0)))","v":"วันที่ 155"}]

{"sheet":"มิ.ย.","index":5,"n_rows":20,"n_cols":9,"rows_kept":20,"merged":[[16,2,17,2],[17,4,19,8]]}
[null,"มิ.ย.",{"$f":"UPPER(TEXT(เริ่มต้นสัปดาห์,\"ddd\"))","v":"อา."},{"$f":"UPPER(TEXT(D3,\"aaa\"))","v":"จ."},"อ.","พ.","พฤ.","ศ.","ส."]
[null,{"$f":"ปีปฏิทิน","v":2018}]
[null,null,{"$f":"วันและสัปดาห์+DATE(ปีปฏิทิน,6,1)-WEEKDAY(DATE(ปีปฏิทิน,6,1),(เริ่มต้นสัปดาห์=\"จ.\")+1)+1","v":"2018-05-27"},"2018-05-28","2018-05-29","2018-05-30","2018-05-31","2018-06-01","2018-06-02"]
[null,null,{"$f":"IF(DAY(วันปฏิทิน)=1,CONCATENATE(\"สัปดาห์ที่ \",WEEKNUM(วันปฏิทิน),\"/วันที่ \",วันปฏิทิน-DATE(YEAR(วันปฏิทิน),1,0)),CONCATENATE(\"วันที่ \",วันปฏิทิน-DATE(YEAR(วันปฏิทิน),1,0)))","v":"วันที่ 147"},{"$f":"IF(DAY(วันปฏิทิน)=1,CONCATENATE(\"สัปดาห์ที่ \",WEEKNUM(วันปฏิทิน),\"/วันที่ \",วันปฏิทิน-DATE(YEAR(วันปฏิทิน),1,0)),CONCATENATE(\"วันที่ \",วันปฏิทิน-DATE(YEAR(วันปฏิทิน),1,0)))","v":"วันที่ 148"},{"$f":"IF(DAY(วันปฏิทิน)=1,CONCATENATE(\"สัปดาห์ที่ \",WEEKNUM(วันปฏิทิน),\"/วันที่ \",วันปฏิทิน-DATE(YEAR(วันปฏิทิน),1,0)),CONCATENATE(\"วันที่ \",วันปฏิทิน-DATE(YEAR(วันปฏิทิน),1,0)))","v":"วันที่ 149"},{"$f":"IF(DAY(วันปฏิทิน)=1,CONCATENATE(\"สัปดาห์ที่ \",WEEKNUM(วันปฏิทิน),\"/วันที่ \",วันปฏิทิน-DATE(YEAR(วันปฏิทิน),1,0)),CONCATENATE(\"วันที่ \",วันปฏิทิน-DATE(YEAR(วันปฏิทิน),1,0)))","v":"วันที่ 150"},{"$f":"IF(DAY(วันปฏิทิน)=1,CONCATENATE(\"สัปดาห์ที่ \",WEEKNUM(วันปฏิทิน),\"/วันที่ \",วันปฏิทิน-DATE(YEAR(วันปฏิทิน),1,0)),CONCATENATE(\"วันที่ \",วันปฏิทิน-DATE(YEAR(วันปฏิทิน),1,0)))","v":"วันที่ 151"},{"$f":"IF(DAY(วันปฏิทิน)=1,CONCATENATE(\"สัปดาห์ที่ \",WEEKNUM(วันปฏิทิน),\"/วันที่ \",วันปฏิทิน-DATE(YEAR(วันปฏิทิน),1,0)),CONCATENATE(\"วันที่ \",วันปฏิทิน-DATE(YEAR(วันปฏิทิน),1,0)))","v":"สัปดาห์ที่ 22/วันที่ 152"},{"$f":"IF(DAY(วันปฏิทิน)=1,CONCATENATE(\"สัปดาห์ที่ \",WEEKNUM(วันปฏิทิน),\"/วันที่ \",วันปฏิทิน-DATE(YEAR(วันปฏิทิน),1,0)),CONCATENATE(\"วันที่ \",วันปฏิทิน-DATE(YEAR(วันปฏิทิน),1,0)))","v":"วันที่ 153"}]
[]
[null,null,{"$f":"วันและสัปดาห์+DATE(ปีปฏิทิน,6,1)-WEEKDAY(DATE(ปีปฏิทิน,6,1),(เริ่มต้นสัปดาห์=\"จ.\")+1)+8","v":"2018-06-03"},"2018-06-04","2018-06-05","2018-06-06","2018-06-07","2018-06-08","2018-06-09"]
[null,null,{"$f":"IF(WEEKDAY(วันปฏิทิน)=WeekStartValue,CONCATENATE(\"สัปดาห์ที่ \",WEEKNUM(วันปฏิทิน),\"/วันที่ \",วันปฏิทิน-DATE(YEAR(วันปฏิทิน),1,0)),CONCATENATE(\"วันที่ \",วันปฏิทิน-DATE(YEAR(วันปฏิทิน),1,0)))","v":"สัปดาห์ที่ 23/วันที่ 154"},{"$f":"IF(WEEKDAY(วันปฏิทิน)=WeekStartValue,CONCATENATE(\"สัปดาห์ที่ \",WEEKNUM(วันปฏิทิน),\"/วันที่ \",วันปฏิทิน-DATE(YEAR(วันปฏิทิน),1,0)),CONCATENATE(\"วันที่ \",วันปฏิทิน-DATE(YEAR(วันปฏิทิน),1,0)))","v":"วันที่ 155"},{"$f":"IF(WEEKDAY(วันปฏิทิน)=WeekStartValue,CONCATENATE(\"สัปดาห์ที่ \",WEEKNUM(วันปฏิทิน),\"/วันที่ \",วันปฏิทิน-DATE(YEAR(วันปฏิทิน),1,0)),CONCATENATE(\"วันที่ \",วันปฏิทิน-DATE(YEAR(วันปฏิทิน),1,0)))","v":"วันที่ 156"},{"$f":"IF(WEEKDAY(วันปฏิทิน)=WeekStartValue,CONCATENATE(\"สัปดาห์ที่ \",WEEKNUM(วันปฏิทิน),\"/วันที่ \",วันปฏิทิน-DATE(YEAR(วันปฏิทิน),1,0)),CONCATENATE(\"วันที่ \",วันปฏิทิน-DATE(YEAR(วันปฏิทิน),1,0)))","v":"วันที่ 157"},{"$f":"IF(WEEKDAY(วันปฏิทิน)=WeekStartValue,CONCATENATE(\"สัปดาห์ที่ \",WEEKNUM(วันปฏิทิน),\"/วันที่ \",วันปฏิทิน-DATE(YEAR(วันปฏิทิน),1,0)),CONCATENATE(\"วันที่ \",วันปฏิทิน-DATE(YEAR(วันปฏิทิน),1,0)))","v":"วันที่ 158"},{"$f":"IF(WEEKDAY(วันปฏิทิน)=WeekStartValue,CONCATENATE(\"สัปดาห์ที่ \",WEEKNUM(วันปฏิทิน),\"/วันที่ \",วันปฏิทิน-DATE(YEAR(วันปฏิทิน),1,0)),CONCATENATE(\"วันที่ \",วันปฏิทิน-DATE(YEAR(วันปฏิทิน),1,0)))","v":"วันที่ 159"},{"$f":"IF(WEEKDAY(วันปฏิทิน)=WeekStartValue,CONCATENATE(\"สัปดาห์ที่ \",WEEKNUM(วันปฏิทิน),\"/วันที่ \",วันปฏิทิน-DATE(YEAR(วันปฏิทิน),1,0)),CONCATENATE(\"วันที่ \",วันปฏิทิน-DATE(YEAR(วันปฏิทิน),1,0)))","v":"วันที่ 160"}]
[]
[null,null,{"$f":"วันและสัปดาห์+DATE(ปีปฏิทิน,6,1)-WEEKDAY(DATE(ปีปฏิทิน,6,1),(เริ่มต้นสัปดาห์=\"จ.\")+1)+15","v":"2018-06-10"},"2018-06-11","2018-06-12","2018-06-13","2018-06-14","2018-06-15","2018-06-16"]
[null,null,{"$f":"IF(WEEKDAY(วันปฏิทิน)=WeekStartValue,CONCATENATE(\"สัปดาห์ที่ \",WEEKNUM(วันปฏิทิน),\"/วันที่ \",วันปฏิทิน-DATE(YEAR(วันปฏิทิน),1,0)),CONCATENATE(\"วันที่ \",วันปฏิทิน-DATE(YEAR(วันปฏิทิน),1,0)))","v":"สัปดาห์ที่ 24/วันที่ 161"},{"$f":"IF(WEEKDAY(วันปฏิทิน)=WeekStartValue,CONCATENATE(\"สัปดาห์ที่ \",WEEKNUM(วันปฏิทิน),\"/วันที่ \",วันปฏิทิน-DATE(YEAR(วันปฏิทิน),1,0)),CONCATENATE(\"วันที่ \",วันปฏิทิน-DATE(YEAR(วันปฏิทิน),1,0)))","v":"วันที่ 162"},{"$f":"IF(WEEKDAY(วันปฏิทิน)=WeekStartValue,CONCATENATE(\"สัปดาห์ที่ \",WEEKNUM(วันปฏิทิน),\"/วันที่ \",วันปฏิทิน-DATE(YEAR(วันปฏิทิน),1,0)),CONCATENATE(\"วันที่ \",วันปฏิทิน-DATE(YEAR(วันปฏิทิน),1,0)))","v":"วันที่ 163"},{"$f":"IF(WEEKDAY(วันปฏิทิน)=WeekStartValue,CONCATENATE(\"สัปดาห์ที่ \",WEEKNUM(วันปฏิทิน),\"/วันที่ \",วันปฏิทิน-DATE(YEAR(วันปฏิทิน),1,0)),CONCATENATE(\"วันที่ \",วันปฏิทิน-DATE(YEAR(วันปฏิทิน),1,0)))","v":"วันที่ 164"},{"$f":"IF(WEEKDAY(วันปฏิทิน)=WeekStartValue,CONCATENATE(\"สัปดาห์ที่ \",WEEKNUM(วันปฏิทิน),\"/วันที่ \",วันปฏิทิน-DATE(YEAR(วันปฏิทิน),1,0)),CONCATENATE(\"วันที่ \",วันปฏิทิน-DATE(YEAR(วันปฏิทิน),1,0)))","v":"วันที่ 165"},{"$f":"IF(WEEKDAY(วันปฏิทิน)=WeekStartValue,CONCATENATE(\"สัปดาห์ที่ \",WEEKNUM(วันปฏิทิน),\"/วันที่ \",วันปฏิทิน-DATE(YEAR(วันปฏิทิน),1,0)),CONCATENATE(\"วันที่ \",วันปฏิทิน-DATE(YEAR(วันปฏิทิน),1,0)))","v":"วันที่ 166"},{"$f":"IF(WEEKDAY(วันปฏิทิน)=WeekStartValue,CONCATENATE(\"สัปดาห์ที่ \",WEEKNUM(วันปฏิทิน),\"/วันที่ \",วันปฏิทิน-DATE(YEAR(วันปฏิทิน),1,0)),CONCATENATE(\"วันที่ \",วันปฏิทิน-DATE(YEAR(วันปฏิทิน),1,0)))","v":"วันที่ 167"}]
[]
[null,null,{"$f":"วันและสัปดาห์+DATE(ปีปฏิทิน,6,1)-WEEKDAY(DATE(ปีปฏิทิน,6,1),(เริ่มต้นสัปดาห์=\"จ.\")+1)+22","v":"2018-06-17"},"2018-06-18","2018-06-19","2018-06-20","2018-06-21","2018-06-22","2018-06-23"]
[null,null,{"$f":"IF(WEEKDAY(วันปฏิทิน)=WeekStartValue,CONCATENATE(\"สัปดาห์ที่ \",WEEKNUM(วันปฏิทิน),\"/วันที่ \",วันปฏิทิน-DATE(YEAR(วันปฏิทิน),1,0)),CONCATENATE(\"วันที่ \",วันปฏิทิน-DATE(YEAR(วันปฏิทิน),1,0)))","v":"สัปดาห์ที่ 25/วันที่ 168"},{"$f":"IF(WEEKDAY(วันปฏิทิน)=WeekStartValue,CONCATENATE(\"สัปดาห์ที่ \",WEEKNUM(วันปฏิทิน),\"/วันที่ \",วันปฏิทิน-DATE(YEAR(วันปฏิทิน),1,0)),CONCATENATE(\"วันที่ \",วันปฏิทิน-DATE(YEAR(วันปฏิทิน),1,0)))","v":"วันที่ 169"},{"$f":"IF(WEEKDAY(วันปฏิทิน)=WeekStartValue,CONCATENATE(\"สัปดาห์ที่ \",WEEKNUM(วันปฏิทิน),\"/วันที่ \",วันปฏิทิน-DATE(YEAR(วันปฏิทิน),1,0)),CONCATENATE(\"วันที่ \",วันปฏิทิน-DATE(YEAR(วันปฏิทิน),1,0)))","v":"วันที่ 170"},{"$f":"IF(WEEKDAY(วันปฏิทิน)=WeekStartValue,CONCATENATE(\"สัปดาห์ที่ \",WEEKNUM(วันปฏิทิน),\"/วันที่ \",วันปฏิทิน-DATE(YEAR(วันปฏิทิน),1,0)),CONCATENATE(\"วันที่ \",วันปฏิทิน-DATE(YEAR(วันปฏิทิน),1,0)))","v":"วันที่ 171"},{"$f":"IF(WEEKDAY(วันปฏิทิน)=WeekStartValue,CONCATENATE(\"สัปดาห์ที่ \",WEEKNUM(วันปฏิทิน),\"/วันที่ \",วันปฏิทิน-DATE(YEAR(วันปฏิทิน),1,0)),CONCATENATE(\"วันที่ \",วันปฏิทิน-DATE(YEAR(วันปฏิทิน),1,0)))","v":"วันที่ 172"},{"$f":"IF(WEEKDAY(วันปฏิทิน)=WeekStartValue,CONCATENATE(\"สัปดาห์ที่ \",WEEKNUM(วันปฏิทิน),\"/วันที่ \",วันปฏิทิน-DATE(YEAR(วันปฏิทิน),1,0)),CONCATENATE(\"วันที่ \",วันปฏิทิน-DATE(YEAR(วันปฏิทิน),1,0)))","v":"วันที่ 173"},{"$f":"IF(WEEKDAY(วันปฏิทิน)=WeekStartValue,CONCATENATE(\"สัปดาห์ที่ \",WEEKNUM(วันปฏิทิน),\"/วันที่ \",วันปฏิทิน-DATE(YEAR(วันปฏิทิน),1,0)),CONCATENATE(\"วันที่ \",วันปฏิทิน-DATE(YEAR(วันปฏิทิน),1,0)))","v":"วันที่ 174"}]
[]
[null,null,{"$f":"วันและสัปดาห์+DATE(ปีปฏิทิน,6,1)-WEEKDAY(DATE(ปีปฏิทิน,6,1),(เริ่มต้นสัปดาห์=\"จ.\")+1)+29","v":"2018-06-24"},"2018-06-25","2018-06-26","2018-06-27","2018-06-28","2018-06-29","2018-06-30"]
[null,null,{"$f":"IF(WEEKDAY(วันปฏิทิน)=WeekStartValue,CONCATENATE(\"สัปดาห์ที่ \",WEEKNUM(วันปฏิทิน),\"/วันที่ \",วันปฏิทิน-DATE(YEAR(วันปฏิทิน),1,0)),CONCATENATE(\"วันที่ \",วันปฏิทิน-DATE(YEAR(วันปฏิทิน),1,0)))","v":"สัปดาห์ที่ 26/วันที่ 175"},{"$f":"IF(WEEKDAY(วันปฏิทิน)=WeekStartValue,CONCATENATE(\"สัปดาห์ที่ \",WEEKNUM(วันปฏิทิน),\"/วันที่ \",วันปฏิทิน-DATE(YEAR(วันปฏิทิน),1,0)),CONCATENATE(\"วันที่ \",วันปฏิทิน-DATE(YEAR(วันปฏิทิน),1,0)))","v":"วันที่ 176"},{"$f":"IF(WEEKDAY(วันปฏิทิน)=WeekStartValue,CONCATENATE(\"สัปดาห์ที่ \",WEEKNUM(วันปฏิทิน),\"/วันที่ \",วันปฏิทิน-DATE(YEAR(วันปฏิทิน),1,0)),CONCATENATE(\"วันที่ \",วันปฏิทิน-DATE(YEAR(วันปฏิทิน),1,0)))","v":"วันที่ 177"},{"$f":"IF(WEEKDAY(วันปฏิทิน)=WeekStartValue,CONCATENATE(\"สัปดาห์ที่ \",WEEKNUM(วันปฏิทิน),\"/วันที่ \",วันปฏิทิน-DATE(YEAR(วันปฏิทิน),1,0)),CONCATENATE(\"วันที่ \",วันปฏิทิน-DATE(YEAR(วันปฏิทิน),1,0)))","v":"วันที่ 178"},{"$f":"IF(WEEKDAY(วันปฏิทิน)=WeekStartValue,CONCATENATE(\"สัปดาห์ที่ \",WEEKNUM(วันปฏิทิน),\"/วันที่ \",วันปฏิทิน-DATE(YEAR(วันปฏิทิน),1,0)),CONCATENATE(\"วันที่ \",วันปฏิทิน-DATE(YEAR(วันปฏิทิน),1,0)))","v":"วันที่ 179"},{"$f":"IF(WEEKDAY(วันปฏิทิน)=WeekStartValue,CONCATENATE(\"สัปดาห์ที่ \",WEEKNUM(วันปฏิทิน),\"/วันที่ \",วันปฏิทิน-DATE(YEAR(วันปฏิทิน),1,0)),CONCATENATE(\"วันที่ \",วันปฏิทิน-DATE(YEAR(วันปฏิทิน),1,0)))","v":"วันที่ 180"},{"$f":"IF(WEEKDAY(วันปฏิทิน)=WeekStartValue,CONCATENATE(\"สัปดาห์ที่ \",WEEKNUM(วันปฏิทิน),\"/วันที่ \",วันปฏิทิน-DATE(YEAR(วันปฏิทิน),1,0)),CONCATENATE(\"วันที่ \",วันปฏิทิน-DATE(YEAR(วันปฏิทิน),1,0)))","v":"วันที่ 181"}]
[{"$nulls":4},"หมายเหตุ"]
[]
[null,null,{"$f":"วันและสัปดาห์+DATE(ปีปฏิทิน,6,1)-WEEKDAY(DATE(ปีปฏิทิน,6,1),(เริ่มต้นสัปดาห์=\"จ.\")+1)+36","v":"2018-07-01"},"2018-07-02"]
[null,null,{"$f":"IF(WEEKDAY(วันปฏิทิน)=WeekStartValue,CONCATENATE(\"สัปดาห์ที่ \",WEEKNUM(วันปฏิทิน),\"/วันที่ \",วันปฏิทิน-DATE(YEAR(วันปฏิทิน),1,0)),CONCATENATE(\"วันที่ \",วันปฏิทิน-DATE(YEAR(วันปฏิทิน),1,0)))","v":"สัปดาห์ที่ 27/วันที่ 182"},{"$f":"IF(WEEKDAY(วันปฏิทิน)=WeekStartValue,CONCATENATE(\"สัปดาห์ที่ \",WEEKNUM(วันปฏิทิน),\"/วันที่ \",วันปฏิทิน-DATE(YEAR(วันปฏิทิน),1,0)),CONCATENATE(\"วันที่ \",วันปฏิทิน-DATE(YEAR(วันปฏิทิน),1,0)))","v":"วันที่ 183"}]

{"sheet":"ก.ค.","index":6,"n_rows":20,"n_cols":9,"rows_kept":20,"merged":[[16,2,17,2],[17,4,19,8]]}
[null,"ก.ค.",{"$f":"UPPER(TEXT(เริ่มต้นสัปดาห์,\"ddd\"))","v":"อา."},{"$f":"UPPER(TEXT(D3,\"aaa\"))","v":"จ."},"อ.","พ.","พฤ.","ศ.","ส."]
[null,{"$f":"ปีปฏิทิน","v":2018}]
[null,null,{"$f":"วันและสัปดาห์+DATE(ปีปฏิทิน,7,1)-WEEKDAY(DATE(ปีปฏิทิน,7,1),(เริ่มต้นสัปดาห์=\"จ.\")+1)+1","v":"2018-07-01"},"2018-07-02","2018-07-03","2018-07-04","2018-07-05","2018-07-06","2018-07-07"]
[null,null,{"$f":"IF(DAY(วันปฏิทิน)=1,CONCATENATE(\"สัปดาห์ที่ \",WEEKNUM(วันปฏิทิน),\"/วันที่ \",วันปฏิทิน-DATE(YEAR(วันปฏิทิน),1,0)),CONCATENATE(\"วันที่ \",วันปฏิทิน-DATE(YEAR(วันปฏิทิน),1,0)))","v":"สัปดาห์ที่ 27/วันที่ 182"},{"$f":"IF(DAY(วันปฏิทิน)=1,CONCATENATE(\"สัปดาห์ที่ \",WEEKNUM(วันปฏิทิน),\"/วันที่ \",วันปฏิทิน-DATE(YEAR(วันปฏิทิน),1,0)),CONCATENATE(\"วันที่ \",วันปฏิทิน-DATE(YEAR(วันปฏิทิน),1,0)))","v":"วันที่ 183"},{"$f":"IF(DAY(วันปฏิทิน)=1,CONCATENATE(\"สัปดาห์ที่ \",WEEKNUM(วันปฏิทิน),\"/วันที่ \",วันปฏิทิน-DATE(YEAR(วันปฏิทิน),1,0)),CONCATENATE(\"วันที่ \",วันปฏิทิน-DATE(YEAR(วันปฏิทิน),1,0)))","v":"วันที่ 184"},{"$f":"IF(DAY(วันปฏิทิน)=1,CONCATENATE(\"สัปดาห์ที่ \",WEEKNUM(วันปฏิทิน),\"/วันที่ \",วันปฏิทิน-DATE(YEAR(วันปฏิทิน),1,0)),CONCATENATE(\"วันที่ \",วันปฏิทิน-DATE(YEAR(วันปฏิทิน),1,0)))","v":"วันที่ 185"},{"$f":"IF(DAY(วันปฏิทิน)=1,CONCATENATE(\"สัปดาห์ที่ \",WEEKNUM(วันปฏิทิน),\"/วันที่ \",วันปฏิทิน-DATE(YEAR(วันปฏิทิน),1,0)),CONCATENATE(\"วันที่ \",วันปฏิทิน-DATE(YEAR(วันปฏิทิน),1,0)))","v":"วันที่ 186"},{"$f":"IF(DAY(วันปฏิทิน)=1,CONCATENATE(\"สัปดาห์ที่ \",WEEKNUM(วันปฏิทิน),\"/วันที่ \",วันปฏิทิน-DATE(YEAR(วันปฏิทิน),1,0)),CONCATENATE(\"วันที่ \",วันปฏิทิน-DATE(YEAR(วันปฏิทิน),1,0)))","v":"วันที่ 187"},{"$f":"IF(DAY(วันปฏิทิน)=1,CONCATENATE(\"สัปดาห์ที่ \",WEEKNUM(วันปฏิทิน),\"/วันที่ \",วันปฏิทิน-DATE(YEAR(วันปฏิทิน),1,0)),CONCATENATE(\"วันที่ \",วันปฏิทิน-DATE(YEAR(วันปฏิทิน),1,0)))","v":"วันที่ 188"}]
[]
[null,null,{"$f":"วันและสัปดาห์+DATE(ปีปฏิทิน,7,1)-WEEKDAY(DATE(ปีปฏิทิน,7,1),(เริ่มต้นสัปดาห์=\"จ.\")+1)+8","v":"2018-07-08"},"2018-07-09","2018-07-10","2018-07-11","2018-07-12","2018-07-13","2018-07-14"]
[null,null,{"$f":"IF(WEEKDAY(วันปฏิทิน)=WeekStartValue,CONCATENATE(\"สัปดาห์ที่ \",WEEKNUM(วันปฏิทิน),\"/วันที่ \",วันปฏิทิน-DATE(YEAR(วันปฏิทิน),1,0)),CONCATENATE(\"วันที่ \",วันปฏิทิน-DATE(YEAR(วันปฏิทิน),1,0)))","v":"สัปดาห์ที่ 28/วันที่ 189"},{"$f":"IF(WEEKDAY(วันปฏิทิน)=WeekStartValue,CONCATENATE(\"สัปดาห์ที่ \",WEEKNUM(วันปฏิทิน),\"/วันที่ \",วันปฏิทิน-DATE(YEAR(วันปฏิทิน),1,0)),CONCATENATE(\"วันที่ \",วันปฏิทิน-DATE(YEAR(วันปฏิทิน),1,0)))","v":"วันที่ 190"},{"$f":"IF(WEEKDAY(วันปฏิทิน)=WeekStartValue,CONCATENATE(\"สัปดาห์ที่ \",WEEKNUM(วันปฏิทิน),\"/วันที่ \",วันปฏิทิน-DATE(YEAR(วันปฏิทิน),1,0)),CONCATENATE(\"วันที่ \",วันปฏิทิน-DATE(YEAR(วันปฏิทิน),1,0)))","v":"วันที่ 191"},{"$f":"IF(WEEKDAY(วันปฏิทิน)=WeekStartValue,CONCATENATE(\"สัปดาห์ที่ \",WEEKNUM(วันปฏิทิน),\"/วันที่ \",วันปฏิทิน-DATE(YEAR(วันปฏิทิน),1,0)),CONCATENATE(\"วันที่ \",วันปฏิทิน-DATE(YEAR(วันปฏิทิน),1,0)))","v":"วันที่ 192"},{"$f":"IF(WEEKDAY(วันปฏิทิน)=WeekStartValue,CONCATENATE(\"สัปดาห์ที่ \",WEEKNUM(วันปฏิทิน),\"/วันที่ \",วันปฏิทิน-DATE(YEAR(วันปฏิทิน),1,0)),CONCATENATE(\"วันที่ \",วันปฏิทิน-DATE(YEAR(วันปฏิทิน),1,0)))","v":"วันที่ 193"},{"$f":"IF(WEEKDAY(วันปฏิทิน)=WeekStartValue,CONCATENATE(\"สัปดาห์ที่ \",WEEKNUM(วันปฏิทิน),\"/วันที่ \",วันปฏิทิน-DATE(YEAR(วันปฏิทิน),1,0)),CONCATENATE(\"วันที่ \",วันปฏิทิน-DATE(YEAR(วันปฏิทิน),1,0)))","v":"วันที่ 194"},{"$f":"IF(WEEKDAY(วันปฏิทิน)=WeekStartValue,CONCATENATE(\"สัปดาห์ที่ \",WEEKNUM(วันปฏิทิน),\"/วันที่ \",วันปฏิทิน-DATE(YEAR(วันปฏิทิน),1,0)),CONCATENATE(\"วันที่ \",วันปฏิทิน-DATE(YEAR(วันปฏิทิน),1,0)))","v":"วันที่ 195"}]
[]
[null,null,{"$f":"วันและสัปดาห์+DATE(ปีปฏิทิน,7,1)-WEEKDAY(DATE(ปีปฏิทิน,7,1),(เริ่มต้นสัปดาห์=\"จ.\")+1)+15","v":"2018-07-15"},"2018-07-16","2018-07-17","2018-07-18","2018-07-19","2018-07-20","2018-07-21"]
[null,null,{"$f":"IF(WEEKDAY(วันปฏิทิน)=WeekStartValue,CONCATENATE(\"สัปดาห์ที่ \",WEEKNUM(วันปฏิทิน),\"/วันที่ \",วันปฏิทิน-DATE(YEAR(วันปฏิทิน),1,0)),CONCATENATE(\"วันที่ \",วันปฏิทิน-DATE(YEAR(วันปฏิทิน),1,0)))","v":"สัปดาห์ที่ 29/วันที่ 196"},{"$f":"IF(WEEKDAY(วันปฏิทิน)=WeekStartValue,CONCATENATE(\"สัปดาห์ที่ \",WEEKNUM(วันปฏิทิน),\"/วันที่ \",วันปฏิทิน-DATE(YEAR(วันปฏิทิน),1,0)),CONCATENATE(\"วันที่ \",วันปฏิทิน-DATE(YEAR(วันปฏิทิน),1,0)))","v":"วันที่ 197"},{"$f":"IF(WEEKDAY(วันปฏิทิน)=WeekStartValue,CONCATENATE(\"สัปดาห์ที่ \",WEEKNUM(วันปฏิทิน),\"/วันที่ \",วันปฏิทิน-DATE(YEAR(วันปฏิทิน),1,0)),CONCATENATE(\"วันที่ \",วันปฏิทิน-DATE(YEAR(วันปฏิทิน),1,0)))","v":"วันที่ 198"},{"$f":"IF(WEEKDAY(วันปฏิทิน)=WeekStartValue,CONCATENATE(\"สัปดาห์ที่ \",WEEKNUM(วันปฏิทิน),\"/วันที่ \",วันปฏิทิน-DATE(YEAR(วันปฏิทิน),1,0)),CONCATENATE(\"วันที่ \",วันปฏิทิน-DATE(YEAR(วันปฏิทิน),1,0)))","v":"วันที่ 199"},{"$f":"IF(WEEKDAY(วันปฏิทิน)=WeekStartValue,CONCATENATE(\"สัปดาห์ที่ \",WEEKNUM(วันปฏิทิน),\"/วันที่ \",วันปฏิทิน-DATE(YEAR(วันปฏิทิน),1,0)),CONCATENATE(\"วันที่ \",วันปฏิทิน-DATE(YEAR(วันปฏิทิน),1,0)))","v":"วันที่ 200"},{"$f":"IF(WEEKDAY(วันปฏิทิน)=WeekStartValue,CONCATENATE(\"สัปดาห์ที่ \",WEEKNUM(วันปฏิทิน),\"/วันที่ \",วันปฏิทิน-DATE(YEAR(วันปฏิทิน),1,0)),CONCATENATE(\"วันที่ \",วันปฏิทิน-DATE(YEAR(วันปฏิทิน),1,0)))","v":"วันที่ 201"},{"$f":"IF(WEEKDAY(วันปฏิทิน)=WeekStartValue,CONCATENATE(\"สัปดาห์ที่ \",WEEKNUM(วันปฏิทิน),\"/วันที่ \",วันปฏิทิน-DATE(YEAR(วันปฏิทิน),1,0)),CONCATENATE(\"วันที่ \",วันปฏิทิน-DATE(YEAR(วันปฏิทิน),1,0)))","v":"วันที่ 202"}]
[]
[null,null,{"$f":"วันและสัปดาห์+DATE(ปีปฏิทิน,7,1)-WEEKDAY(DATE(ปีปฏิทิน,7,1),(เริ่มต้นสัปดาห์=\"จ.\")+1)+22","v":"2018-07-22"},"2018-07-23","2018-07-24","2018-07-25","2018-07-26","2018-07-27","2018-07-28"]
[null,null,{"$f":"IF(WEEKDAY(วันปฏิทิน)=WeekStartValue,CONCATENATE(\"สัปดาห์ที่ \",WEEKNUM(วันปฏิทิน),\"/วันที่ \",วันปฏิทิน-DATE(YEAR(วันปฏิทิน),1,0)),CONCATENATE(\"วันที่ \",วันปฏิทิน-DATE(YEAR(วันปฏิทิน),1,0)))","v":"สัปดาห์ที่ 30/วันที่ 203"},{"$f":"IF(WEEKDAY(วันปฏิทิน)=WeekStartValue,CONCATENATE(\"สัปดาห์ที่ \",WEEKNUM(วันปฏิทิน),\"/วันที่ \",วันปฏิทิน-DATE(YEAR(วันปฏิทิน),1,0)),CONCATENATE(\"วันที่ \",วันปฏิทิน-DATE(YEAR(วันปฏิทิน),1,0)))","v":"วันที่ 204"},{"$f":"IF(WEEKDAY(วันปฏิทิน)=WeekStartValue,CONCATENATE(\"สัปดาห์ที่ \",WEEKNUM(วันปฏิทิน),\"/วันที่ \",วันปฏิทิน-DATE(YEAR(วันปฏิทิน),1,0)),CONCATENATE(\"วันที่ \",วันปฏิทิน-DATE(YEAR(วันปฏิทิน),1,0)))","v":"วันที่ 205"},{"$f":"IF(WEEKDAY(วันปฏิทิน)=WeekStartValue,CONCATENATE(\"สัปดาห์ที่ \",WEEKNUM(วันปฏิทิน),\"/วันที่ \",วันปฏิทิน-DATE(YEAR(วันปฏิทิน),1,0)),CONCATENATE(\"วันที่ \",วันปฏิทิน-DATE(YEAR(วันปฏิทิน),1,0)))","v":"วันที่ 206"},{"$f":"IF(WEEKDAY(วันปฏิทิน)=WeekStartValue,CONCATENATE(\"สัปดาห์ที่ \",WEEKNUM(วันปฏิทิน),\"/วันที่ \",วันปฏิทิน-DATE(YEAR(วันปฏิทิน),1,0)),CONCATENATE(\"วันที่ \",วันปฏิทิน-DATE(YEAR(วันปฏิทิน),1,0)))","v":"วันที่ 207"},{"$f":"IF(WEEKDAY(วันปฏิทิน)=WeekStartValue,CONCATENATE(\"สัปดาห์ที่ \",WEEKNUM(วันปฏิทิน),\"/วันที่ \",วันปฏิทิน-DATE(YEAR(วันปฏิทิน),1,0)),CONCATENATE(\"วันที่ \",วันปฏิทิน-DATE(YEAR(วันปฏิทิน),1,0)))","v":"วันที่ 208"},{"$f":"IF(WEEKDAY(วันปฏิทิน)=WeekStartValue,CONCATENATE(\"สัปดาห์ที่ \",WEEKNUM(วันปฏิทิน),\"/วันที่ \",วันปฏิทิน-DATE(YEAR(วันปฏิทิน),1,0)),CONCATENATE(\"วันที่ \",วันปฏิทิน-DATE(YEAR(วันปฏิทิน),1,0)))","v":"วันที่ 209"}]
[]
[null,null,{"$f":"วันและสัปดาห์+DATE(ปีปฏิทิน,7,1)-WEEKDAY(DATE(ปีปฏิทิน,7,1),(เริ่มต้นสัปดาห์=\"จ.\")+1)+29","v":"2018-07-29"},"2018-07-30","2018-07-31","2018-08-01","2018-08-02","2018-08-03","2018-08-04"]
[null,null,{"$f":"IF(WEEKDAY(วันปฏิทิน)=WeekStartValue,CONCATENATE(\"สัปดาห์ที่ \",WEEKNUM(วันปฏิทิน),\"/วันที่ \",วันปฏิทิน-DATE(YEAR(วันปฏิทิน),1,0)),CONCATENATE(\"วันที่ \",วันปฏิทิน-DATE(YEAR(วันปฏิทิน),1,0)))","v":"สัปดาห์ที่ 31/วันที่ 210"},{"$f":"IF(WEEKDAY(วันปฏิทิน)=WeekStartValue,CONCATENATE(\"สัปดาห์ที่ \",WEEKNUM(วันปฏิทิน),\"/วันที่ \",วันปฏิทิน-DATE(YEAR(วันปฏิทิน),1,0)),CONCATENATE(\"วันที่ \",วันปฏิทิน-DATE(YEAR(วันปฏิทิน),1,0)))","v":"วันที่ 211"},{"$f":"IF(WEEKDAY(วันปฏิทิน)=WeekStartValue,CONCATENATE(\"สัปดาห์ที่ \",WEEKNUM(วันปฏิทิน),\"/วันที่ \",วันปฏิทิน-DATE(YEAR(วันปฏิทิน),1,0)),CONCATENATE(\"วันที่ \",วันปฏิทิน-DATE(YEAR(วันปฏิทิน),1,0)))","v":"วันที่ 212"},{"$f":"IF(WEEKDAY(วันปฏิทิน)=WeekStartValue,CONCATENATE(\"สัปดาห์ที่ \",WEEKNUM(วันปฏิทิน),\"/วันที่ \",วันปฏิทิน-DATE(YEAR(วันปฏิทิน),1,0)),CONCATENATE(\"วันที่ \",วันปฏิทิน-DATE(YEAR(วันปฏิทิน),1,0)))","v":"วันที่ 213"},{"$f":"IF(WEEKDAY(วันปฏิทิน)=WeekStartValue,CONCATENATE(\"สัปดาห์ที่ \",WEEKNUM(วันปฏิทิน),\"/วันที่ \",วันปฏิทิน-DATE(YEAR(วันปฏิทิน),1,0)),CONCATENATE(\"วันที่ \",วันปฏิทิน-DATE(YEAR(วันปฏิทิน),1,0)))","v":"วันที่ 214"},{"$f":"IF(WEEKDAY(วันปฏิทิน)=WeekStartValue,CONCATENATE(\"สัปดาห์ที่ \",WEEKNUM(วันปฏิทิน),\"/วันที่ \",วันปฏิทิน-DATE(YEAR(วันปฏิทิน),1,0)),CONCATENATE(\"วันที่ \",วันปฏิทิน-DATE(YEAR(วันปฏิทิน),1,0)))","v":"วันที่ 215"},{"$f":"IF(WEEKDAY(วันปฏิทิน)=WeekStartValue,CONCATENATE(\"สัปดาห์ที่ \",WEEKNUM(วันปฏิทิน),\"/วันที่ \",วันปฏิทิน-DATE(YEAR(วันปฏิทิน),1,0)),CONCATENATE(\"วันที่ \",วันปฏิทิน-DATE(YEAR(วันปฏิทิน),1,0)))","v":"วันที่ 216"}]
[{"$nulls":4},"หมายเหตุ"]
[]
[null,null,{"$f":"วันและสัปดาห์+DATE(ปีปฏิทิน,7,1)-WEEKDAY(DATE(ปีปฏิทิน,7,1),(เริ่มต้นสัปดาห์=\"จ.\")+1)+36","v":"2018-08-05"},"2018-08-06"]
[null,null,{"$f":"IF(WEEKDAY(วันปฏิทิน)=WeekStartValue,CONCATENATE(\"สัปดาห์ที่ \",WEEKNUM(วันปฏิทิน),\"/วันที่ \",วันปฏิทิน-DATE(YEAR(วันปฏิทิน),1,0)),CONCATENATE(\"วันที่ \",วันปฏิทิน-DATE(YEAR(วันปฏิทิน),1,0)))","v":"สัปดาห์ที่ 32/วันที่ 217"},{"$f":"IF(WEEKDAY(วันปฏิทิน)=WeekStartValue,CONCATENATE(\"สัปดาห์ที่ \",WEEKNUM(วันปฏิทิน),\"/วันที่ \",วันปฏิทิน-DATE(YEAR(วันปฏิทิน),1,0)),CONCATENATE(\"วันที่ \",วันปฏิทิน-DATE(YEAR(วันปฏิทิน),1,0)))","v":"วันที่ 218"}]

{"sheet":"ส.ค.","index":7,"n_rows":20,"n_cols":9,"rows_kept":20,"merged":[[16,2,17,2],[17,4,19,8]]}
[null,"ส.ค.",{"$f":"UPPER(TEXT(เริ่มต้นสัปดาห์,\"ddd\"))","v":"อา."},{"$f":"UPPER(TEXT(D3,\"aaa\"))","v":"จ."},"อ.","พ.","พฤ.","ศ.","ส."]
[null,{"$f":"ปีปฏิทิน","v":2018}]
[null,null,{"$f":"วันและสัปดาห์+DATE(ปีปฏิทิน,8,1)-WEEKDAY(DATE(ปีปฏิทิน,8,1),(เริ่มต้นสัปดาห์=\"จ.\")+1)+1","v":"2018-07-29"},"2018-07-30","2018-07-31","2018-08-01","2018-08-02","2018-08-03","2018-08-04"]
[null,null,{"$f":"IF(DAY(วันปฏิทิน)=1,CONCATENATE(\"สัปดาห์ที่ \",WEEKNUM(วันปฏิทิน),\"/วันที่ \",วันปฏิทิน-DATE(YEAR(วันปฏิทิน),1,0)),CONCATENATE(\"วันที่ \",วันปฏิทิน-DATE(YEAR(วันปฏิทิน),1,0)))","v":"วันที่ 210"},{"$f":"IF(DAY(วันปฏิทิน)=1,CONCATENATE(\"สัปดาห์ที่ \",WEEKNUM(วันปฏิทิน),\"/วันที่ \",วันปฏิทิน-DATE(YEAR(วันปฏิทิน),1,0)),CONCATENATE(\"วันที่ \",วันปฏิทิน-DATE(YEAR(วันปฏิทิน),1,0)))","v":"วันที่ 211"},{"$f":"IF(DAY(วันปฏิทิน)=1,CONCATENATE(\"สัปดาห์ที่ \",WEEKNUM(วันปฏิทิน),\"/วันที่ \",วันปฏิทิน-DATE(YEAR(วันปฏิทิน),1,0)),CONCATENATE(\"วันที่ \",วันปฏิทิน-DATE(YEAR(วันปฏิทิน),1,0)))","v":"วันที่ 212"},{"$f":"IF(DAY(วันปฏิทิน)=1,CONCATENATE(\"สัปดาห์ที่ \",WEEKNUM(วันปฏิทิน),\"/วันที่ \",วันปฏิทิน-DATE(YEAR(วันปฏิทิน),1,0)),CONCATENATE(\"วันที่ \",วันปฏิทิน-DATE(YEAR(วันปฏิทิน),1,0)))","v":"สัปดาห์ที่ 31/วันที่ 213"},{"$f":"IF(DAY(วันปฏิทิน)=1,CONCATENATE(\"สัปดาห์ที่ \",WEEKNUM(วันปฏิทิน),\"/วันที่ \",วันปฏิทิน-DATE(YEAR(วันปฏิทิน),1,0)),CONCATENATE(\"วันที่ \",วันปฏิทิน-DATE(YEAR(วันปฏิทิน),1,0)))","v":"วันที่ 214"},{"$f":"IF(DAY(วันปฏิทิน)=1,CONCATENATE(\"สัปดาห์ที่ \",WEEKNUM(วันปฏิทิน),\"/วันที่ \",วันปฏิทิน-DATE(YEAR(วันปฏิทิน),1,0)),CONCATENATE(\"วันที่ \",วันปฏิทิน-DATE(YEAR(วันปฏิทิน),1,0)))","v":"วันที่ 215"},{"$f":"IF(DAY(วันปฏิทิน)=1,CONCATENATE(\"สัปดาห์ที่ \",WEEKNUM(วันปฏิทิน),\"/วันที่ \",วันปฏิทิน-DATE(YEAR(วันปฏิทิน),1,0)),CONCATENATE(\"วันที่ \",วันปฏิทิน-DATE(YEAR(วันปฏิทิน),1,0)))","v":"วันที่ 216"}]
[]
[null,null,{"$f":"วันและสัปดาห์+DATE(ปีปฏิทิน,8,1)-WEEKDAY(DATE(ปีปฏิทิน,8,1),(เริ่มต้นสัปดาห์=\"จ.\")+1)+8","v":"2018-08-05"},"2018-08-06","2018-08-07","2018-08-08","2018-08-09","2018-08-10","2018-08-11"]
[null,null,{"$f":"IF(WEEKDAY(วันปฏิทิน)=WeekStartValue,CONCATENATE(\"สัปดาห์ที่ \",WEEKNUM(วันปฏิทิน),\"/วันที่ \",วันปฏิทิน-DATE(YEAR(วันปฏิทิน),1,0)),CONCATENATE(\"วันที่ \",วันปฏิทิน-DATE(YEAR(วันปฏิทิน),1,0)))","v":"สัปดาห์ที่ 32/วันที่ 217"},{"$f":"IF(WEEKDAY(วันปฏิทิน)=WeekStartValue,CONCATENATE(\"สัปดาห์ที่ \",WEEKNUM(วันปฏิทิน),\"/วันที่ \",วันปฏิทิน-DATE(YEAR(วันปฏิทิน),1,0)),CONCATENATE(\"วันที่ \",วันปฏิทิน-DATE(YEAR(วันปฏิทิน),1,0)))","v":"วันที่ 218"},{"$f":"IF(WEEKDAY(วันปฏิทิน)=WeekStartValue,CONCATENATE(\"สัปดาห์ที่ \",WEEKNUM(วันปฏิทิน),\"/วันที่ \",วันปฏิทิน-DATE(YEAR(วันปฏิทิน),1,0)),CONCATENATE(\"วันที่ \",วันปฏิทิน-DATE(YEAR(วันปฏิทิน),1,0)))","v":"วันที่ 219"},{"$f":"IF(WEEKDAY(วันปฏิทิน)=WeekStartValue,CONCATENATE(\"สัปดาห์ที่ \",WEEKNUM(วันปฏิทิน),\"/วันที่ \",วันปฏิทิน-DATE(YEAR(วันปฏิทิน),1,0)),CONCATENATE(\"วันที่ \",วันปฏิทิน-DATE(YEAR(วันปฏิทิน),1,0)))","v":"วันที่ 220"},{"$f":"IF(WEEKDAY(วันปฏิทิน)=WeekStartValue,CONCATENATE(\"สัปดาห์ที่ \",WEEKNUM(วันปฏิทิน),\"/วันที่ \",วันปฏิทิน-DATE(YEAR(วันปฏิทิน),1,0)),CONCATENATE(\"วันที่ \",วันปฏิทิน-DATE(YEAR(วันปฏิทิน),1,0)))","v":"วันที่ 221"},{"$f":"IF(WEEKDAY(วันปฏิทิน)=WeekStartValue,CONCATENATE(\"สัปดาห์ที่ \",WEEKNUM(วันปฏิทิน),\"/วันที่ \",วันปฏิทิน-DATE(YEAR(วันปฏิทิน),1,0)),CONCATENATE(\"วันที่ \",วันปฏิทิน-DATE(YEAR(วันปฏิทิน),1,0)))","v":"วันที่ 222"},{"$f":"IF(WEEKDAY(วันปฏิทิน)=WeekStartValue,CONCATENATE(\"สัปดาห์ที่ \",WEEKNUM(วันปฏิทิน),\"/วันที่ \",วันปฏิทิน-DATE(YEAR(วันปฏิทิน),1,0)),CONCATENATE(\"วันที่ \",วันปฏิทิน-DATE(YEAR(วันปฏิทิน),1,0)))","v":"วันที่ 223"}]
[]
[null,null,{"$f":"วันและสัปดาห์+DATE(ปีปฏิทิน,8,1)-WEEKDAY(DATE(ปีปฏิทิน,8,1),(เริ่มต้นสัปดาห์=\"จ.\")+1)+15","v":"2018-08-12"},"2018-08-13","2018-08-14","2018-08-15","2018-08-16","2018-08-17","2018-08-18"]
[null,null,{"$f":"IF(WEEKDAY(วันปฏิทิน)=WeekStartValue,CONCATENATE(\"สัปดาห์ที่ \",WEEKNUM(วันปฏิทิน),\"/วันที่ \",วันปฏิทิน-DATE(YEAR(วันปฏิทิน),1,0)),CONCATENATE(\"วันที่ \",วันปฏิทิน-DATE(YEAR(วันปฏิทิน),1,0)))","v":"สัปดาห์ที่ 33/วันที่ 224"},{"$f":"IF(WEEKDAY(วันปฏิทิน)=WeekStartValue,CONCATENATE(\"สัปดาห์ที่ \",WEEKNUM(วันปฏิทิน),\"/วันที่ \",วันปฏิทิน-DATE(YEAR(วันปฏิทิน),1,0)),CONCATENATE(\"วันที่ \",วันปฏิทิน-DATE(YEAR(วันปฏิทิน),1,0)))","v":"วันที่ 225"},{"$f":"IF(WEEKDAY(วันปฏิทิน)=WeekStartValue,CONCATENATE(\"สัปดาห์ที่ \",WEEKNUM(วันปฏิทิน),\"/วันที่ \",วันปฏิทิน-DATE(YEAR(วันปฏิทิน),1,0)),CONCATENATE(\"วันที่ \",วันปฏิทิน-DATE(YEAR(วันปฏิทิน),1,0)))","v":"วันที่ 226"},{"$f":"IF(WEEKDAY(วันปฏิทิน)=WeekStartValue,CONCATENATE(\"สัปดาห์ที่ \",WEEKNUM(วันปฏิทิน),\"/วันที่ \",วันปฏิทิน-DATE(YEAR(วันปฏิทิน),1,0)),CONCATENATE(\"วันที่ \",วันปฏิทิน-DATE(YEAR(วันปฏิทิน),1,0)))","v":"วันที่ 227"},{"$f":"IF(WEEKDAY(วันปฏิทิน)=WeekStartValue,CONCATENATE(\"สัปดาห์ที่ \",WEEKNUM(วันปฏิทิน),\"/วันที่ \",วันปฏิทิน-DATE(YEAR(วันปฏิทิน),1,0)),CONCATENATE(\"วันที่ \",วันปฏิทิน-DATE(YEAR(วันปฏิทิน),1,0)))","v":"วันที่ 228"},{"$f":"IF(WEEKDAY(วันปฏิทิน)=WeekStartValue,CONCATENATE(\"สัปดาห์ที่ \",WEEKNUM(วันปฏิทิน),\"/วันที่ \",วันปฏิทิน-DATE(YEAR(วันปฏิทิน),1,0)),CONCATENATE(\"วันที่ \",วันปฏิทิน-DATE(YEAR(วันปฏิทิน),1,0)))","v":"วันที่ 229"},{"$f":"IF(WEEKDAY(วันปฏิทิน)=WeekStartValue,CONCATENATE(\"สัปดาห์ที่ \",WEEKNUM(วันปฏิทิน),\"/วันที่ \",วันปฏิทิน-DATE(YEAR(วันปฏิทิน),1,0)),CONCATENATE(\"วันที่ \",วันปฏิทิน-DATE(YEAR(วันปฏิทิน),1,0)))","v":"วันที่ 230"}]
[]
[null,null,{"$f":"วันและสัปดาห์+DATE(ปีปฏิทิน,8,1)-WEEKDAY(DATE(ปีปฏิทิน,8,1),(เริ่มต้นสัปดาห์=\"จ.\")+1)+22","v":"2018-08-19"},"2018-08-20","2018-08-21","2018-08-22","2018-08-23","2018-08-24","2018-08-25"]
[null,null,{"$f":"IF(WEEKDAY(วันปฏิทิน)=WeekStartValue,CONCATENATE(\"สัปดาห์ที่ \",WEEKNUM(วันปฏิทิน),\"/วันที่ \",วันปฏิทิน-DATE(YEAR(วันปฏิทิน),1,0)),CONCATENATE(\"วันที่ \",วันปฏิทิน-DATE(YEAR(วันปฏิทิน),1,0)))","v":"สัปดาห์ที่ 34/วันที่ 231"},{"$f":"IF(WEEKDAY(วันปฏิทิน)=WeekStartValue,CONCATENATE(\"สัปดาห์ที่ \",WEEKNUM(วันปฏิทิน),\"/วันที่ \",วันปฏิทิน-DATE(YEAR(วันปฏิทิน),1,0)),CONCATENATE(\"วันที่ \",วันปฏิทิน-DATE(YEAR(วันปฏิทิน),1,0)))","v":"วันที่ 232"},{"$f":"IF(WEEKDAY(วันปฏิทิน)=WeekStartValue,CONCATENATE(\"สัปดาห์ที่ \",WEEKNUM(วันปฏิทิน),\"/วันที่ \",วันปฏิทิน-DATE(YEAR(วันปฏิทิน),1,0)),CONCATENATE(\"วันที่ \",วันปฏิทิน-DATE(YEAR(วันปฏิทิน),1,0)))","v":"วันที่ 233"},{"$f":"IF(WEEKDAY(วันปฏิทิน)=WeekStartValue,CONCATENATE(\"สัปดาห์ที่ \",WEEKNUM(วันปฏิทิน),\"/วันที่ \",วันปฏิทิน-DATE(YEAR(วันปฏิทิน),1,0)),CONCATENATE(\"วันที่ \",วันปฏิทิน-DATE(YEAR(วันปฏิทิน),1,0)))","v":"วันที่ 234"},{"$f":"IF(WEEKDAY(วันปฏิทิน)=WeekStartValue,CONCATENATE(\"สัปดาห์ที่ \",WEEKNUM(วันปฏิทิน),\"/วันที่ \",วันปฏิทิน-DATE(YEAR(วันปฏิทิน),1,0)),CONCATENATE(\"วันที่ \",วันปฏิทิน-DATE(YEAR(วันปฏิทิน),1,0)))","v":"วันที่ 235"},{"$f":"IF(WEEKDAY(วันปฏิทิน)=WeekStartValue,CONCATENATE(\"สัปดาห์ที่ \",WEEKNUM(วันปฏิทิน),\"/วันที่ \",วันปฏิทิน-DATE(YEAR(วันปฏิทิน),1,0)),CONCATENATE(\"วันที่ \",วันปฏิทิน-DATE(YEAR(วันปฏิทิน),1,0)))","v":"วันที่ 236"},{"$f":"IF(WEEKDAY(วันปฏิทิน)=WeekStartValue,CONCATENATE(\"สัปดาห์ที่ \",WEEKNUM(วันปฏิทิน),\"/วันที่ \",วันปฏิทิน-DATE(YEAR(วันปฏิทิน),1,0)),CONCATENATE(\"วันที่ \",วันปฏิทิน-DATE(YEAR(วันปฏิทิน),1,0)))","v":"วันที่ 237"}]
[]
[null,null,{"$f":"วันและสัปดาห์+DATE(ปีปฏิทิน,8,1)-WEEKDAY(DATE(ปีปฏิทิน,8,1),(เริ่มต้นสัปดาห์=\"จ.\")+1)+29","v":"2018-08-26"},"2018-08-27","2018-08-28","2018-08-29","2018-08-30","2018-08-31","2018-09-01"]
[null,null,{"$f":"IF(WEEKDAY(วันปฏิทิน)=WeekStartValue,CONCATENATE(\"สัปดาห์ที่ \",WEEKNUM(วันปฏิทิน),\"/วันที่ \",วันปฏิทิน-DATE(YEAR(วันปฏิทิน),1,0)),CONCATENATE(\"วันที่ \",วันปฏิทิน-DATE(YEAR(วันปฏิทิน),1,0)))","v":"สัปดาห์ที่ 35/วันที่ 238"},{"$f":"IF(WEEKDAY(วันปฏิทิน)=WeekStartValue,CONCATENATE(\"สัปดาห์ที่ \",WEEKNUM(วันปฏิทิน),\"/วันที่ \",วันปฏิทิน-DATE(YEAR(วันปฏิทิน),1,0)),CONCATENATE(\"วันที่ \",วันปฏิทิน-DATE(YEAR(วันปฏิทิน),1,0)))","v":"วันที่ 239"},{"$f":"IF(WEEKDAY(วันปฏิทิน)=WeekStartValue,CONCATENATE(\"สัปดาห์ที่ \",WEEKNUM(วันปฏิทิน),\"/วันที่ \",วันปฏิทิน-DATE(YEAR(วันปฏิทิน),1,0)),CONCATENATE(\"วันที่ \",วันปฏิทิน-DATE(YEAR(วันปฏิทิน),1,0)))","v":"วันที่ 240"},{"$f":"IF(WEEKDAY(วันปฏิทิน)=WeekStartValue,CONCATENATE(\"สัปดาห์ที่ \",WEEKNUM(วันปฏิทิน),\"/วันที่ \",วันปฏิทิน-DATE(YEAR(วันปฏิทิน),1,0)),CONCATENATE(\"วันที่ \",วันปฏิทิน-DATE(YEAR(วันปฏิทิน),1,0)))","v":"วันที่ 241"},{"$f":"IF(WEEKDAY(วันปฏิทิน)=WeekStartValue,CONCATENATE(\"สัปดาห์ที่ \",WEEKNUM(วันปฏิทิน),\"/วันที่ \",วันปฏิทิน-DATE(YEAR(วันปฏิทิน),1,0)),CONCATENATE(\"วันที่ \",วันปฏิทิน-DATE(YEAR(วันปฏิทิน),1,0)))","v":"วันที่ 242"},{"$f":"IF(WEEKDAY(วันปฏิทิน)=WeekStartValue,CONCATENATE(\"สัปดาห์ที่ \",WEEKNUM(วันปฏิทิน),\"/วันที่ \",วันปฏิทิน-DATE(YEAR(วันปฏิทิน),1,0)),CONCATENATE(\"วันที่ \",วันปฏิทิน-DATE(YEAR(วันปฏิทิน),1,0)))","v":"วันที่ 243"},{"$f":"IF(WEEKDAY(วันปฏิทิน)=WeekStartValue,CONCATENATE(\"สัปดาห์ที่ \",WEEKNUM(วันปฏิทิน),\"/วันที่ \",วันปฏิทิน-DATE(YEAR(วันปฏิทิน),1,0)),CONCATENATE(\"วันที่ \",วันปฏิทิน-DATE(YEAR(วันปฏิทิน),1,0)))","v":"วันที่ 244"}]
[{"$nulls":4},"หมายเหตุ"]
[]
[null,null,{"$f":"วันและสัปดาห์+DATE(ปีปฏิทิน,8,1)-WEEKDAY(DATE(ปีปฏิทิน,8,1),(เริ่มต้นสัปดาห์=\"จ.\")+1)+36","v":"2018-09-02"},"2018-09-03"]
[null,null,{"$f":"IF(WEEKDAY(วันปฏิทิน)=WeekStartValue,CONCATENATE(\"สัปดาห์ที่ \",WEEKNUM(วันปฏิทิน),\"/วันที่ \",วันปฏิทิน-DATE(YEAR(วันปฏิทิน),1,0)),CONCATENATE(\"วันที่ \",วันปฏิทิน-DATE(YEAR(วันปฏิทิน),1,0)))","v":"สัปดาห์ที่ 36/วันที่ 245"},{"$f":"IF(WEEKDAY(วันปฏิทิน)=WeekStartValue,CONCATENATE(\"สัปดาห์ที่ \",WEEKNUM(วันปฏิทิน),\"/วันที่ \",วันปฏิทิน-DATE(YEAR(วันปฏิทิน),1,0)),CONCATENATE(\"วันที่ \",วันปฏิทิน-DATE(YEAR(วันปฏิทิน),1,0)))","v":"วันที่ 246"}]

{"sheet":"ก.ย.","index":8,"n_rows":20,"n_cols":9,"rows_kept":20,"merged":[[16,2,17,2],[17,4,19,8]]}
[null,"ก.ย.",{"$f":"UPPER(TEXT(เริ่มต้นสัปดาห์,\"ddd\"))","v":"อา."},{"$f":"UPPER(TEXT(D3,\"aaa\"))","v":"จ."},"อ.","พ.","พฤ.","ศ.","ส."]
[null,{"$f":"ปีปฏิทิน","v":2018}]
[null,null,{"$f":"วันและสัปดาห์+DATE(ปีปฏิทิน,9,1)-WEEKDAY(DATE(ปีปฏิทิน,9,1),(เริ่มต้นสัปดาห์=\"จ.\")+1)+1","v":"2018-08-26"},"2018-08-27","2018-08-28","2018-08-29","2018-08-30","2018-08-31","2018-09-01"]
[null,null,{"$f":"IF(DAY(วันปฏิทิน)=1,CONCATENATE(\"สัปดาห์ที่ \",WEEKNUM(วันปฏิทิน),\"/วันที่ \",วันปฏิทิน-DATE(YEAR(วันปฏิทิน),1,0)),CONCATENATE(\"วันที่ \",วันปฏิทิน-DATE(YEAR(วันปฏิทิน),1,0)))","v":"วันที่ 238"},{"$f":"IF(DAY(วันปฏิทิน)=1,CONCATENATE(\"สัปดาห์ที่ \",WEEKNUM(วันปฏิทิน),\"/วันที่ \",วันปฏิทิน-DATE(YEAR(วันปฏิทิน),1,0)),CONCATENATE(\"วันที่ \",วันปฏิทิน-DATE(YEAR(วันปฏิทิน),1,0)))","v":"วันที่ 239"},{"$f":"IF(DAY(วันปฏิทิน)=1,CONCATENATE(\"สัปดาห์ที่ \",WEEKNUM(วันปฏิทิน),\"/วันที่ \",วันปฏิทิน-DATE(YEAR(วันปฏิทิน),1,0)),CONCATENATE(\"วันที่ \",วันปฏิทิน-DATE(YEAR(วันปฏิทิน),1,0)))","v":"วันที่ 240"},{"$f":"IF(DAY(วันปฏิทิน)=1,CONCATENATE(\"สัปดาห์ที่ \",WEEKNUM(วันปฏิทิน),\"/วันที่ \",วันปฏิทิน-DATE(YEAR(วันปฏิทิน),1,0)),CONCATENATE(\"วันที่ \",วันปฏิทิน-DATE(YEAR(วันปฏิทิน),1,0)))","v":"วันที่ 241"},{"$f":"IF(DAY(วันปฏิทิน)=1,CONCATENATE(\"สัปดาห์ที่ \",WEEKNUM(วันปฏิทิน),\"/วันที่ \",วันปฏิทิน-DATE(YEAR(วันปฏิทิน),1,0)),CONCATENATE(\"วันที่ \",วันปฏิทิน-DATE(YEAR(วันปฏิทิน),1,0)))","v":"วันที่ 242"},{"$f":"IF(DAY(วันปฏิทิน)=1,CONCATENATE(\"สัปดาห์ที่ \",WEEKNUM(วันปฏิทิน),\"/วันที่ \",วันปฏิทิน-DATE(YEAR(วันปฏิทิน),1,0)),CONCATENATE(\"วันที่ \",วันปฏิทิน-DATE(YEAR(วันปฏิทิน),1,0)))","v":"วันที่ 243"},{"$f":"IF(DAY(วันปฏิทิน)=1,CONCATENATE(\"สัปดาห์ที่ \",WEEKNUM(วันปฏิทิน),\"/วันที่ \",วันปฏิทิน-DATE(YEAR(วันปฏิทิน),1,0)),CONCATENATE(\"วันที่ \",วันปฏิทิน-DATE(YEAR(วันปฏิทิน),1,0)))","v":"สัปดาห์ที่ 35/วันที่ 244"}]
[]
[null,null,{"$f":"วันและสัปดาห์+DATE(ปีปฏิทิน,9,1)-WEEKDAY(DATE(ปีปฏิทิน,9,1),(เริ่มต้นสัปดาห์=\"จ.\")+1)+8","v":"2018-09-02"},"2018-09-03","2018-09-04","2018-09-05","2018-09-06","2018-09-07","2018-09-08"]
[null,null,{"$f":"IF(WEEKDAY(วันปฏิทิน)=WeekStartValue,CONCATENATE(\"สัปดาห์ที่ \",WEEKNUM(วันปฏิทิน),\"/วันที่ \",วันปฏิทิน-DATE(YEAR(วันปฏิทิน),1,0)),CONCATENATE(\"วันที่ \",วันปฏิทิน-DATE(YEAR(วันปฏิทิน),1,0)))","v":"สัปดาห์ที่ 36/วันที่ 245"},{"$f":"IF(WEEKDAY(วันปฏิทิน)=WeekStartValue,CONCATENATE(\"สัปดาห์ที่ \",WEEKNUM(วันปฏิทิน),\"/วันที่ \",วันปฏิทิน-DATE(YEAR(วันปฏิทิน),1,0)),CONCATENATE(\"วันที่ \",วันปฏิทิน-DATE(YEAR(วันปฏิทิน),1,0)))","v":"วันที่ 246"},{"$f":"IF(WEEKDAY(วันปฏิทิน)=WeekStartValue,CONCATENATE(\"สัปดาห์ที่ \",WEEKNUM(วันปฏิทิน),\"/วันที่ \",วันปฏิทิน-DATE(YEAR(วันปฏิทิน),1,0)),CONCATENATE(\"วันที่ \",วันปฏิทิน-DATE(YEAR(วันปฏิทิน),1,0)))","v":"วันที่ 247"},{"$f":"IF(WEEKDAY(วันปฏิทิน)=WeekStartValue,CONCATENATE(\"สัปดาห์ที่ \",WEEKNUM(วันปฏิทิน),\"/วันที่ \",วันปฏิทิน-DATE(YEAR(วันปฏิทิน),1,0)),CONCATENATE(\"วันที่ \",วันปฏิทิน-DATE(YEAR(วันปฏิทิน),1,0)))","v":"วันที่ 248"},{"$f":"IF(WEEKDAY(วันปฏิทิน)=WeekStartValue,CONCATENATE(\"สัปดาห์ที่ \",WEEKNUM(วันปฏิทิน),\"/วันที่ \",วันปฏิทิน-DATE(YEAR(วันปฏิทิน),1,0)),CONCATENATE(\"วันที่ \",วันปฏิทิน-DATE(YEAR(วันปฏิทิน),1,0)))","v":"วันที่ 249"},{"$f":"IF(WEEKDAY(วันปฏิทิน)=WeekStartValue,CONCATENATE(\"สัปดาห์ที่ \",WEEKNUM(วันปฏิทิน),\"/วันที่ \",วันปฏิทิน-DATE(YEAR(วันปฏิทิน),1,0)),CONCATENATE(\"วันที่ \",วันปฏิทิน-DATE(YEAR(วันปฏิทิน),1,0)))","v":"วันที่ 250"},{"$f":"IF(WEEKDAY(วันปฏิทิน)=WeekStartValue,CONCATENATE(\"สัปดาห์ที่ \",WEEKNUM(วันปฏิทิน),\"/วันที่ \",วันปฏิทิน-DATE(YEAR(วันปฏิทิน),1,0)),CONCATENATE(\"วันที่ \",วันปฏิทิน-DATE(YEAR(วันปฏิทิน),1,0)))","v":"วันที่ 251"}]
[]
[null,null,{"$f":"วันและสัปดาห์+DATE(ปีปฏิทิน,9,1)-WEEKDAY(DATE(ปีปฏิทิน,9,1),(เริ่มต้นสัปดาห์=\"จ.\")+1)+15","v":"2018-09-09"},"2018-09-10","2018-09-11","2018-09-12","2018-09-13","2018-09-14","2018-09-15"]
[null,null,{"$f":"IF(WEEKDAY(วันปฏิทิน)=WeekStartValue,CONCATENATE(\"สัปดาห์ที่ \",WEEKNUM(วันปฏิทิน),\"/วันที่ \",วันปฏิทิน-DATE(YEAR(วันปฏิทิน),1,0)),CONCATENATE(\"วันที่ \",วันปฏิทิน-DATE(YEAR(วันปฏิทิน),1,0)))","v":"สัปดาห์ที่ 37/วันที่ 252"},{"$f":"IF(WEEKDAY(วันปฏิทิน)=WeekStartValue,CONCATENATE(\"สัปดาห์ที่ \",WEEKNUM(วันปฏิทิน),\"/วันที่ \",วันปฏิทิน-DATE(YEAR(วันปฏิทิน),1,0)),CONCATENATE(\"วันที่ \",วันปฏิทิน-DATE(YEAR(วันปฏิทิน),1,0)))","v":"วันที่ 253"},{"$f":"IF(WEEKDAY(วันปฏิทิน)=WeekStartValue,CONCATENATE(\"สัปดาห์ที่ \",WEEKNUM(วันปฏิทิน),\"/วันที่ \",วันปฏิทิน-DATE(YEAR(วันปฏิทิน),1,0)),CONCATENATE(\"วันที่ \",วันปฏิทิน-DATE(YEAR(วันปฏิทิน),1,0)))","v":"วันที่ 254"},{"$f":"IF(WEEKDAY(วันปฏิทิน)=WeekStartValue,CONCATENATE(\"สัปดาห์ที่ \",WEEKNUM(วันปฏิทิน),\"/วันที่ \",วันปฏิทิน-DATE(YEAR(วันปฏิทิน),1,0)),CONCATENATE(\"วันที่ \",วันปฏิทิน-DATE(YEAR(วันปฏิทิน),1,0)))","v":"วันที่ 255"},{"$f":"IF(WEEKDAY(วันปฏิทิน)=WeekStartValue,CONCATENATE(\"สัปดาห์ที่ \",WEEKNUM(วันปฏิทิน),\"/วันที่ \",วันปฏิทิน-DATE(YEAR(วันปฏิทิน),1,0)),CONCATENATE(\"วันที่ \",วันปฏิทิน-DATE(YEAR(วันปฏิทิน),1,0)))","v":"วันที่ 256"},{"$f":"IF(WEEKDAY(วันปฏิทิน)=WeekStartValue,CONCATENATE(\"สัปดาห์ที่ \",WEEKNUM(วันปฏิทิน),\"/วันที่ \",วันปฏิทิน-DATE(YEAR(วันปฏิทิน),1,0)),CONCATENATE(\"วันที่ \",วันปฏิทิน-DATE(YEAR(วันปฏิทิน),1,0)))","v":"วันที่ 257"},{"$f":"IF(WEEKDAY(วันปฏิทิน)=WeekStartValue,CONCATENATE(\"สัปดาห์ที่ \",WEEKNUM(วันปฏิทิน),\"/วันที่ \",วันปฏิทิน-DATE(YEAR(วันปฏิทิน),1,0)),CONCATENATE(\"วันที่ \",วันปฏิทิน-DATE(YEAR(วันปฏิทิน),1,0)))","v":"วันที่ 258"}]
[]
[null,null,{"$f":"วันและสัปดาห์+DATE(ปีปฏิทิน,9,1)-WEEKDAY(DATE(ปีปฏิทิน,9,1),(เริ่มต้นสัปดาห์=\"จ.\")+1)+22","v":"2018-09-16"},"2018-09-17","2018-09-18","2018-09-19","2018-09-20","2018-09-21","2018-09-22"]
[null,null,{"$f":"IF(WEEKDAY(วันปฏิทิน)=WeekStartValue,CONCATENATE(\"สัปดาห์ที่ \",WEEKNUM(วันปฏิทิน),\"/วันที่ \",วันปฏิทิน-DATE(YEAR(วันปฏิทิน),1,0)),CONCATENATE(\"วันที่ \",วันปฏิทิน-DATE(YEAR(วันปฏิทิน),1,0)))","v":"สัปดาห์ที่ 38/วันที่ 259"},{"$f":"IF(WEEKDAY(วันปฏิทิน)=WeekStartValue,CONCATENATE(\"สัปดาห์ที่ \",WEEKNUM(วันปฏิทิน),\"/วันที่ \",วันปฏิทิน-DATE(YEAR(วันปฏิทิน),1,0)),CONCATENATE(\"วันที่ \",วันปฏิทิน-DATE(YEAR(วันปฏิทิน),1,0)))","v":"วันที่ 260"},{"$f":"IF(WEEKDAY(วันปฏิทิน)=WeekStartValue,CONCATENATE(\"สัปดาห์ที่ \",WEEKNUM(วันปฏิทิน),\"/วันที่ \",วันปฏิทิน-DATE(YEAR(วันปฏิทิน),1,0)),CONCATENATE(\"วันที่ \",วันปฏิทิน-DATE(YEAR(วันปฏิทิน),1,0)))","v":"วันที่ 261"},{"$f":"IF(WEEKDAY(วันปฏิทิน)=WeekStartValue,CONCATENATE(\"สัปดาห์ที่ \",WEEKNUM(วันปฏิทิน),\"/วันที่ \",วันปฏิทิน-DATE(YEAR(วันปฏิทิน),1,0)),CONCATENATE(\"วันที่ \",วันปฏิทิน-DATE(YEAR(วันปฏิทิน),1,0)))","v":"วันที่ 262"},{"$f":"IF(WEEKDAY(วันปฏิทิน)=WeekStartValue,CONCATENATE(\"สัปดาห์ที่ \",WEEKNUM(วันปฏิทิน),\"/วันที่ \",วันปฏิทิน-DATE(YEAR(วันปฏิทิน),1,0)),CONCATENATE(\"วันที่ \",วันปฏิทิน-DATE(YEAR(วันปฏิทิน),1,0)))","v":"วันที่ 263"},{"$f":"IF(WEEKDAY(วันปฏิทิน)=WeekStartValue,CONCATENATE(\"สัปดาห์ที่ \",WEEKNUM(วันปฏิทิน),\"/วันที่ \",วันปฏิทิน-DATE(YEAR(วันปฏิทิน),1,0)),CONCATENATE(\"วันที่ \",วันปฏิทิน-DATE(YEAR(วันปฏิทิน),1,0)))","v":"วันที่ 264"},{"$f":"IF(WEEKDAY(วันปฏิทิน)=WeekStartValue,CONCATENATE(\"สัปดาห์ที่ \",WEEKNUM(วันปฏิทิน),\"/วันที่ \",วันปฏิทิน-DATE(YEAR(วันปฏิทิน),1,0)),CONCATENATE(\"วันที่ \",วันปฏิทิน-DATE(YEAR(วันปฏิทิน),1,0)))","v":"วันที่ 265"}]
[]
[null,null,{"$f":"วันและสัปดาห์+DATE(ปีปฏิทิน,9,1)-WEEKDAY(DATE(ปีปฏิทิน,9,1),(เริ่มต้นสัปดาห์=\"จ.\")+1)+29","v":"2018-09-23"},"2018-09-24","2018-09-25","2018-09-26","2018-09-27","2018-09-28","2018-09-29"]
[null,null,{"$f":"IF(WEEKDAY(วันปฏิทิน)=WeekStartValue,CONCATENATE(\"สัปดาห์ที่ \",WEEKNUM(วันปฏิทิน),\"/วันที่ \",วันปฏิทิน-DATE(YEAR(วันปฏิทิน),1,0)),CONCATENATE(\"วันที่ \",วันปฏิทิน-DATE(YEAR(วันปฏิทิน),1,0)))","v":"สัปดาห์ที่ 39/วันที่ 266"},{"$f":"IF(WEEKDAY(วันปฏิทิน)=WeekStartValue,CONCATENATE(\"สัปดาห์ที่ \",WEEKNUM(วันปฏิทิน),\"/วันที่ \",วันปฏิทิน-DATE(YEAR(วันปฏิทิน),1,0)),CONCATENATE(\"วันที่ \",วันปฏิทิน-DATE(YEAR(วันปฏิทิน),1,0)))","v":"วันที่ 267"},{"$f":"IF(WEEKDAY(วันปฏิทิน)=WeekStartValue,CONCATENATE(\"สัปดาห์ที่ \",WEEKNUM(วันปฏิทิน),\"/วันที่ \",วันปฏิทิน-DATE(YEAR(วันปฏิทิน),1,0)),CONCATENATE(\"วันที่ \",วันปฏิทิน-DATE(YEAR(วันปฏิทิน),1,0)))","v":"วันที่ 268"},{"$f":"IF(WEEKDAY(วันปฏิทิน)=WeekStartValue,CONCATENATE(\"สัปดาห์ที่ \",WEEKNUM(วันปฏิทิน),\"/วันที่ \",วันปฏิทิน-DATE(YEAR(วันปฏิทิน),1,0)),CONCATENATE(\"วันที่ \",วันปฏิทิน-DATE(YEAR(วันปฏิทิน),1,0)))","v":"วันที่ 269"},{"$f":"IF(WEEKDAY(วันปฏิทิน)=WeekStartValue,CONCATENATE(\"สัปดาห์ที่ \",WEEKNUM(วันปฏิทิน),\"/วันที่ \",วันปฏิทิน-DATE(YEAR(วันปฏิทิน),1,0)),CONCATENATE(\"วันที่ \",วันปฏิทิน-DATE(YEAR(วันปฏิทิน),1,0)))","v":"วันที่ 270"},{"$f":"IF(WEEKDAY(วันปฏิทิน)=WeekStartValue,CONCATENATE(\"สัปดาห์ที่ \",WEEKNUM(วันปฏิทิน),\"/วันที่ \",วันปฏิทิน-DATE(YEAR(วันปฏิทิน),1,0)),CONCATENATE(\"วันที่ \",วันปฏิทิน-DATE(YEAR(วันปฏิทิน),1,0)))","v":"วันที่ 271"},{"$f":"IF(WEEKDAY(วันปฏิทิน)=WeekStartValue,CONCATENATE(\"สัปดาห์ที่ \",WEEKNUM(วันปฏิทิน),\"/วันที่ \",วันปฏิทิน-DATE(YEAR(วันปฏิทิน),1,0)),CONCATENATE(\"วันที่ \",วันปฏิทิน-DATE(YEAR(วันปฏิทิน),1,0)))","v":"วันที่ 272"}]
[{"$nulls":4},"หมายเหตุ"]
[]
[null,null,{"$f":"วันและสัปดาห์+DATE(ปีปฏิทิน,9,1)-WEEKDAY(DATE(ปีปฏิทิน,9,1),(เริ่มต้นสัปดาห์=\"จ.\")+1)+36","v":"2018-09-30"},"2018-10-01"]
[null,null,{"$f":"IF(WEEKDAY(วันปฏิทิน)=WeekStartValue,CONCATENATE(\"สัปดาห์ที่ \",WEEKNUM(วันปฏิทิน),\"/วันที่ \",วันปฏิทิน-DATE(YEAR(วันปฏิทิน),1,0)),CONCATENATE(\"วันที่ \",วันปฏิทิน-DATE(YEAR(วันปฏิทิน),1,0)))","v":"สัปดาห์ที่ 40/วันที่ 273"},{"$f":"IF(WEEKDAY(วันปฏิทิน)=WeekStartValue,CONCATENATE(\"สัปดาห์ที่ \",WEEKNUM(วันปฏิทิน),\"/วันที่ \",วันปฏิทิน-DATE(YEAR(วันปฏิทิน),1,0)),CONCATENATE(\"วันที่ \",วันปฏิทิน-DATE(YEAR(วันปฏิทิน),1,0)))","v":"วันที่ 274"}]

{"sheet":"ต.ค.","index":9,"n_rows":20,"n_cols":9,"rows_kept":20,"merged":[[16,2,17,2],[17,4,19,8]]}
[null,"ต.ค.",{"$f":"UPPER(TEXT(เริ่มต้นสัปดาห์,\"ddd\"))","v":"อา."},{"$f":"UPPER(TEXT(D3,\"aaa\"))","v":"จ."},"อ.","พ.","พฤ.","ศ.","ส."]
[null,{"$f":"ปีปฏิทิน","v":2018}]
[null,null,{"$f":"วันและสัปดาห์+DATE(ปีปฏิทิน,10,1)-WEEKDAY(DATE(ปีปฏิทิน,10,1),(เริ่มต้นสัปดาห์=\"จ.\")+1)+1","v":"2018-09-30"},"2018-10-01","2018-10-02","2018-10-03","2018-10-04","2018-10-05","2018-10-06"]
[null,null,{"$f":"IF(DAY(วันปฏิทิน)=1,CONCATENATE(\"สัปดาห์ที่ \",WEEKNUM(วันปฏิทิน),\"/วันที่ \",วันปฏิทิน-DATE(YEAR(วันปฏิทิน),1,0)),CONCATENATE(\"วันที่ \",วันปฏิทิน-DATE(YEAR(วันปฏิทิน),1,0)))","v":"วันที่ 273"},{"$f":"IF(DAY(วันปฏิทิน)=1,CONCATENATE(\"สัปดาห์ที่ \",WEEKNUM(วันปฏิทิน),\"/วันที่ \",วันปฏิทิน-DATE(YEAR(วันปฏิทิน),1,0)),CONCATENATE(\"วันที่ \",วันปฏิทิน-DATE(YEAR(วันปฏิทิน),1,0)))","v":"สัปดาห์ที่ 40/วันที่ 274"},{"$f":"IF(DAY(วันปฏิทิน)=1,CONCATENATE(\"สัปดาห์ที่ \",WEEKNUM(วันปฏิทิน),\"/วันที่ \",วันปฏิทิน-DATE(YEAR(วันปฏิทิน),1,0)),CONCATENATE(\"วันที่ \",วันปฏิทิน-DATE(YEAR(วันปฏิทิน),1,0)))","v":"วันที่ 275"},{"$f":"IF(DAY(วันปฏิทิน)=1,CONCATENATE(\"สัปดาห์ที่ \",WEEKNUM(วันปฏิทิน),\"/วันที่ \",วันปฏิทิน-DATE(YEAR(วันปฏิทิน),1,0)),CONCATENATE(\"วันที่ \",วันปฏิทิน-DATE(YEAR(วันปฏิทิน),1,0)))","v":"วันที่ 276"},{"$f":"IF(DAY(วันปฏิทิน)=1,CONCATENATE(\"สัปดาห์ที่ \",WEEKNUM(วันปฏิทิน),\"/วันที่ \",วันปฏิทิน-DATE(YEAR(วันปฏิทิน),1,0)),CONCATENATE(\"วันที่ \",วันปฏิทิน-DATE(YEAR(วันปฏิทิน),1,0)))","v":"วันที่ 277"},{"$f":"IF(DAY(วันปฏิทิน)=1,CONCATENATE(\"สัปดาห์ที่ \",WEEKNUM(วันปฏิทิน),\"/วันที่ \",วันปฏิทิน-DATE(YEAR(วันปฏิทิน),1,0)),CONCATENATE(\"วันที่ \",วันปฏิทิน-DATE(YEAR(วันปฏิทิน),1,0)))","v":"วันที่ 278"},{"$f":"IF(DAY(วันปฏิทิน)=1,CONCATENATE(\"สัปดาห์ที่ \",WEEKNUM(วันปฏิทิน),\"/วันที่ \",วันปฏิทิน-DATE(YEAR(วันปฏิทิน),1,0)),CONCATENATE(\"วันที่ \",วันปฏิทิน-DATE(YEAR(วันปฏิทิน),1,0)))","v":"วันที่ 279"}]
[]
[null,null,{"$f":"วันและสัปดาห์+DATE(ปีปฏิทิน,10,1)-WEEKDAY(DATE(ปีปฏิทิน,10,1),(เริ่มต้นสัปดาห์=\"จ.\")+1)+8","v":"2018-10-07"},"2018-10-08","2018-10-09","2018-10-10","2018-10-11","2018-10-12","2018-10-13"]
[null,null,{"$f":"IF(WEEKDAY(วันปฏิทิน)=WeekStartValue,CONCATENATE(\"สัปดาห์ที่ \",WEEKNUM(วันปฏิทิน),\"/วันที่ \",วันปฏิทิน-DATE(YEAR(วันปฏิทิน),1,0)),CONCATENATE(\"วันที่ \",วันปฏิทิน-DATE(YEAR(วันปฏิทิน),1,0)))","v":"สัปดาห์ที่ 41/วันที่ 280"},{"$f":"IF(WEEKDAY(วันปฏิทิน)=WeekStartValue,CONCATENATE(\"สัปดาห์ที่ \",WEEKNUM(วันปฏิทิน),\"/วันที่ \",วันปฏิทิน-DATE(YEAR(วันปฏิทิน),1,0)),CONCATENATE(\"วันที่ \",วันปฏิทิน-DATE(YEAR(วันปฏิทิน),1,0)))","v":"วันที่ 281"},{"$f":"IF(WEEKDAY(วันปฏิทิน)=WeekStartValue,CONCATENATE(\"สัปดาห์ที่ \",WEEKNUM(วันปฏิทิน),\"/วันที่ \",วันปฏิทิน-DATE(YEAR(วันปฏิทิน),1,0)),CONCATENATE(\"วันที่ \",วันปฏิทิน-DATE(YEAR(วันปฏิทิน),1,0)))","v":"วันที่ 282"},{"$f":"IF(WEEKDAY(วันปฏิทิน)=WeekStartValue,CONCATENATE(\"สัปดาห์ที่ \",WEEKNUM(วันปฏิทิน),\"/วันที่ \",วันปฏิทิน-DATE(YEAR(วันปฏิทิน),1,0)),CONCATENATE(\"วันที่ \",วันปฏิทิน-DATE(YEAR(วันปฏิทิน),1,0)))","v":"วันที่ 283"},{"$f":"IF(WEEKDAY(วันปฏิทิน)=WeekStartValue,CONCATENATE(\"สัปดาห์ที่ \",WEEKNUM(วันปฏิทิน),\"/วันที่ \",วันปฏิทิน-DATE(YEAR(วันปฏิทิน),1,0)),CONCATENATE(\"วันที่ \",วันปฏิทิน-DATE(YEAR(วันปฏิทิน),1,0)))","v":"วันที่ 284"},{"$f":"IF(WEEKDAY(วันปฏิทิน)=WeekStartValue,CONCATENATE(\"สัปดาห์ที่ \",WEEKNUM(วันปฏิทิน),\"/วันที่ \",วันปฏิทิน-DATE(YEAR(วันปฏิทิน),1,0)),CONCATENATE(\"วันที่ \",วันปฏิทิน-DATE(YEAR(วันปฏิทิน),1,0)))","v":"วันที่ 285"},{"$f":"IF(WEEKDAY(วันปฏิทิน)=WeekStartValue,CONCATENATE(\"สัปดาห์ที่ \",WEEKNUM(วันปฏิทิน),\"/วันที่ \",วันปฏิทิน-DATE(YEAR(วันปฏิทิน),1,0)),CONCATENATE(\"วันที่ \",วันปฏิทิน-DATE(YEAR(วันปฏิทิน),1,0)))","v":"วันที่ 286"}]
[]
[null,null,{"$f":"วันและสัปดาห์+DATE(ปีปฏิทิน,10,1)-WEEKDAY(DATE(ปีปฏิทิน,10,1),(เริ่มต้นสัปดาห์=\"จ.\")+1)+15","v":"2018-10-14"},"2018-10-15","2018-10-16","2018-10-17","2018-10-18","2018-10-19","2018-10-20"]
[null,null,{"$f":"IF(WEEKDAY(วันปฏิทิน)=WeekStartValue,CONCATENATE(\"สัปดาห์ที่ \",WEEKNUM(วันปฏิทิน),\"/วันที่ \",วันปฏิทิน-DATE(YEAR(วันปฏิทิน),1,0)),CONCATENATE(\"วันที่ \",วันปฏิทิน-DATE(YEAR(วันปฏิทิน),1,0)))","v":"สัปดาห์ที่ 42/วันที่ 287"},{"$f":"IF(WEEKDAY(วันปฏิทิน)=WeekStartValue,CONCATENATE(\"สัปดาห์ที่ \",WEEKNUM(วันปฏิทิน),\"/วันที่ \",วันปฏิทิน-DATE(YEAR(วันปฏิทิน),1,0)),CONCATENATE(\"วันที่ \",วันปฏิทิน-DATE(YEAR(วันปฏิทิน),1,0)))","v":"วันที่ 288"},{"$f":"IF(WEEKDAY(วันปฏิทิน)=WeekStartValue,CONCATENATE(\"สัปดาห์ที่ \",WEEKNUM(วันปฏิทิน),\"/วันที่ \",วันปฏิทิน-DATE(YEAR(วันปฏิทิน),1,0)),CONCATENATE(\"วันที่ \",วันปฏิทิน-DATE(YEAR(วันปฏิทิน),1,0)))","v":"วันที่ 289"},{"$f":"IF(WEEKDAY(วันปฏิทิน)=WeekStartValue,CONCATENATE(\"สัปดาห์ที่ \",WEEKNUM(วันปฏิทิน),\"/วันที่ \",วันปฏิทิน-DATE(YEAR(วันปฏิทิน),1,0)),CONCATENATE(\"วันที่ \",วันปฏิทิน-DATE(YEAR(วันปฏิทิน),1,0)))","v":"วันที่ 290"},{"$f":"IF(WEEKDAY(วันปฏิทิน)=WeekStartValue,CONCATENATE(\"สัปดาห์ที่ \",WEEKNUM(วันปฏิทิน),\"/วันที่ \",วันปฏิทิน-DATE(YEAR(วันปฏิทิน),1,0)),CONCATENATE(\"วันที่ \",วันปฏิทิน-DATE(YEAR(วันปฏิทิน),1,0)))","v":"วันที่ 291"},{"$f":"IF(WEEKDAY(วันปฏิทิน)=WeekStartValue,CONCATENATE(\"สัปดาห์ที่ \",WEEKNUM(วันปฏิทิน),\"/วันที่ \",วันปฏิทิน-DATE(YEAR(วันปฏิทิน),1,0)),CONCATENATE(\"วันที่ \",วันปฏิทิน-DATE(YEAR(วันปฏิทิน),1,0)))","v":"วันที่ 292"},{"$f":"IF(WEEKDAY(วันปฏิทิน)=WeekStartValue,CONCATENATE(\"สัปดาห์ที่ \",WEEKNUM(วันปฏิทิน),\"/วันที่ \",วันปฏิทิน-DATE(YEAR(วันปฏิทิน),1,0)),CONCATENATE(\"วันที่ \",วันปฏิทิน-DATE(YEAR(วันปฏิทิน),1,0)))","v":"วันที่ 293"}]
[]
[null,null,{"$f":"วันและสัปดาห์+DATE(ปีปฏิทิน,10,1)-WEEKDAY(DATE(ปีปฏิทิน,10,1),(เริ่มต้นสัปดาห์=\"จ.\")+1)+22","v":"2018-10-21"},"2018-10-22","2018-10-23","2018-10-24","2018-10-25","2018-10-26","2018-10-27"]
[null,null,{"$f":"IF(WEEKDAY(วันปฏิทิน)=WeekStartValue,CONCATENATE(\"สัปดาห์ที่ \",WEEKNUM(วันปฏิทิน),\"/วันที่ \",วันปฏิทิน-DATE(YEAR(วันปฏิทิน),1,0)),CONCATENATE(\"วันที่ \",วันปฏิทิน-DATE(YEAR(วันปฏิทิน),1,0)))","v":"สัปดาห์ที่ 43/วันที่ 294"},{"$f":"IF(WEEKDAY(วันปฏิทิน)=WeekStartValue,CONCATENATE(\"สัปดาห์ที่ \",WEEKNUM(วันปฏิทิน),\"/วันที่ \",วันปฏิทิน-DATE(YEAR(วันปฏิทิน),1,0)),CONCATENATE(\"วันที่ \",วันปฏิทิน-DATE(YEAR(วันปฏิทิน),1,0)))","v":"วันที่ 295"},{"$f":"IF(WEEKDAY(วันปฏิทิน)=WeekStartValue,CONCATENATE(\"สัปดาห์ที่ \",WEEKNUM(วันปฏิทิน),\"/วันที่ \",วันปฏิทิน-DATE(YEAR(วันปฏิทิน),1,0)),CONCATENATE(\"วันที่ \",วันปฏิทิน-DATE(YEAR(วันปฏิทิน),1,0)))","v":"วันที่ 296"},{"$f":"IF(WEEKDAY(วันปฏิทิน)=WeekStartValue,CONCATENATE(\"สัปดาห์ที่ \",WEEKNUM(วันปฏิทิน),\"/วันที่ \",วันปฏิทิน-DATE(YEAR(วันปฏิทิน),1,0)),CONCATENATE(\"วันที่ \",วันปฏิทิน-DATE(YEAR(วันปฏิทิน),1,0)))","v":"วันที่ 297"},{"$f":"IF(WEEKDAY(วันปฏิทิน)=WeekStartValue,CONCATENATE(\"สัปดาห์ที่ \",WEEKNUM(วันปฏิทิน),\"/วันที่ \",วันปฏิทิน-DATE(YEAR(วันปฏิทิน),1,0)),CONCATENATE(\"วันที่ \",วันปฏิทิน-DATE(YEAR(วันปฏิทิน),1,0)))","v":"วันที่ 298"},{"$f":"IF(WEEKDAY(วันปฏิทิน)=WeekStartValue,CONCATENATE(\"สัปดาห์ที่ \",WEEKNUM(วันปฏิทิน),\"/วันที่ \",วันปฏิทิน-DATE(YEAR(วันปฏิทิน),1,0)),CONCATENATE(\"วันที่ \",วันปฏิทิน-DATE(YEAR(วันปฏิทิน),1,0)))","v":"วันที่ 299"},{"$f":"IF(WEEKDAY(วันปฏิทิน)=WeekStartValue,CONCATENATE(\"สัปดาห์ที่ \",WEEKNUM(วันปฏิทิน),\"/วันที่ \",วันปฏิทิน-DATE(YEAR(วันปฏิทิน),1,0)),CONCATENATE(\"วันที่ \",วันปฏิทิน-DATE(YEAR(วันปฏิทิน),1,0)))","v":"วันที่ 300"}]
[]
[null,null,{"$f":"วันและสัปดาห์+DATE(ปีปฏิทิน,10,1)-WEEKDAY(DATE(ปีปฏิทิน,10,1),(เริ่มต้นสัปดาห์=\"จ.\")+1)+29","v":"2018-10-28"},"2018-10-29","2018-10-30","2018-10-31","2018-11-01","2018-11-02","2018-11-03"]
[null,null,{"$f":"IF(WEEKDAY(วันปฏิทิน)=WeekStartValue,CONCATENATE(\"สัปดาห์ที่ \",WEEKNUM(วันปฏิทิน),\"/วันที่ \",วันปฏิทิน-DATE(YEAR(วันปฏิทิน),1,0)),CONCATENATE(\"วันที่ \",วันปฏิทิน-DATE(YEAR(วันปฏิทิน),1,0)))","v":"สัปดาห์ที่ 44/วันที่ 301"},{"$f":"IF(WEEKDAY(วันปฏิทิน)=WeekStartValue,CONCATENATE(\"สัปดาห์ที่ \",WEEKNUM(วันปฏิทิน),\"/วันที่ \",วันปฏิทิน-DATE(YEAR(วันปฏิทิน),1,0)),CONCATENATE(\"วันที่ \",วันปฏิทิน-DATE(YEAR(วันปฏิทิน),1,0)))","v":"วันที่ 302"},{"$f":"IF(WEEKDAY(วันปฏิทิน)=WeekStartValue,CONCATENATE(\"สัปดาห์ที่ \",WEEKNUM(วันปฏิทิน),\"/วันที่ \",วันปฏิทิน-DATE(YEAR(วันปฏิทิน),1,0)),CONCATENATE(\"วันที่ \",วันปฏิทิน-DATE(YEAR(วันปฏิทิน),1,0)))","v":"วันที่ 303"},{"$f":"IF(WEEKDAY(วันปฏิทิน)=WeekStartValue,CONCATENATE(\"สัปดาห์ที่ \",WEEKNUM(วันปฏิทิน),\"/วันที่ \",วันปฏิทิน-DATE(YEAR(วันปฏิทิน),1,0)),CONCATENATE(\"วันที่ \",วันปฏิทิน-DATE(YEAR(วันปฏิทิน),1,0)))","v":"วันที่ 304"},{"$f":"IF(WEEKDAY(วันปฏิทิน)=WeekStartValue,CONCATENATE(\"สัปดาห์ที่ \",WEEKNUM(วันปฏิทิน),\"/วันที่ \",วันปฏิทิน-DATE(YEAR(วันปฏิทิน),1,0)),CONCATENATE(\"วันที่ \",วันปฏิทิน-DATE(YEAR(วันปฏิทิน),1,0)))","v":"วันที่ 305"},{"$f":"IF(WEEKDAY(วันปฏิทิน)=WeekStartValue,CONCATENATE(\"สัปดาห์ที่ \",WEEKNUM(วันปฏิทิน),\"/วันที่ \",วันปฏิทิน-DATE(YEAR(วันปฏิทิน),1,0)),CONCATENATE(\"วันที่ \",วันปฏิทิน-DATE(YEAR(วันปฏิทิน),1,0)))","v":"วันที่ 306"},{"$f":"IF(WEEKDAY(วันปฏิทิน)=WeekStartValue,CONCATENATE(\"สัปดาห์ที่ \",WEEKNUM(วันปฏิทิน),\"/วันที่ \",วันปฏิทิน-DATE(YEAR(วันปฏิทิน),1,0)),CONCATENATE(\"วันที่ \",วันปฏิทิน-DATE(YEAR(วันปฏิทิน),1,0)))","v":"วันที่ 307"}]
[{"$nulls":4},"หมายเหตุ"]
[]
[null,null,{"$f":"วันและสัปดาห์+DATE(ปีปฏิทิน,10,1)-WEEKDAY(DATE(ปีปฏิทิน,10,1),(เริ่มต้นสัปดาห์=\"จ.\")+1)+36","v":"2018-11-04"},"2018-11-05"]
[null,null,{"$f":"IF(WEEKDAY(วันปฏิทิน)=WeekStartValue,CONCATENATE(\"สัปดาห์ที่ \",WEEKNUM(วันปฏิทิน),\"/วันที่ \",วันปฏิทิน-DATE(YEAR(วันปฏิทิน),1,0)),CONCATENATE(\"วันที่ \",วันปฏิทิน-DATE(YEAR(วันปฏิทิน),1,0)))","v":"สัปดาห์ที่ 45/วันที่ 308"},{"$f":"IF(WEEKDAY(วันปฏิทิน)=WeekStartValue,CONCATENATE(\"สัปดาห์ที่ \",WEEKNUM(วันปฏิทิน),\"/วันที่ \",วันปฏิทิน-DATE(YEAR(วันปฏิทิน),1,0)),CONCATENATE(\"วันที่ \",วันปฏิทิน-DATE(YEAR(วันปฏิทิน),1,0)))","v":"วันที่ 309"}]

{"sheet":"พ.ย.","index":10,"n_rows":20,"n_cols":9,"rows_kept":20,"merged":[[16,2,17,2],[17,4,19,8]]}
[null,"พ.ย.",{"$f":"UPPER(TEXT(เริ่มต้นสัปดาห์,\"ddd\"))","v":"อา."},{"$f":"UPPER(TEXT(D3,\"aaa\"))","v":"จ."},"อ.","พ.","พฤ.","ศ.","ส."]
[null,{"$f":"ปีปฏิทิน","v":2018}]
[null,null,{"$f":"วันและสัปดาห์+DATE(ปีปฏิทิน,11,1)-WEEKDAY(DATE(ปีปฏิทิน,11,1),(เริ่มต้นสัปดาห์=\"จ.\")+1)+1","v":"2018-10-28"},"2018-10-29","2018-10-30","2018-10-31","2018-11-01","2018-11-02","2018-11-03"]
[null,null,{"$f":"IF(DAY(วันปฏิทิน)=1,CONCATENATE(\"สัปดาห์ที่ \",WEEKNUM(วันปฏิทิน),\"/วันที่ \",วันปฏิทิน-DATE(YEAR(วันปฏิทิน),1,0)),CONCATENATE(\"วันที่ \",วันปฏิทิน-DATE(YEAR(วันปฏิทิน),1,0)))","v":"วันที่ 301"},{"$f":"IF(DAY(วันปฏิทิน)=1,CONCATENATE(\"สัปดาห์ที่ \",WEEKNUM(วันปฏิทิน),\"/วันที่ \",วันปฏิทิน-DATE(YEAR(วันปฏิทิน),1,0)),CONCATENATE(\"วันที่ \",วันปฏิทิน-DATE(YEAR(วันปฏิทิน),1,0)))","v":"วันที่ 302"},{"$f":"IF(DAY(วันปฏิทิน)=1,CONCATENATE(\"สัปดาห์ที่ \",WEEKNUM(วันปฏิทิน),\"/วันที่ \",วันปฏิทิน-DATE(YEAR(วันปฏิทิน),1,0)),CONCATENATE(\"วันที่ \",วันปฏิทิน-DATE(YEAR(วันปฏิทิน),1,0)))","v":"วันที่ 303"},{"$f":"IF(DAY(วันปฏิทิน)=1,CONCATENATE(\"สัปดาห์ที่ \",WEEKNUM(วันปฏิทิน),\"/วันที่ \",วันปฏิทิน-DATE(YEAR(วันปฏิทิน),1,0)),CONCATENATE(\"วันที่ \",วันปฏิทิน-DATE(YEAR(วันปฏิทิน),1,0)))","v":"วันที่ 304"},{"$f":"IF(DAY(วันปฏิทิน)=1,CONCATENATE(\"สัปดาห์ที่ \",WEEKNUM(วันปฏิทิน),\"/วันที่ \",วันปฏิทิน-DATE(YEAR(วันปฏิทิน),1,0)),CONCATENATE(\"วันที่ \",วันปฏิทิน-DATE(YEAR(วันปฏิทิน),1,0)))","v":"สัปดาห์ที่ 44/วันที่ 305"},{"$f":"IF(DAY(วันปฏิทิน)=1,CONCATENATE(\"สัปดาห์ที่ \",WEEKNUM(วันปฏิทิน),\"/วันที่ \",วันปฏิทิน-DATE(YEAR(วันปฏิทิน),1,0)),CONCATENATE(\"วันที่ \",วันปฏิทิน-DATE(YEAR(วันปฏิทิน),1,0)))","v":"วันที่ 306"},{"$f":"IF(DAY(วันปฏิทิน)=1,CONCATENATE(\"สัปดาห์ที่ \",WEEKNUM(วันปฏิทิน),\"/วันที่ \",วันปฏิทิน-DATE(YEAR(วันปฏิทิน),1,0)),CONCATENATE(\"วันที่ \",วันปฏิทิน-DATE(YEAR(วันปฏิทิน),1,0)))","v":"วันที่ 307"}]
[]
[null,null,{"$f":"วันและสัปดาห์+DATE(ปีปฏิทิน,11,1)-WEEKDAY(DATE(ปีปฏิทิน,11,1),(เริ่มต้นสัปดาห์=\"จ.\")+1)+8","v":"2018-11-04"},"2018-11-05","2018-11-06","2018-11-07","2018-11-08","2018-11-09","2018-11-10"]
[null,null,{"$f":"IF(WEEKDAY(วันปฏิทิน)=WeekStartValue,CONCATENATE(\"สัปดาห์ที่ \",WEEKNUM(วันปฏิทิน),\"/วันที่ \",วันปฏิทิน-DATE(YEAR(วันปฏิทิน),1,0)),CONCATENATE(\"วันที่ \",วันปฏิทิน-DATE(YEAR(วันปฏิทิน),1,0)))","v":"สัปดาห์ที่ 45/วันที่ 308"},{"$f":"IF(WEEKDAY(วันปฏิทิน)=WeekStartValue,CONCATENATE(\"สัปดาห์ที่ \",WEEKNUM(วันปฏิทิน),\"/วันที่ \",วันปฏิทิน-DATE(YEAR(วันปฏิทิน),1,0)),CONCATENATE(\"วันที่ \",วันปฏิทิน-DATE(YEAR(วันปฏิทิน),1,0)))","v":"วันที่ 309"},{"$f":"IF(WEEKDAY(วันปฏิทิน)=WeekStartValue,CONCATENATE(\"สัปดาห์ที่ \",WEEKNUM(วันปฏิทิน),\"/วันที่ \",วันปฏิทิน-DATE(YEAR(วันปฏิทิน),1,0)),CONCATENATE(\"วันที่ \",วันปฏิทิน-DATE(YEAR(วันปฏิทิน),1,0)))","v":"วันที่ 310"},{"$f":"IF(WEEKDAY(วันปฏิทิน)=WeekStartValue,CONCATENATE(\"สัปดาห์ที่ \",WEEKNUM(วันปฏิทิน),\"/วันที่ \",วันปฏิทิน-DATE(YEAR(วันปฏิทิน),1,0)),CONCATENATE(\"วันที่ \",วันปฏิทิน-DATE(YEAR(วันปฏิทิน),1,0)))","v":"วันที่ 311"},{"$f":"IF(WEEKDAY(วันปฏิทิน)=WeekStartValue,CONCATENATE(\"สัปดาห์ที่ \",WEEKNUM(วันปฏิทิน),\"/วันที่ \",วันปฏิทิน-DATE(YEAR(วันปฏิทิน),1,0)),CONCATENATE(\"วันที่ \",วันปฏิทิน-DATE(YEAR(วันปฏิทิน),1,0)))","v":"วันที่ 312"},{"$f":"IF(WEEKDAY(วันปฏิทิน)=WeekStartValue,CONCATENATE(\"สัปดาห์ที่ \",WEEKNUM(วันปฏิทิน),\"/วันที่ \",วันปฏิทิน-DATE(YEAR(วันปฏิทิน),1,0)),CONCATENATE(\"วันที่ \",วันปฏิทิน-DATE(YEAR(วันปฏิทิน),1,0)))","v":"วันที่ 313"},{"$f":"IF(WEEKDAY(วันปฏิทิน)=WeekStartValue,CONCATENATE(\"สัปดาห์ที่ \",WEEKNUM(วันปฏิทิน),\"/วันที่ \",วันปฏิทิน-DATE(YEAR(วันปฏิทิน),1,0)),CONCATENATE(\"วันที่ \",วันปฏิทิน-DATE(YEAR(วันปฏิทิน),1,0)))","v":"วันที่ 314"}]
[]
[null,null,{"$f":"วันและสัปดาห์+DATE(ปีปฏิทิน,11,1)-WEEKDAY(DATE(ปีปฏิทิน,11,1),(เริ่มต้นสัปดาห์=\"จ.\")+1)+15","v":"2018-11-11"},"2018-11-12","2018-11-13","2018-11-14","2018-11-15","2018-11-16","2018-11-17"]
[null,null,{"$f":"IF(WEEKDAY(วันปฏิทิน)=WeekStartValue,CONCATENATE(\"สัปดาห์ที่ \",WEEKNUM(วันปฏิทิน),\"/วันที่ \",วันปฏิทิน-DATE(YEAR(วันปฏิทิน),1,0)),CONCATENATE(\"วันที่ \",วันปฏิทิน-DATE(YEAR(วันปฏิทิน),1,0)))","v":"สัปดาห์ที่ 46/วันที่ 315"},{"$f":"IF(WEEKDAY(วันปฏิทิน)=WeekStartValue,CONCATENATE(\"สัปดาห์ที่ \",WEEKNUM(วันปฏิทิน),\"/วันที่ \",วันปฏิทิน-DATE(YEAR(วันปฏิทิน),1,0)),CONCATENATE(\"วันที่ \",วันปฏิทิน-DATE(YEAR(วันปฏิทิน),1,0)))","v":"วันที่ 316"},{"$f":"IF(WEEKDAY(วันปฏิทิน)=WeekStartValue,CONCATENATE(\"สัปดาห์ที่ \",WEEKNUM(วันปฏิทิน),\"/วันที่ \",วันปฏิทิน-DATE(YEAR(วันปฏิทิน),1,0)),CONCATENATE(\"วันที่ \",วันปฏิทิน-DATE(YEAR(วันปฏิทิน),1,0)))","v":"วันที่ 317"},{"$f":"IF(WEEKDAY(วันปฏิทิน)=WeekStartValue,CONCATENATE(\"สัปดาห์ที่ \",WEEKNUM(วันปฏิทิน),\"/วันที่ \",วันปฏิทิน-DATE(YEAR(วันปฏิทิน),1,0)),CONCATENATE(\"วันที่ \",วันปฏิทิน-DATE(YEAR(วันปฏิทิน),1,0)))","v":"วันที่ 318"},{"$f":"IF(WEEKDAY(วันปฏิทิน)=WeekStartValue,CONCATENATE(\"สัปดาห์ที่ \",WEEKNUM(วันปฏิทิน),\"/วันที่ \",วันปฏิทิน-DATE(YEAR(วันปฏิทิน),1,0)),CONCATENATE(\"วันที่ \",วันปฏิทิน-DATE(YEAR(วันปฏิทิน),1,0)))","v":"วันที่ 319"},{"$f":"IF(WEEKDAY(วันปฏิทิน)=WeekStartValue,CONCATENATE(\"สัปดาห์ที่ \",WEEKNUM(วันปฏิทิน),\"/วันที่ \",วันปฏิทิน-DATE(YEAR(วันปฏิทิน),1,0)),CONCATENATE(\"วันที่ \",วันปฏิทิน-DATE(YEAR(วันปฏิทิน),1,0)))","v":"วันที่ 320"},{"$f":"IF(WEEKDAY(วันปฏิทิน)=WeekStartValue,CONCATENATE(\"สัปดาห์ที่ \",WEEKNUM(วันปฏิทิน),\"/วันที่ \",วันปฏิทิน-DATE(YEAR(วันปฏิทิน),1,0)),CONCATENATE(\"วันที่ \",วันปฏิทิน-DATE(YEAR(วันปฏิทิน),1,0)))","v":"วันที่ 321"}]
[]
[null,null,{"$f":"วันและสัปดาห์+DATE(ปีปฏิทิน,11,1)-WEEKDAY(DATE(ปีปฏิทิน,11,1),(เริ่มต้นสัปดาห์=\"จ.\")+1)+22","v":"2018-11-18"},"2018-11-19","2018-11-20","2018-11-21","2018-11-22","2018-11-23","2018-11-24"]
[null,null,{"$f":"IF(WEEKDAY(วันปฏิทิน)=WeekStartValue,CONCATENATE(\"สัปดาห์ที่ \",WEEKNUM(วันปฏิทิน),\"/วันที่ \",วันปฏิทิน-DATE(YEAR(วันปฏิทิน),1,0)),CONCATENATE(\"วันที่ \",วันปฏิทิน-DATE(YEAR(วันปฏิทิน),1,0)))","v":"สัปดาห์ที่ 47/วันที่ 322"},{"$f":"IF(WEEKDAY(วันปฏิทิน)=WeekStartValue,CONCATENATE(\"สัปดาห์ที่ \",WEEKNUM(วันปฏิทิน),\"/วันที่ \",วันปฏิทิน-DATE(YEAR(วันปฏิทิน),1,0)),CONCATENATE(\"วันที่ \",วันปฏิทิน-DATE(YEAR(วันปฏิทิน),1,0)))","v":"วันที่ 323"},{"$f":"IF(WEEKDAY(วันปฏิทิน)=WeekStartValue,CONCATENATE(\"สัปดาห์ที่ \",WEEKNUM(วันปฏิทิน),\"/วันที่ \",วันปฏิทิน-DATE(YEAR(วันปฏิทิน),1,0)),CONCATENATE(\"วันที่ \",วันปฏิทิน-DATE(YEAR(วันปฏิทิน),1,0)))","v":"วันที่ 324"},{"$f":"IF(WEEKDAY(วันปฏิทิน)=WeekStartValue,CONCATENATE(\"สัปดาห์ที่ \",WEEKNUM(วันปฏิทิน),\"/วันที่ \",วันปฏิทิน-DATE(YEAR(วันปฏิทิน),1,0)),CONCATENATE(\"วันที่ \",วันปฏิทิน-DATE(YEAR(วันปฏิทิน),1,0)))","v":"วันที่ 325"},{"$f":"IF(WEEKDAY(วันปฏิทิน)=WeekStartValue,CONCATENATE(\"สัปดาห์ที่ \",WEEKNUM(วันปฏิทิน),\"/วันที่ \",วันปฏิทิน-DATE(YEAR(วันปฏิทิน),1,0)),CONCATENATE(\"วันที่ \",วันปฏิทิน-DATE(YEAR(วันปฏิทิน),1,0)))","v":"วันที่ 326"},{"$f":"IF(WEEKDAY(วันปฏิทิน)=WeekStartValue,CONCATENATE(\"สัปดาห์ที่ \",WEEKNUM(วันปฏิทิน),\"/วันที่ \",วันปฏิทิน-DATE(YEAR(วันปฏิทิน),1,0)),CONCATENATE(\"วันที่ \",วันปฏิทิน-DATE(YEAR(วันปฏิทิน),1,0)))","v":"วันที่ 327"},{"$f":"IF(WEEKDAY(วันปฏิทิน)=WeekStartValue,CONCATENATE(\"สัปดาห์ที่ \",WEEKNUM(วันปฏิทิน),\"/วันที่ \",วันปฏิทิน-DATE(YEAR(วันปฏิทิน),1,0)),CONCATENATE(\"วันที่ \",วันปฏิทิน-DATE(YEAR(วันปฏิทิน),1,0)))","v":"วันที่ 328"}]
[]
[null,null,{"$f":"วันและสัปดาห์+DATE(ปีปฏิทิน,11,1)-WEEKDAY(DATE(ปีปฏิทิน,11,1),(เริ่มต้นสัปดาห์=\"จ.\")+1)+29","v":"2018-11-25"},"2018-11-26","2018-11-27","2018-11-28","2018-11-29","2018-11-30","2018-12-01"]
[null,null,{"$f":"IF(WEEKDAY(วันปฏิทิน)=WeekStartValue,CONCATENATE(\"สัปดาห์ที่ \",WEEKNUM(วันปฏิทิน),\"/วันที่ \",วันปฏิทิน-DATE(YEAR(วันปฏิทิน),1,0)),CONCATENATE(\"วันที่ \",วันปฏิทิน-DATE(YEAR(วันปฏิทิน),1,0)))","v":"สัปดาห์ที่ 48/วันที่ 329"},{"$f":"IF(WEEKDAY(วันปฏิทิน)=WeekStartValue,CONCATENATE(\"สัปดาห์ที่ \",WEEKNUM(วันปฏิทิน),\"/วันที่ \",วันปฏิทิน-DATE(YEAR(วันปฏิทิน),1,0)),CONCATENATE(\"วันที่ \",วันปฏิทิน-DATE(YEAR(วันปฏิทิน),1,0)))","v":"วันที่ 330"},{"$f":"IF(WEEKDAY(วันปฏิทิน)=WeekStartValue,CONCATENATE(\"สัปดาห์ที่ \",WEEKNUM(วันปฏิทิน),\"/วันที่ \",วันปฏิทิน-DATE(YEAR(วันปฏิทิน),1,0)),CONCATENATE(\"วันที่ \",วันปฏิทิน-DATE(YEAR(วันปฏิทิน),1,0)))","v":"วันที่ 331"},{"$f":"IF(WEEKDAY(วันปฏิทิน)=WeekStartValue,CONCATENATE(\"สัปดาห์ที่ \",WEEKNUM(วันปฏิทิน),\"/วันที่ \",วันปฏิทิน-DATE(YEAR(วันปฏิทิน),1,0)),CONCATENATE(\"วันที่ \",วันปฏิทิน-DATE(YEAR(วันปฏิทิน),1,0)))","v":"วันที่ 332"},{"$f":"IF(WEEKDAY(วันปฏิทิน)=WeekStartValue,CONCATENATE(\"สัปดาห์ที่ \",WEEKNUM(วันปฏิทิน),\"/วันที่ \",วันปฏิทิน-DATE(YEAR(วันปฏิทิน),1,0)),CONCATENATE(\"วันที่ \",วันปฏิทิน-DATE(YEAR(วันปฏิทิน),1,0)))","v":"วันที่ 333"},{"$f":"IF(WEEKDAY(วันปฏิทิน)=WeekStartValue,CONCATENATE(\"สัปดาห์ที่ \",WEEKNUM(วันปฏิทิน),\"/วันที่ \",วันปฏิทิน-DATE(YEAR(วันปฏิทิน),1,0)),CONCATENATE(\"วันที่ \",วันปฏิทิน-DATE(YEAR(วันปฏิทิน),1,0)))","v":"วันที่ 334"},{"$f":"IF(WEEKDAY(วันปฏิทิน)=WeekStartValue,CONCATENATE(\"สัปดาห์ที่ \",WEEKNUM(วันปฏิทิน),\"/วันที่ \",วันปฏิทิน-DATE(YEAR(วันปฏิทิน),1,0)),CONCATENATE(\"วันที่ \",วันปฏิทิน-DATE(YEAR(วันปฏิทิน),1,0)))","v":"วันที่ 335"}]
[{"$nulls":4},"หมายเหตุ"]
[]
[null,null,{"$f":"วันและสัปดาห์+DATE(ปีปฏิทิน,11,1)-WEEKDAY(DATE(ปีปฏิทิน,11,1),(เริ่มต้นสัปดาห์=\"จ.\")+1)+36","v":"2018-12-02"},"2018-12-03"]
[null,null,{"$f":"IF(WEEKDAY(วันปฏิทิน)=WeekStartValue,CONCATENATE(\"สัปดาห์ที่ \",WEEKNUM(วันปฏิทิน),\"/วันที่ \",วันปฏิทิน-DATE(YEAR(วันปฏิทิน),1,0)),CONCATENATE(\"วันที่ \",วันปฏิทิน-DATE(YEAR(วันปฏิทิน),1,0)))","v":"สัปดาห์ที่ 49/วันที่ 336"},{"$f":"IF(WEEKDAY(วันปฏิทิน)=WeekStartValue,CONCATENATE(\"สัปดาห์ที่ \",WEEKNUM(วันปฏิทิน),\"/วันที่ \",วันปฏิทิน-DATE(YEAR(วันปฏิทิน),1,0)),CONCATENATE(\"วันที่ \",วันปฏิทิน-DATE(YEAR(วันปฏิทิน),1,0)))","v":"วันที่ 337"}]

{"sheet":"ธ.ค.","index":11,"n_rows":20,"n_cols":9,"rows_kept":20,"merged":[[16,2,17,2],[17,4,19,8]]}
[null,"ธ.ค.",{"$f":"UPPER(TEXT(เริ่มต้นสัปดาห์,\"ddd\"))","v":"อา."},{"$f":"UPPER(TEXT(D3,\"aaa\"))","v":"จ."},"อ.","พ.","พฤ.","ศ.","ส."]
[null,{"$f":"ปีปฏิทิน","v":2018}]
[null,null,{"$f":"วันและสัปดาห์+DATE(ปีปฏิทิน,12,1)-WEEKDAY(DATE(ปีปฏิทิน,12,1),(เริ่มต้นสัปดาห์=\"จ.\")+1)+1","v":"2018-11-25"},"2018-11-26","2018-11-27","2018-11-28","2018-11-29","2018-11-30","2018-12-01"]
[null,null,{"$f":"IF(DAY(วันปฏิทิน)=1,CONCATENATE(\"สัปดาห์ที่ \",WEEKNUM(วันปฏิทิน),\"/วันที่ \",วันปฏิทิน-DATE(YEAR(วันปฏิทิน),1,0)),CONCATENATE(\"วันที่ \",วันปฏิทิน-DATE(YEAR(วันปฏิทิน),1,0)))","v":"วันที่ 329"},{"$f":"IF(DAY(วันปฏิทิน)=1,CONCATENATE(\"สัปดาห์ที่ \",WEEKNUM(วันปฏิทิน),\"/วันที่ \",วันปฏิทิน-DATE(YEAR(วันปฏิทิน),1,0)),CONCATENATE(\"วันที่ \",วันปฏิทิน-DATE(YEAR(วันปฏิทิน),1,0)))","v":"วันที่ 330"},{"$f":"IF(DAY(วันปฏิทิน)=1,CONCATENATE(\"สัปดาห์ที่ \",WEEKNUM(วันปฏิทิน),\"/วันที่ \",วันปฏิทิน-DATE(YEAR(วันปฏิทิน),1,0)),CONCATENATE(\"วันที่ \",วันปฏิทิน-DATE(YEAR(วันปฏิทิน),1,0)))","v":"วันที่ 331"},{"$f":"IF(DAY(วันปฏิทิน)=1,CONCATENATE(\"สัปดาห์ที่ \",WEEKNUM(วันปฏิทิน),\"/วันที่ \",วันปฏิทิน-DATE(YEAR(วันปฏิทิน),1,0)),CONCATENATE(\"วันที่ \",วันปฏิทิน-DATE(YEAR(วันปฏิทิน),1,0)))","v":"วันที่ 332"},{"$f":"IF(DAY(วันปฏิทิน)=1,CONCATENATE(\"สัปดาห์ที่ \",WEEKNUM(วันปฏิทิน),\"/วันที่ \",วันปฏิทิน-DATE(YEAR(วันปฏิทิน),1,0)),CONCATENATE(\"วันที่ \",วันปฏิทิน-DATE(YEAR(วันปฏิทิน),1,0)))","v":"วันที่ 333"},{"$f":"IF(DAY(วันปฏิทิน)=1,CONCATENATE(\"สัปดาห์ที่ \",WEEKNUM(วันปฏิทิน),\"/วันที่ \",วันปฏิทิน-DATE(YEAR(วันปฏิทิน),1,0)),CONCATENATE(\"วันที่ \",วันปฏิทิน-DATE(YEAR(วันปฏิทิน),1,0)))","v":"วันที่ 334"},{"$f":"IF(DAY(วันปฏิทิน)=1,CONCATENATE(\"สัปดาห์ที่ \",WEEKNUM(วันปฏิทิน),\"/วันที่ \",วันปฏิทิน-DATE(YEAR(วันปฏิทิน),1,0)),CONCATENATE(\"วันที่ \",วันปฏิทิน-DATE(YEAR(วันปฏิทิน),1,0)))","v":"สัปดาห์ที่ 48/วันที่ 335"}]
[]
[null,null,{"$f":"วันและสัปดาห์+DATE(ปีปฏิทิน,12,1)-WEEKDAY(DATE(ปีปฏิทิน,12,1),(เริ่มต้นสัปดาห์=\"จ.\")+1)+8","v":"2018-12-02"},"2018-12-03","2018-12-04","2018-12-05","2018-12-06","2018-12-07","2018-12-08"]
[null,null,{"$f":"IF(WEEKDAY(วันปฏิทิน)=WeekStartValue,CONCATENATE(\"สัปดาห์ที่ \",WEEKNUM(วันปฏิทิน),\"/วันที่ \",วันปฏิทิน-DATE(YEAR(วันปฏิทิน),1,0)),CONCATENATE(\"วันที่ \",วันปฏิทิน-DATE(YEAR(วันปฏิทิน),1,0)))","v":"สัปดาห์ที่ 49/วันที่ 336"},{"$f":"IF(WEEKDAY(วันปฏิทิน)=WeekStartValue,CONCATENATE(\"สัปดาห์ที่ \",WEEKNUM(วันปฏิทิน),\"/วันที่ \",วันปฏิทิน-DATE(YEAR(วันปฏิทิน),1,0)),CONCATENATE(\"วันที่ \",วันปฏิทิน-DATE(YEAR(วันปฏิทิน),1,0)))","v":"วันที่ 337"},{"$f":"IF(WEEKDAY(วันปฏิทิน)=WeekStartValue,CONCATENATE(\"สัปดาห์ที่ \",WEEKNUM(วันปฏิทิน),\"/วันที่ \",วันปฏิทิน-DATE(YEAR(วันปฏิทิน),1,0)),CONCATENATE(\"วันที่ \",วันปฏิทิน-DATE(YEAR(วันปฏิทิน),1,0)))","v":"วันที่ 338"},{"$f":"IF(WEEKDAY(วันปฏิทิน)=WeekStartValue,CONCATENATE(\"สัปดาห์ที่ \",WEEKNUM(วันปฏิทิน),\"/วันที่ \",วันปฏิทิน-DATE(YEAR(วันปฏิทิน),1,0)),CONCATENATE(\"วันที่ \",วันปฏิทิน-DATE(YEAR(วันปฏิทิน),1,0)))","v":"วันที่ 339"},{"$f":"IF(WEEKDAY(วันปฏิทิน)=WeekStartValue,CONCATENATE(\"สัปดาห์ที่ \",WEEKNUM(วันปฏิทิน),\"/วันที่ \",วันปฏิทิน-DATE(YEAR(วันปฏิทิน),1,0)),CONCATENATE(\"วันที่ \",วันปฏิทิน-DATE(YEAR(วันปฏิทิน),1,0)))","v":"วันที่ 340"},{"$f":"IF(WEEKDAY(วันปฏิทิน)=WeekStartValue,CONCATENATE(\"สัปดาห์ที่ \",WEEKNUM(วันปฏิทิน),\"/วันที่ \",วันปฏิทิน-DATE(YEAR(วันปฏิทิน),1,0)),CONCATENATE(\"วันที่ \",วันปฏิทิน-DATE(YEAR(วันปฏิทิน),1,0)))","v":"วันที่ 341"},{"$f":"IF(WEEKDAY(วันปฏิทิน)=WeekStartValue,CONCATENATE(\"สัปดาห์ที่ \",WEEKNUM(วันปฏิทิน),\"/วันที่ \",วันปฏิทิน-DATE(YEAR(วันปฏิทิน),1,0)),CONCATENATE(\"วันที่ \",วันปฏิทิน-DATE(YEAR(วันปฏิทิน),1,0)))","v":"วันที่ 342"}]
[]
[null,null,{"$f":"วันและสัปดาห์+DATE(ปีปฏิทิน,12,1)-WEEKDAY(DATE(ปีปฏิทิน,12,1),(เริ่มต้นสัปดาห์=\"จ.\")+1)+15","v":"2018-12-09"},"2018-12-10","2018-12-11","2018-12-12","2018-12-13","2018-12-14","2018-12-15"]
[null,null,{"$f":"IF(WEEKDAY(วันปฏิทิน)=WeekStartValue,CONCATENATE(\"สัปดาห์ที่ \",WEEKNUM(วันปฏิทิน),\"/วันที่ \",วันปฏิทิน-DATE(YEAR(วันปฏิทิน),1,0)),CONCATENATE(\"วันที่ \",วันปฏิทิน-DATE(YEAR(วันปฏิทิน),1,0)))","v":"สัปดาห์ที่ 50/วันที่ 343"},{"$f":"IF(WEEKDAY(วันปฏิทิน)=WeekStartValue,CONCATENATE(\"สัปดาห์ที่ \",WEEKNUM(วันปฏิทิน),\"/วันที่ \",วันปฏิทิน-DATE(YEAR(วันปฏิทิน),1,0)),CONCATENATE(\"วันที่ \",วันปฏิทิน-DATE(YEAR(วันปฏิทิน),1,0)))","v":"วันที่ 344"},{"$f":"IF(WEEKDAY(วันปฏิทิน)=WeekStartValue,CONCATENATE(\"สัปดาห์ที่ \",WEEKNUM(วันปฏิทิน),\"/วันที่ \",วันปฏิทิน-DATE(YEAR(วันปฏิทิน),1,0)),CONCATENATE(\"วันที่ \",วันปฏิทิน-DATE(YEAR(วันปฏิทิน),1,0)))","v":"วันที่ 345"},{"$f":"IF(WEEKDAY(วันปฏิทิน)=WeekStartValue,CONCATENATE(\"สัปดาห์ที่ \",WEEKNUM(วันปฏิทิน),\"/วันที่ \",วันปฏิทิน-DATE(YEAR(วันปฏิทิน),1,0)),CONCATENATE(\"วันที่ \",วันปฏิทิน-DATE(YEAR(วันปฏิทิน),1,0)))","v":"วันที่ 346"},{"$f":"IF(WEEKDAY(วันปฏิทิน)=WeekStartValue,CONCATENATE(\"สัปดาห์ที่ \",WEEKNUM(วันปฏิทิน),\"/วันที่ \",วันปฏิทิน-DATE(YEAR(วันปฏิทิน),1,0)),CONCATENATE(\"วันที่ \",วันปฏิทิน-DATE(YEAR(วันปฏิทิน),1,0)))","v":"วันที่ 347"},{"$f":"IF(WEEKDAY(วันปฏิทิน)=WeekStartValue,CONCATENATE(\"สัปดาห์ที่ \",WEEKNUM(วันปฏิทิน),\"/วันที่ \",วันปฏิทิน-DATE(YEAR(วันปฏิทิน),1,0)),CONCATENATE(\"วันที่ \",วันปฏิทิน-DATE(YEAR(วันปฏิทิน),1,0)))","v":"วันที่ 348"},{"$f":"IF(WEEKDAY(วันปฏิทิน)=WeekStartValue,CONCATENATE(\"สัปดาห์ที่ \",WEEKNUM(วันปฏิทิน),\"/วันที่ \",วันปฏิทิน-DATE(YEAR(วันปฏิทิน),1,0)),CONCATENATE(\"วันที่ \",วันปฏิทิน-DATE(YEAR(วันปฏิทิน),1,0)))","v":"วันที่ 349"}]
[]
[null,null,{"$f":"วันและสัปดาห์+DATE(ปีปฏิทิน,12,1)-WEEKDAY(DATE(ปีปฏิทิน,12,1),(เริ่มต้นสัปดาห์=\"จ.\")+1)+22","v":"2018-12-16"},"2018-12-17","2018-12-18","2018-12-19","2018-12-20","2018-12-21","2018-12-22"]
[null,null,{"$f":"IF(WEEKDAY(วันปฏิทิน)=WeekStartValue,CONCATENATE(\"สัปดาห์ที่ \",WEEKNUM(วันปฏิทิน),\"/วันที่ \",วันปฏิทิน-DATE(YEAR(วันปฏิทิน),1,0)),CONCATENATE(\"วันที่ \",วันปฏิทิน-DATE(YEAR(วันปฏิทิน),1,0)))","v":"สัปดาห์ที่ 51/วันที่ 350"},{"$f":"IF(WEEKDAY(วันปฏิทิน)=WeekStartValue,CONCATENATE(\"สัปดาห์ที่ \",WEEKNUM(วันปฏิทิน),\"/วันที่ \",วันปฏิทิน-DATE(YEAR(วันปฏิทิน),1,0)),CONCATENATE(\"วันที่ \",วันปฏิทิน-DATE(YEAR(วันปฏิทิน),1,0)))","v":"วันที่ 351"},{"$f":"IF(WEEKDAY(วันปฏิทิน)=WeekStartValue,CONCATENATE(\"สัปดาห์ที่ \",WEEKNUM(วันปฏิทิน),\"/วันที่ \",วันปฏิทิน-DATE(YEAR(วันปฏิทิน),1,0)),CONCATENATE(\"วันที่ \",วันปฏิทิน-DATE(YEAR(วันปฏิทิน),1,0)))","v":"วันที่ 352"},{"$f":"IF(WEEKDAY(วันปฏิทิน)=WeekStartValue,CONCATENATE(\"สัปดาห์ที่ \",WEEKNUM(วันปฏิทิน),\"/วันที่ \",วันปฏิทิน-DATE(YEAR(วันปฏิทิน),1,0)),CONCATENATE(\"วันที่ \",วันปฏิทิน-DATE(YEAR(วันปฏิทิน),1,0)))","v":"วันที่ 353"},{"$f":"IF(WEEKDAY(วันปฏิทิน)=WeekStartValue,CONCATENATE(\"สัปดาห์ที่ \",WEEKNUM(วันปฏิทิน),\"/วันที่ \",วันปฏิทิน-DATE(YEAR(วันปฏิทิน),1,0)),CONCATENATE(\"วันที่ \",วันปฏิทิน-DATE(YEAR(วันปฏิทิน),1,0)))","v":"วันที่ 354"},{"$f":"IF(WEEKDAY(วันปฏิทิน)=WeekStartValue,CONCATENATE(\"สัปดาห์ที่ \",WEEKNUM(วันปฏิทิน),\"/วันที่ \",วันปฏิทิน-DATE(YEAR(วันปฏิทิน),1,0)),CONCATENATE(\"วันที่ \",วันปฏิทิน-DATE(YEAR(วันปฏิทิน),1,0)))","v":"วันที่ 355"},{"$f":"IF(WEEKDAY(วันปฏิทิน)=WeekStartValue,CONCATENATE(\"สัปดาห์ที่ \",WEEKNUM(วันปฏิทิน),\"/วันที่ \",วันปฏิทิน-DATE(YEAR(วันปฏิทิน),1,0)),CONCATENATE(\"วันที่ \",วันปฏิทิน-DATE(YEAR(วันปฏิทิน),1,0)))","v":"วันที่ 356"}]
[]
[null,null,{"$f":"วันและสัปดาห์+DATE(ปีปฏิทิน,12,1)-WEEKDAY(DATE(ปีปฏิทิน,12,1),(เริ่มต้นสัปดาห์=\"จ.\")+1)+29","v":"2018-12-23"},"2018-12-24","2018-12-25","2018-12-26","2018-12-27","2018-12-28","2018-12-29"]
[null,null,{"$f":"IF(WEEKDAY(วันปฏิทิน)=WeekStartValue,CONCATENATE(\"สัปดาห์ที่ \",WEEKNUM(วันปฏิทิน),\"/วันที่ \",วันปฏิทิน-DATE(YEAR(วันปฏิทิน),1,0)),CONCATENATE(\"วันที่ \",วันปฏิทิน-DATE(YEAR(วันปฏิทิน),1,0)))","v":"สัปดาห์ที่ 52/วันที่ 357"},{"$f":"IF(WEEKDAY(วันปฏิทิน)=WeekStartValue,CONCATENATE(\"สัปดาห์ที่ \",WEEKNUM(วันปฏิทิน),\"/วันที่ \",วันปฏิทิน-DATE(YEAR(วันปฏิทิน),1,0)),CONCATENATE(\"วันที่ \",วันปฏิทิน-DATE(YEAR(วันปฏิทิน),1,0)))","v":"วันที่ 358"},{"$f":"IF(WEEKDAY(วันปฏิทิน)=WeekStartValue,CONCATENATE(\"สัปดาห์ที่ \",WEEKNUM(วันปฏิทิน),\"/วันที่ \",วันปฏิทิน-DATE(YEAR(วันปฏิทิน),1,0)),CONCATENATE(\"วันที่ \",วันปฏิทิน-DATE(YEAR(วันปฏิทิน),1,0)))","v":"วันที่ 359"},{"$f":"IF(WEEKDAY(วันปฏิทิน)=WeekStartValue,CONCATENATE(\"สัปดาห์ที่ \",WEEKNUM(วันปฏิทิน),\"/วันที่ \",วันปฏิทิน-DATE(YEAR(วันปฏิทิน),1,0)),CONCATENATE(\"วันที่ \",วันปฏิทิน-DATE(YEAR(วันปฏิทิน),1,0)))","v":"วันที่ 360"},{"$f":"IF(WEEKDAY(วันปฏิทิน)=WeekStartValue,CONCATENATE(\"สัปดาห์ที่ \",WEEKNUM(วันปฏิทิน),\"/วันที่ \",วันปฏิทิน-DATE(YEAR(วันปฏิทิน),1,0)),CONCATENATE(\"วันที่ \",วันปฏิทิน-DATE(YEAR(วันปฏิทิน),1,0)))","v":"วันที่ 361"},{"$f":"IF(WEEKDAY(วันปฏิทิน)=WeekStartValue,CONCATENATE(\"สัปดาห์ที่ \",WEEKNUM(วันปฏิทิน),\"/วันที่ \",วันปฏิทิน-DATE(YEAR(วันปฏิทิน),1,0)),CONCATENATE(\"วันที่ \",วันปฏิทิน-DATE(YEAR(วันปฏิทิน),1,0)))","v":"วันที่ 362"},{"$f":"IF(WEEKDAY(วันปฏิทิน)=WeekStartValue,CONCATENATE(\"สัปดาห์ที่ \",WEEKNUM(วันปฏิทิน),\"/วันที่ \",วันปฏิทิน-DATE(YEAR(วันปฏิทิน),1,0)),CONCATENATE(\"วันที่ \",วันปฏิทิน-DATE(YEAR(วันปฏิทิน),1,0)))","v":"วันที่ 363"}]
[{"$nulls":4},"หมายเหตุ"]
[]
[null,null,{"$f":"วันและสัปดาห์+DATE(ปีปฏิทิน,12,1)-WEEKDAY(DATE(ปีปฏิทิน,12,1),(เริ่มต้นสัปดาห์=\"จ.\")+1)+36","v":"2018-12-30"},"2018-12-31"]
[null,null,{"$f":"IF(WEEKDAY(วันปฏิทิน)=WeekStartValue,CONCATENATE(\"สัปดาห์ที่ \",WEEKNUM(วันปฏิทิน),\"/วันที่ \",วันปฏิทิน-DATE(YEAR(วันปฏิทิน),1,0)),CONCATENATE(\"วันที่ \",วันปฏิทิน-DATE(YEAR(วันปฏิทิน),1,0)))","v":"สัปดาห์ที่ 53/วันที่ 364"},{"$f":"IF(WEEKDAY(วันปฏิทิน)=WeekStartValue,CONCATENATE(\"สัปดาห์ที่ \",WEEKNUM(วันปฏิทิน),\"/วันที่ \",วันปฏิทิน-DATE(YEAR(วันปฏิทิน),1,0)),CONCATENATE(\"วันที่ \",วันปฏิทิน-DATE(YEAR(วันปฏิทิน),1,0)))","v":"วันที่ 365"}]